Workbook

Sheet RESUMO MODULO TOTAL
E2: Ministério da Integração e do Desenvolvimento Regional | G2: Encargos Sociais | I2: Total de m² | J2: 210000 | K2: Base Referencial SICRO: | L2: Abril/2024 | N2: N1 | O2: TERRAPLENAGEM | P2: =(SUMIF($O$10:$O$55,O2,$L$10:$L$55)/$L$56) ->  | Q2: =(SUMIF($O$10:$O$57,O2,$L$10:$L$57)) -> 0 | R2: FGV
E3: Companhia de Desenvolvimento dos Vales do São Francisco e do Parnaíba | G3: Horista | H3: ='ENC. SOCIAIS'!F51 -> 108.84 | I3: R$/m² | J3: =ROUND(L56/J2,2) -> 0 | K3: Base Referencial SINAPI: | L3: 04/2024 | N3: N2 | O3: PAVIMENTAÇÃO | P3: =(SUMIF($O$10:$O$55,O3,$L$10:$L$55)/$L$56) ->  | Q3: =(SUMIF($O$10:$O$57,O3,$L$10:$L$57)) -> 0 | R3: FGV
E4: 9ª Superintendência Regional | G4: Mensalista | H4: ='ENC. SOCIAIS'!G51 -> 67.24 | I4: Nº de módulos | J4: 15 | K4: Data do Orçamento: | L4: Agosto - 2024 | N4: N3 | O4: DRENAGEM | Q4: 0 | R4: FGV
B5: OBRA: | C5: Execução De Serviços De Pavimentação Com Tratamento Superficial Duplo Em Vias De Municípios Diversos Inseridos Na Área De Atuação Da Codevasf, No Estado De Goiás | I5: Valor total do SRP | J5: =$L$56 -> 0 | K5: BDI-SERVIÇO % | L5: =BDI!$C$17 -> 0 | N5: N4 | O5: INCC | P5: =(SUMIF($O$10:$O$55,O5,$L$10:$L$55)/$L$56) ->  | Q5: =(SUMIF($O$10:$O$57,O5,$L$10:$L$57)) -> 0 | R5: FGV
I6: Valor total por módulo | J6: =ROUND(J5/J4,2) -> 0 | K6: BDI - FORN. % | L6: =BDI!$G$17*100 -> 15 | N6: N5 | O6: TOTAL | P6: =SUM(P2:P7) ->  | Q6: =SUM(Q2:Q5) -> 0
B7: PLANILHA DE ORÇAMENTAÇÃO
B8: ITEM | C8: CÓDIGO | D8: FONTE | E8: DISCRIMINAÇÃO | F8: TIPO | G8: UNID. | H8: QUANT. | I8: VR.UNIT.S/BDI | J8: PR. UNIT.C/BDI | K8: C. TOT.S/BDI | L8: P. TOT.C/BDI
B10: 1 | E10: MOBILIZAÇÃO/DESMOBILIZAÇÃO
B11: 1.1 | C11: Mob | D11: Codevasf | E11: Mobilização | F11: SERV | G11: kmxfrente | H11: 9000 | J11: =TRUNC(IF(F11="SERV",I11*(1+$L$5/100),I11*(1+$L$6/100)),2) -> 0 | K11: =TRUNC(H11*I11,2) -> 0 | L11: =TRUNC(J11*H11,2) -> 0 | N11: =L11/$L$56 ->  | O11: INCC
B12: 1.2 | C12: Mob | D12: Codevasf | E12: Desmobilização | F12: SERV | G12: kmxfrente | H12: 9000 | J12: =TRUNC(IF(F12="SERV",I12*(1+$L$5/100),I12*(1+$L$6/100)),2) -> 0 | K12: =TRUNC(H12*I12,2) -> 0 | L12: =TRUNC(J12*H12,2) -> 0 | N12: =L12/$L$56 ->  | O12: INCC
B13: 2 | E13: INSTALAÇÃO DE CANTEIRO
B14: 2.1 | C14: Canteiro | D14: Codevasf | E14: Canteiro de Obras e Almoxarifado | F14: SERV | G14: frente | H14: 15 | J14: =TRUNC(IF(F14="SERV",I14*(1+$L$5/100),I14*(1+$L$6/100)),2) -> 0 | K14: =TRUNC(H14*I14,2) -> 0 | L14: =TRUNC(J14*H14,2) -> 0 | N14: =L14/$L$56 ->  | O14: INCC
B15: 2.2 | C15: 103689 | D15: SINAPI | E15: Fornecimento e instalação de placa de obra com chapa galvanizada e estrutura de madeira. af_03/2022_ps | F15: SERV | G15: m² | H15: 240 | J15: 0 | K15: 0 | L15: 0 | O15: INCC
B16: 3 | E16: ADMINISTRAÇÃO LOCAL DA OBRA
B17: 3.1 | C17: Adm Local | D17: Codevasf | E17: Administração Local da Obra | F17: SERV | G17: unid. | H17: 1 | J17: =TRUNC(IF(F17="SERV",I17*(1+$L$5/100),I17*(1+$L$6/100)),2) -> 0 | K17: =TRUNC(H17*I17,2) -> 0 | L17: =TRUNC(J17*H17,2) -> 0 | N17: =L17/$L$56 ->  | O17: incc
B18: 4 | E18: TERRAPLANAGEM
B19: 4.1 | C19: 5502114 | D19: SICRO | E19: Escavação, carga e transporte de material de 1ª categoria - DMT de 1.000 a 1.200 m - caminho de serviço em leito natural - com escavadeira e caminhão basculante de 14 m³ | F19: SERV | G19: m³ | H19: 68250 | J19: =TRUNC(IF(F19="SERV",I19*(1+$L$5/100),I19*(1+$L$6/100)),2) -> 0 | K19: =TRUNC(H19*I19,2) -> 0 | L19: =TRUNC(J19*H19,2) -> 0 | N19: =L19/$L$56 ->  | O19: TERRAPLENAGEM
B20: 4.2 | C20: 4413942 | D20: SICRO | E20: Espalhamento de material em bota-fora | F20: SERV | G20: m³ | H20: 68250 | J20: 0 | K20: 0 | L20: 0 | O20: TERRAPLENAGEM | X20: 1
B21: 5 | E21: PAVIMENTAÇÃO
B22: 5.1 | C22: 4915637 | D22: SICRO | E22: Capa selante - areia comercial | F22: SERV | G22: m² | H22: 210000 | J22: =TRUNC(IF(F22="SERV",I22*(1+$L$5/100),I22*(1+$L$6/100)),2) -> 0 | K22: =TRUNC(H22*I22,2) -> 0 | L22: =TRUNC(J22*H22,2) -> 0 | N22: =L22/$L$56 ->  | O22: PAVIMENTAÇÃO
B23: 5.2 | C23: 4011370 | D23: SICRO | E23: Tratamento superficial duplo com emulsão - brita comercial | F23: SERV | G23: m² | H23: 210000 | J23: 0 | K23: 0 | L23: 0 | O23: PAVIMENTAÇÃO
B24: 5.3 | C24: 4011352 | D24: SICRO | E24: Imprimação com emulsão asfáltica | F24: SERV | G24: m² | H24: 210000 | J24: 0 | K24: 0 | L24: 0 | O24: PAVIMENTAÇÃO
B25: 5.4 | C25: 4011256 | D25: SICRO | E25: Base estabilizada granulometricamente com mistura solo brita (70% - 30%) na pista com material de jazida e brita comercial | F25: SERV | G25: m³ | H25: 31500 | J25: 0 | K25: 0 | L25: 0 | O25: PAVIMENTAÇÃO
B26: 5.5 | C26: 4011233 | D26: SICRO | E26: Sub-base estabilizada granulometricamente com mistura solo brita (70% - 30%) na pista com material de jazida e brita comercial | F26: SERV | G26: m³ | H26: 31500 | J26: 0 | K26: 0 | L26: 0 | O26: PAVIMENTAÇÃO
B27: 5.6 | C27: 4011209 | D27: SICRO | E27: Regularização do subleito | F27: SERV | G27: m² | H27: 210000 | J27: 0 | K27: 0 | L27: 0 | O27: PAVIMENTAÇÃO
B28: 6 | E28: AQUISIÇÃO E TRANSPORTE DO MATERIAL BETUMINOSO
B29: 6.1 | C29: CPU-14 | D29: CODEVASF | E29: AQUISIÇÃO DE EAI | F29: FORN | G29: t | H29: 273 | J29: =TRUNC(IF(F29="SERV",I29*(1+$L$5/100),I29*(1+$L$6/100)),2) -> 0 | K29: =TRUNC(H29*I29,2) -> 0 | L29: =TRUNC(J29*H29,2) -> 0 | N29: =L29/$L$56 ->  | O29: PAVIMENTAÇÃO
B30: 6.2 | C30: CPU-18 | D30: CODEVASF | E30: TRANSPORTE DE EAI | F30: FORN | G30: t | H30: 273 | J30: 0 | K30: 0 | L30: 0 | O30: PAVIMENTAÇÃO
B31: 6.3 | C31: CPU-15 | D31: CODEVASF | E31: AQUISIÇÃO DE EMULSÃO ASFÁLTICA RR-2C | F31: FORN | G31: t | H31: 888.3 | J31: 0 | K31: 0 | L31: 0 | O31: PAVIMENTAÇÃO
B32: 6.4 | C32: CPU-19 | D32: CODEVASF | E32: TRANSPORTE RR-2C | F32: FORN | G32: t | H32: 888.3 | J32: 0 | K32: 0 | L32: 0 | O32: PAVIMENTAÇÃO
B33: 7 | E33: SINALIZAÇÃO
B34: 7.1 | C34: 5213440 | D34: SICRO | E34: Placa de regulamentação em aço D = 0,60 m - película retrorrefletiva tipo I + SI - fornecimento e implantação | F34: SERV | G34: unid. | H34: 90 | J34: =TRUNC(IF(F34="SERV",I34*(1+$L$5/100),I34*(1+$L$6/100)),2) -> 0 | K34: =TRUNC(H34*I34,2) -> 0 | L34: =TRUNC(J34*H34,2) -> 0 | N34: =L34/$L$56 ->  | O34: INCC
B35: 7.2 | C35: 5213464 | D35: SICRO | E35: Placa de advertência em aço, lado de 0,60 m - película retrorrefletiva tipo I + SI - fornecimento e implantação | F35: SERV | G35: unid. | H35: 90 | J35: 0 | K35: 0 | L35: 0 | O35: INCC
B36: 7.3 | C36: 5213863 | D36: SICRO | E36: Suporte metálico galvanizado para placa de advertência ou regulamentação - lado ou diâmetro de 0,60 m - fornecimento e implantação | F36: SERV | G36: unid. | H36: 180 | J36: 0 | K36: 0 | L36: 0 | O36: INCC
B37: 7.4 | C37: 5213400 | D37: SICRO | E37: Pintura de faixa com tinta acrílica - espessura de 0,4 mm | F37: SERV | G37: m² | H37: 7200 | J37: 0 | K37: 0 | L37: 0 | O37: INCC
B38: 8 | E38: DRENAGEM
B39: 8.1 | C39: 2003943-A | D39: Codevasf | E39: Meio-fio de concreto - MFC 03 moldado no local com extrusora e concreto betoneira - areia e brita comerciais | F39: SERV | G39: m | H39: 54000 | J39: =TRUNC(IF(F39="SERV",I39*(1+$L$5/100),I39*(1+$L$6/100)),2) -> 0 | K39: =TRUNC(H39*I39,2) -> 0 | L39: =TRUNC(J39*H39,2) -> 0 | N39: =L39/$L$56 ->  | O39: DRENAGEM
B40: 8.2 | C40: 2003947-A | D40: Codevasf | E40: Meio-fio de concreto - MFC 05 moldado no local com extrusora e concreto betoneira - areia e brita comerciais | F40: SERV | G40: m | H40: 6000 | J40: 0 | K40: 0 | L40: 0 | O40: DRENAGEM
B41: 8.3 | C41: 4915724 | D41: SICRO | E41: Caiação mecanizada com fixador de cal | F41: SERV | G41: m² | H41: 7200 | J41: 0 | K41: 0 | L41: 0 | O41: DRENAGEM
B42: 9 | E42: SERVIÇOS COMPLEMENTARES
B43: 9.1 | C43: CPU-12 | D43: Codevasf | E43: Conserto de quebra no ramal na rua sem pavimento com fornecimento de material hidráulico | F43: SERV | G43: m | H43: 3000 | J43: =TRUNC(IF(F43="SERV",I43*(1+$L$5/100),I43*(1+$L$6/100)),2) -> 0 | K43: =TRUNC(H43*I43,2) -> 0 | L43: =TRUNC(J43*H43,2) -> 0 | N43: =L43/$L$56 ->  | O43: INCC
B44: 10 | E44: PROJETO EXECUTIVO
B45: 10.1 | C45: Composição Própria | D45: Codevasf | E45: Projeto Executivo | F45: SERV | G45: m² | H45: 210000 | J45: =TRUNC(IF(F45="SERV",I45*(1+$L$5/100),I45*(1+$L$6/100)),2) -> 0 | K45: =TRUNC(H45*I45,2) -> 0 | L45: =TRUNC(J45*H45,2) -> 0 | N45: =L45/$L$56 ->  | O45: incc
B46: 11 | E46: MOMENTO DE TRANSPORTE
B47: 11.1 | C47: 5914359 | D47: SICRO | E47: Transporte com caminhão basculante de 10 m³ - rodovia em leito natural | F47: SERV | G47: txkm | H47: 142087.09 | J47: =TRUNC(IF(F47="SERV",I47*(1+$L$5/100),I47*(1+$L$6/100)),2) -> 0 | K47: =TRUNC(H47*I47,2) -> 0 | L47: =TRUNC(J47*H47,2) -> 0 | N47: =L47/$L$56 ->  | O47: INCC
B48: 11.2 | C48: 5914374 | D48: SICRO | E48: Transporte com caminhão basculante de 10 m³ - rodovia em revestimento primário | F48: SERV | G48: txkm | H48: 142087.09 | J48: 0 | K48: 0 | L48: 0 | O48: INCC
B49: 11.3 | C49: 5914389 | D49: SICRO | E49: Transporte com caminhão basculante de 10 m³ - rodovia pavimentada | F49: SERV | G49: txkm | H49: 1136696.72 | J49: 0 | K49: 0 | L49: 0 | O49: INCC
B50: 11.4 | C50: 5914314 | D50: SICRO | E50: Transporte com caminhão basculante de 6 m³ - rodovia em leito natural | F50: SERV | G50: txkm | H50: 913.5 | J50: 0 | K50: 0 | L50: 0 | O50: INCC
B51: 11.5 | C51: 5914329 | D51: SICRO | E51: Transporte com caminhão basculante de 6 m³ - rodovia em revestimento primário | F51: SERV | G51: txkm | H51: 913.5 | J51: 0 | K51: 0 | L51: 0 | O51: INCC
B52: 11.6 | C52: 5914344 | D52: SICRO | E52: Transporte com caminhão basculante de 6 m³ - rodovia pavimentada | F52: SERV | G52: txkm | H52: 7308 | J52: 0 | K52: 0 | L52: 0 | O52: INCC
B53: 11.7 | C53: 5914449 | D53: SICRO | E53: Transporte com caminhão carroceria de 15 t - rodovia em leito natural | F53: SERV | G53: txkm | H53: 683.44 | J53: 0 | K53: 0 | L53: 0 | O53: INCC
B54: 11.8 | C54: 5914464 | D54: SICRO | E54: Transporte com caminhão carroceria de 15 t - rodovia em revestimento primário | F54: SERV | G54: txkm | H54: 683.44 | J54: 0 | K54: 0 | L54: 0 | O54: INCC
B55: 11.9 | C55: 5914479 | D55: SICRO | E55: Transporte com caminhão carroceria de 15 t - rodovia pavimentada | F55: SERV | G55: txkm | H55: 5467.53 | J55: 0 | K55: 0 | L55: 0 | O55: INCC
B56: x | C56: x | D56: x | E56: VALOR TOTAL DO SRP | F56: x | G56: x | H56: x | I56: x | K56: VALOR TOTAL DO SRP | L56: =(SUM(L9:L55)) -> 0
B58: QUANT. O valor da quantidade foi arredondado em 2 casas decimais. Esta coluna já está com as fórmulas e os valores não poderão ser alterados pelo proponente.
B59: VR.UNIT.S/BDI O valor da valor unitário sem BDI deverá ser arredondado em 2 casas decimais.
B60: PR. UNIT.C/BDI O valor do preço unitário com BDI será obtido ao TRUNCAR, em duas casas decimais, a equação "VR.UNIT.S/BDI x (1+BDI/100)". Esta coluna já está com as fórmulas.
B61: C. TOT.S/BDI O valor do custo total sem BDI será obtido ao TRUNCAR, em duas casas decimais, a equação "QUANT. x VR.UNIT.S/BDI ". Esta coluna já está com as fórmulas.
B62: P. TOT.C/BDI O valor do custo total com BDI será obtido ao TRUNCAR, em duas casas decimais, a equação "QUANT. x PR.UNIT.C/BDI ". Esta coluna já está com as fórmulas.

Sheet CRONOGRAMA
A2: ='RESUMO MODULO TOTAL'!$C$5 -> Execução De Serviços De Pavimentação Com Tratamento Superficial Duplo Em Vias De Municípios Diversos Inseridos Na Área De Atuação Da Codevasf, No Estado De Goiás
A3: Cronograma Físico e Financeiro
A4: Item | B4: Descrição | C4: Total Por Etapa | D4: 30 DIAS | E4: 60 DIAS | F4: 90 DIAS | G4: 120 DIAS | H4: 150 DIAS | I4: 180 DIAS | J4: 210 DIAS | K4: 240 DIAS | L4: 270 DIAS | M4: 300 DIAS | N4: 330 DIAS | O4: 360 DIAS
A5: 1 | B5: MOBILIZAÇÃO/DESMOBILIZAÇÃO | C5: =SUM(D5:O5) -> 1 | D5: 0.5 | O5: 0.5
C6: =SUM('RESUMO MODULO TOTAL'!L11:L12) -> 0 | D6: =$C$6*D5 -> 0 | O6: =$C$6*O5 -> 0 | P6: =SUM(D6:O6) -> 0 | Q6: =IF(P6=C6,"OK","") -> OK
A7: 2 | B7: INSTALAÇÃO DE CANTEIRO | C7: =SUM(D7:O7) -> 1 | D7: 0.1 | E7: 0.5 | F7: 0.4
C8: =SUM('RESUMO MODULO TOTAL'!L14:L15) -> 0 | D8: =$C$8*D7 -> 0 | E8: =$C$8*E7 -> 0 | F8: 0 | G8: 0 | H8: 0 | I8: 0 | J8: 0 | K8: 0 | L8: 0 | M8: 0 | N8: 0 | O8: 0 | P8: =SUM(D8:O8) -> 0 | Q8: =IF(P8=C8,"OK","") -> OK
A9: 3 | B9: ADMINISTRAÇÃO LOCAL DA OBRA | C9: =SUM(D9:O9) ->  | D9: =(D6+D8+D12+D14+D16+D18+D20+D22+D24+D26)/($O$33-$C$10) ->  | O9: =(O6+O8+O12+O14+O16+O18+O20+O22+O24+O26)/($O$33-$C$10) -> 
C10: =SUM('RESUMO MODULO TOTAL'!L17) -> 0 | D10: =$C$10*D9 ->  | E10: =$C$10*E9 ->  | F10: =$C$10*F9 ->  | P10: =SUM(D10:O10) ->  | Q10: =IF(P10=C10,"OK","") -> 
A11: 4 | B11: TERRAPLANAGEM | C11: =SUM(D11:O11) -> 1 | F11: =1/4 -> 0.25 | G11: =1/4 -> 0.25 | H11: =1/4 -> 0.25 | I11: =1/4 -> 0.25
C12: =SUM('RESUMO MODULO TOTAL'!L19:L20) -> 0 | D12: =$C$14*D11 -> 0 | E12: =$C$12*E11 -> 0 | F12: 0 | G12: 0 | H12: 0 | I12: 0 | J12: 0 | K12: 0 | L12: 0 | M12: 0 | N12: 0 | O12: 0 | P12: =SUM(D12:O12) -> 0 | Q12: =IF(P12=C12,"OK","") -> OK
A13: 5 | B13: PAVIMENTAÇÃO | C13: =SUM(D13:O13) -> 1 | I13: =1/6 -> 0.1666666667 | J13: =1/6 -> 0.1666666667 | K13: 0.1666666667 | L13: 0.1666666667 | M13: 0.1666666667 | N13: 0.1666666667
C14: =SUM('RESUMO MODULO TOTAL'!L22:L27) -> 0 | D14: =$C$14*D13 -> 0 | E14: =$C$14*E13 -> 0 | F14: 0 | G14: 0 | H14: 0 | I14: 0 | J14: 0 | K14: 0 | L14: 0 | M14: 0 | N14: 0 | O14: 0 | P14: =SUM(D14:O14) -> 0 | Q14: =IF(P14=C14,"OK","") -> OK
A15: 6 | B15: AQUISIÇÃO E TRANSPORTE DE MATERIAL BETUMINOSO | C15: =SUM(D15:O15) -> 1 | I15: =1/6 -> 0.1666666667 | J15: 0.1666666667 | K15: 0.1666666667 | L15: 0.1666666667 | M15: 0.1666666667 | N15: 0.1666666667
C16: =SUM('RESUMO MODULO TOTAL'!L29:L32) -> 0 | D16: =$C$16*D15 -> 0 | E16: =$C$16*E15 -> 0 | F16: 0 | G16: 0 | H16: 0 | I16: 0 | J16: 0 | K16: 0 | L16: 0 | M16: 0 | N16: 0 | O16: 0 | P16: =SUM(D16:O16) -> 0 | Q16: =IF(P16=C16,"OK","") -> OK
A17: 7 | B17: SINALIZAÇÃO | C17: =SUM(D17:O17) -> 1 | O17: 1
C18: =SUM('RESUMO MODULO TOTAL'!L34:L37) -> 0 | D18: =$C$18*D17 -> 0 | E18: =$C$18*E17 -> 0 | F18: 0 | G18: 0 | H18: 0 | I18: 0 | J18: 0 | K18: 0 | L18: 0 | M18: 0 | N18: 0 | O18: 0 | P18: =SUM(D18:O18) -> 0 | Q18: =IF(P18=C18,"OK","") -> OK
A19: 8 | B19: DRENAGEM | C19: =SUM(D19:O19) -> 1 | N19: 0.5 | O19: 0.5
C20: =SUM('RESUMO MODULO TOTAL'!L39:L41) -> 0 | D20: =$C$20*D19 -> 0 | E20: =$C$20*E19 -> 0 | F20: 0 | G20: 0 | H20: 0 | I20: 0 | J20: 0 | K20: 0 | L20: 0 | M20: 0 | N20: 0 | O20: 0 | P20: =SUM(D20:O20) -> 0 | Q20: =IF(P20=C20,"OK","") -> OK
A21: 9 | B21: SERVIÇOS COMPLEMENTARES | C21: =SUM(D21:O21) -> 1 | H21: 0.5 | I21: 0.5
C22: =SUM('RESUMO MODULO TOTAL'!L43) -> 0 | D22: =$C$22*D21 -> 0 | E22: =$C$22*E21 -> 0 | F22: 0 | G22: 0 | H22: 0 | I22: 0 | J22: 0 | K22: 0 | L22: 0 | M22: 0 | N22: 0 | O22: 0 | P22: =SUM(D22:O22) -> 0 | Q22: =IF(P22=C22,"OK","") -> OK
A23: 10 | B23: PROJETO EXECUTIVO | C23: =SUM(D23:O23) -> 1 | D23: 1
C24: ='RESUMO MODULO TOTAL'!L45 -> 0 | D24: =$C$24*D23 -> 0 | E24: =$C$24*E23 -> 0 | F24: 0 | G24: 0 | H24: 0 | I24: 0 | J24: 0 | K24: 0 | L24: 0 | M24: 0 | N24: 0 | O24: 0 | P24: =SUM(D24:O24) -> 0 | Q24: =IF(P24=C24,"OK","") -> OK
A25: 11 | B25: MOMENTO DE TRANSPORTE | C25: =SUM(D25:O25) -> 1 | F25: 0.1 | G25: 0.1 | H25: 0.1 | I25: 0.15 | J25: 0.1 | K25: 0.1 | L25: 0.1 | M25: 0.1 | N25: 0.1 | O25: 0.05
C26: =SUM('RESUMO MODULO TOTAL'!L47:L55) -> 0 | D26: =$C$26*D25 -> 0 | E26: =$C$26*E25 -> 0 | F26: 0 | G26: 0 | H26: 0 | I26: 0 | J26: 0 | K26: 0 | L26: 0 | M26: 0 | N26: 0 | O26: 0 | P26: =SUM(D26:O26) -> 0 | Q26: =IF(P26=C26,"OK","") -> OK
A28: Porcentagem | D28: =SUM(D6+D8+D10+D12+D14+D16+D18+D20+D22+D24+D26)/$O$33 ->  | E28: =SUM(E6+E8+E10+E12+E14+E16+E18+E20+E22+E24+E26)/$O$33 ->  | O28: =SUM(O6+O8+O10+O12+O14+O16+O18+O20+O22+O24+O26)/$O$33 -> 
A29: Custo | D29: =$O$33*D28 ->  | E29: =$O$33*E28 ->  | F29: =$O$33*F28 -> 
A30: Porcentagem Acumulado | D30: =D28 ->  | E30: =D30+E28 ->  | F30: =E30+F28 ->  | O30: =N30+O28 -> 
A31: Custo Acumulado | D31: =D29 ->  | E31: =D31+E29 -> 
D33: Total Geral | N33: R$ | O33: =C6+C8+C10+C12+C14+C16+C18+C20+C22+C24+C26 -> 0
O35: =O31-O33 -> 
O36: ='RESUMO MODULO TOTAL'!L56-O33 -> 0

Sheet CCU
A1: . | B1: . | C1: . | D1: . | E1: . | F1: . | G1: . | H1: . | I1: . | J1: Obs | M1: repetição | N1: https://www.gov.br/dnit/pt-br/assuntos/planejamento-e-pesquisa/custos-e-pagamentos/custos-e-pagamentos-dnit/sistemas-de-custos/sicro_antiga/centro-oeste/centro-oeste
A2: CGCIT | I2: DNIT | J2: Principal | K2: =IF(LEFT(A2,2)="E9",A2,"") ->  | M2: 2003943-A | N2: Meio-fio de concreto - MFC 03 moldado no local com extrusora e concreto betoneira e lançamento manual - areia e brita comerciais
A3: SISTEMA DE CUSTOS REFERENCIAIS DE OBRAS - SICRO | D3: Goiás | J3: Principal | K3: =IF(LEFT(A3,2)="E9",A3,"") ->  | M3: 2003943-A | N3: Meio-fio de concreto - MFC 03 moldado no local com extrusora e concreto betoneira e lançamento manual - areia e brita comerciais
A4: Custo Unitário de Referência | D4: Abril/2024 | G4: Produção da equipe | H4: 74.11 | I4: m | J4: Principal | M4: 2003943-A | N4: Meio-fio de concreto - MFC 03 moldado no local com extrusora e concreto betoneira e lançamento manual - areia e brita comerciais
A5: 2003943-A | B5: Meio-fio de concreto - MFC 03 moldado no local com extrusora e concreto betoneira e lançamento manual - areia e brita comerciais | H5: Valores em reais (R$) | J5: Principal | M5: 2003943-A | N5: Meio-fio de concreto - MFC 03 moldado no local com extrusora e concreto betoneira e lançamento manual - areia e brita comerciais
A6: A - EQUIPAMENTOS | C6: Quantidade | D6: Utilização | F6: Custo Horário | I6: Custo | J6: Principal | M6: 2003943-A | N6: Meio-fio de concreto - MFC 03 moldado no local com extrusora e concreto betoneira e lançamento manual - areia e brita comerciais
D7: Operativa | E7: Improdutiva | F7: Produtivo | G7: Improdutivo | I7: Horário Total | J7: Principal | M7: 2003943-A | N7: Meio-fio de concreto - MFC 03 moldado no local com extrusora e concreto betoneira e lançamento manual - areia e brita comerciais
A8: E9103 | B8: Extrusora para meio-fio de concreto - 10,44 kW | C8: 1 | D8: 1 | E8: 0 | J8: Principal | K8: E9103 | L8: 1 | M8: 2003943-A | N8: Meio-fio de concreto - MFC 03 moldado no local com extrusora e concreto betoneira e lançamento manual - areia e brita comerciais
G9: Custo horário total de equipamentos | J9: Principal | M9: 2003943-A | N9: Meio-fio de concreto - MFC 03 moldado no local com extrusora e concreto betoneira e lançamento manual - areia e brita comerciais
A10: B - MÃO DE OBRA | C10: Quantidade | D10: Unidade | F10: Custo Horário | G10: Custo Horário Total | J10: Principal | M10: 2003943-A | N10: Meio-fio de concreto - MFC 03 moldado no local com extrusora e concreto betoneira e lançamento manual - areia e brita comerciais
A11: P9821 | B11: Pedreiro | C11: 1 | D11: h | J11: Principal | M11: 2003943-A | N11: Meio-fio de concreto - MFC 03 moldado no local com extrusora e concreto betoneira e lançamento manual - areia e brita comerciais
A12: P9824 | B12: Servente | C12: 2 | D12: h | J12: Principal | M12: 2003943-A | N12: Meio-fio de concreto - MFC 03 moldado no local com extrusora e concreto betoneira e lançamento manual - areia e brita comerciais
G13: Custo horário total de mão de obra | J13: Principal | M13: 2003943-A | N13: Meio-fio de concreto - MFC 03 moldado no local com extrusora e concreto betoneira e lançamento manual - areia e brita comerciais
G14: Custo horário total de execução | J14: Principal | M14: 2003943-A | N14: Meio-fio de concreto - MFC 03 moldado no local com extrusora e concreto betoneira e lançamento manual - areia e brita comerciais
G15: Custo unitário de execução | J15: Principal | M15: 2003943-A | N15: Meio-fio de concreto - MFC 03 moldado no local com extrusora e concreto betoneira e lançamento manual - areia e brita comerciais
G16: Custo do FIC | J16: Principal | M16: 2003943-A | N16: Meio-fio de concreto - MFC 03 moldado no local com extrusora e concreto betoneira e lançamento manual - areia e brita comerciais
G17: Custo do FIT | J17: Principal | M17: 2003943-A | N17: Meio-fio de concreto - MFC 03 moldado no local com extrusora e concreto betoneira e lançamento manual - areia e brita comerciais
A18: C - MATERIAL | C18: Quantidade | D18: Unidade | F18: Preço Unitário | G18: Custo Unitário | J18: Principal | M18: 2003943-A | N18: Meio-fio de concreto - MFC 03 moldado no local com extrusora e concreto betoneira e lançamento manual - areia e brita comerciais
G19: Custo unitário total de material | J19: Principal | M19: 2003943-A | N19: Meio-fio de concreto - MFC 03 moldado no local com extrusora e concreto betoneira e lançamento manual - areia e brita comerciais
A20: D - ATIVIDADES AUXILIARES | C20: Quantidade | D20: Unidade | F20: Custo Unitário | G20: Custo Unitário | J20: Principal | M20: 2003943-A | N20: Meio-fio de concreto - MFC 03 moldado no local com extrusora e concreto betoneira e lançamento manual - areia e brita comerciais
A21: 1107892 | B21: Concreto fck = 20 MPa - confecção em betoneira e lançamento manual - areia e brita comerciais | C21: 0.042 | D21: m³ | J21: Principal | M21: 2003943-A | N21: Meio-fio de concreto - MFC 03 moldado no local com extrusora e concreto betoneira e lançamento manual - areia e brita comerciais
A22: 2003842 | B22: Enchimento de junta de concreto com argamassa asfáltica de densidade 1.700 kg/m³ - espessura de 1 cm | C22: 0.0595 | D22: kg | J22: Principal | M22: 2003943-A | N22: Meio-fio de concreto - MFC 03 moldado no local com extrusora e concreto betoneira e lançamento manual - areia e brita comerciais
A23: 4805750 | B23: Escavação manual em material de 1ª categoria na profundidade de até 1 m | C23: 0.03 | D23: m³ | J23: Principal | M23: 2003943-A | N23: Meio-fio de concreto - MFC 03 moldado no local com extrusora e concreto betoneira e lançamento manual - areia e brita comerciais
G24: Custo total de atividades auxiliares | J24: Principal | M24: 2003943-A | N24: Meio-fio de concreto - MFC 03 moldado no local com extrusora e concreto betoneira e lançamento manual - areia e brita comerciais
G25: Subtotal | J25: Principal | M25: 2003943-A | N25: Meio-fio de concreto - MFC 03 moldado no local com extrusora e concreto betoneira e lançamento manual - areia e brita comerciais
A26: E - TEMPO FIXO | C26: Código | D26: Quantidade | E26: Unidade | G26: Custo Unitário | H26: Custo Unitário | J26: Principal | M26: 2003943-A | N26: Meio-fio de concreto - MFC 03 moldado no local com extrusora e concreto betoneira e lançamento manual - areia e brita comerciais
G27: Custo unitário total de tempo fixo | J27: Principal | M27: 2003943-A | N27: Meio-fio de concreto - MFC 03 moldado no local com extrusora e concreto betoneira e lançamento manual - areia e brita comerciais
A28: F - MOMENTO DE TRANSPORTE | C28: Quantidade | D28: Unidade | E28: DMT | I28: Custo Unitário | J28: Principal | M28: 2003943-A | N28: Meio-fio de concreto - MFC 03 moldado no local com extrusora e concreto betoneira e lançamento manual - areia e brita comerciais
E29: LN | F29: RP | G29: P | J29: Principal | M29: 2003943-A | N29: Meio-fio de concreto - MFC 03 moldado no local com extrusora e concreto betoneira e lançamento manual - areia e brita comerciais
G30: Custo unitário total de transporte | J30: Principal | M30: 2003943-A | N30: Meio-fio de concreto - MFC 03 moldado no local com extrusora e concreto betoneira e lançamento manual - areia e brita comerciais
E31: Custo unitário direto total | I31: =ROUND(I25,2) -> 0 | J31: Principal | M31: 2003943-A | N31: Meio-fio de concreto - MFC 03 moldado no local com extrusora e concreto betoneira e lançamento manual - areia e brita comerciais
A32: CGCIT | I32: DNIT | J32: Principal | M32: 2003947-A | N32: Meio-fio de concreto - MFC 05 moldado no local com extrusora e concreto betoneira e lançamento manual - areia e brita comerciais
A33: SISTEMA DE CUSTOS REFERENCIAIS DE OBRAS - SICRO | D33: Goiás | J33: Principal | M33: 2003947-A | N33: Meio-fio de concreto - MFC 05 moldado no local com extrusora e concreto betoneira e lançamento manual - areia e brita comerciais
A34: Custo Unitário de Referência | D34: Abril/2024 | G34: Produção da equipe | H34: 93.19 | I34: m | J34: Principal | M34: 2003947-A | N34: Meio-fio de concreto - MFC 05 moldado no local com extrusora e concreto betoneira e lançamento manual - areia e brita comerciais
A35: 2003947 | B35: Meio-fio de concreto - MFC 05 moldado no local com extrusora e concreto betoneira e lançamento manual - areia e brita comerciais | H35: Valores em reais (R$) | J35: Principal | M35: 2003947-A | N35: Meio-fio de concreto - MFC 05 moldado no local com extrusora e concreto betoneira e lançamento manual - areia e brita comerciais
A36: A - EQUIPAMENTOS | C36: Quantidade | D36: Utilização | F36: Custo Horário | I36: Custo | J36: Principal | M36: 2003947-A | N36: Meio-fio de concreto - MFC 05 moldado no local com extrusora e concreto betoneira e lançamento manual - areia e brita comerciais
D37: Operativa | E37: Improdutiva | F37: Produtivo | G37: Improdutivo | I37: Horário Total | J37: Principal | M37: 2003947-A | N37: Meio-fio de concreto - MFC 05 moldado no local com extrusora e concreto betoneira e lançamento manual - areia e brita comerciais
A38: E9103 | B38: Extrusora para meio-fio de concreto - 10,44 kW | C38: 1 | D38: 1 | E38: 0 | J38: Principal | K38: E9103 | M38: 2003947-A | N38: Meio-fio de concreto - MFC 05 moldado no local com extrusora e concreto betoneira e lançamento manual - areia e brita comerciais
G39: Custo horário total de equipamentos | J39: Principal | M39: 2003947-A | N39: Meio-fio de concreto - MFC 05 moldado no local com extrusora e concreto betoneira e lançamento manual - areia e brita comerciais
A40: B - MÃO DE OBRA | C40: Quantidade | D40: Unidade | F40: Custo Horário | G40: Custo Horário Total | J40: Principal | M40: 2003947-A | N40: Meio-fio de concreto - MFC 05 moldado no local com extrusora e concreto betoneira e lançamento manual - areia e brita comerciais
A41: P9821 | B41: Pedreiro | C41: 1 | D41: h | J41: Principal | M41: 2003947-A | N41: Meio-fio de concreto - MFC 05 moldado no local com extrusora e concreto betoneira e lançamento manual - areia e brita comerciais
A42: P9824 | B42: Servente | C42: 2 | D42: h | J42: Principal | M42: 2003947-A | N42: Meio-fio de concreto - MFC 05 moldado no local com extrusora e concreto betoneira e lançamento manual - areia e brita comerciais
G43: Custo horário total de mão de obra | J43: Principal | M43: 2003947-A | N43: Meio-fio de concreto - MFC 05 moldado no local com extrusora e concreto betoneira e lançamento manual - areia e brita comerciais
G44: Custo horário total de execução | J44: Principal | M44: 2003947-A | N44: Meio-fio de concreto - MFC 05 moldado no local com extrusora e concreto betoneira e lançamento manual - areia e brita comerciais
G45: Custo unitário de execução | J45: Principal | M45: 2003947-A | N45: Meio-fio de concreto - MFC 05 moldado no local com extrusora e concreto betoneira e lançamento manual - areia e brita comerciais
G46: Custo do FIC | J46: Principal | M46: 2003947-A | N46: Meio-fio de concreto - MFC 05 moldado no local com extrusora e concreto betoneira e lançamento manual - areia e brita comerciais
G47: Custo do FIT | J47: Principal | M47: 2003947-A | N47: Meio-fio de concreto - MFC 05 moldado no local com extrusora e concreto betoneira e lançamento manual - areia e brita comerciais
A48: C - MATERIAL | C48: Quantidade | D48: Unidade | F48: Preço Unitário | G48: Custo Unitário | J48: Principal | M48: 2003947-A | N48: Meio-fio de concreto - MFC 05 moldado no local com extrusora e concreto betoneira e lançamento manual - areia e brita comerciais
G49: Custo unitário total de material | J49: Principal | M49: 2003947-A | N49: Meio-fio de concreto - MFC 05 moldado no local com extrusora e concreto betoneira e lançamento manual - areia e brita comerciais
A50: D - ATIVIDADES AUXILIARES | C50: Quantidade | D50: Unidade | F50: Custo Unitário | G50: Custo Unitário | J50: Principal | M50: 2003947-A | N50: Meio-fio de concreto - MFC 05 moldado no local com extrusora e concreto betoneira e lançamento manual - areia e brita comerciais
A51: 1107892 | B51: Concreto fck = 20 MPa - confecção em betoneira e lançamento manual - areia e brita comerciais | C51: 0.0334 | D51: m³ | J51: Principal | M51: 2003947-A | N51: Meio-fio de concreto - MFC 05 moldado no local com extrusora e concreto betoneira e lançamento manual - areia e brita comerciais
A52: 2003842 | B52: Enchimento de junta de concreto com argamassa asfáltica de densidade 1.700 kg/m³ - espessura de 1 cm | C52: 0.0473 | D52: kg | J52: Principal | M52: 2003947-A | N52: Meio-fio de concreto - MFC 05 moldado no local com extrusora e concreto betoneira e lançamento manual - areia e brita comerciais
A53: 4805750 | B53: Escavação manual em material de 1ª categoria na profundidade de até 1 m | C53: 0.018 | D53: m³ | J53: Principal | M53: 2003947-A | N53: Meio-fio de concreto - MFC 05 moldado no local com extrusora e concreto betoneira e lançamento manual - areia e brita comerciais
G54: Custo total de atividades auxiliares | J54: Principal | M54: 2003947-A | N54: Meio-fio de concreto - MFC 05 moldado no local com extrusora e concreto betoneira e lançamento manual - areia e brita comerciais
G55: Subtotal | J55: Principal | M55: 2003947-A | N55: Meio-fio de concreto - MFC 05 moldado no local com extrusora e concreto betoneira e lançamento manual - areia e brita comerciais
A56: E - TEMPO FIXO | C56: Código | D56: Quantidade | E56: Unidade | G56: Custo Unitário | H56: Custo Unitário | J56: Principal | M56: 2003947-A | N56: Meio-fio de concreto - MFC 05 moldado no local com extrusora e concreto betoneira e lançamento manual - areia e brita comerciais
G57: Custo unitário total de tempo fixo | J57: Principal | M57: 2003947-A | N57: Meio-fio de concreto - MFC 05 moldado no local com extrusora e concreto betoneira e lançamento manual - areia e brita comerciais
A58: F - MOMENTO DE TRANSPORTE | C58: Quantidade | D58: Unidade | E58: DMT | I58: Custo Unitário | J58: Principal | M58: 2003947-A | N58: Meio-fio de concreto - MFC 05 moldado no local com extrusora e concreto betoneira e lançamento manual - areia e brita comerciais
E59: LN | F59: RP | G59: P | J59: Principal | M59: 2003947-A | N59: Meio-fio de concreto - MFC 05 moldado no local com extrusora e concreto betoneira e lançamento manual - areia e brita comerciais
G60: Custo unitário total de transporte | J60: Principal | M60: 2003947-A | N60: Meio-fio de concreto - MFC 05 moldado no local com extrusora e concreto betoneira e lançamento manual - areia e brita comerciais
E61: Custo unitário direto total | J61: Principal | M61: 2003947-A | N61: Meio-fio de concreto - MFC 05 moldado no local com extrusora e concreto betoneira e lançamento manual - areia e brita comerciais
A62: CGCIT | I62: DNIT | J62: Principal | M62: 4011209 | N62: Regularização do subleito
A63: SISTEMA DE CUSTOS REFERENCIAIS DE OBRAS - SICRO | D63: Goiás | G63: FIC | H63: 0.02725 | J63: Principal | M63: 4011209 | N63: Regularização do subleito
A64: Custo Unitário de Referência | D64: Abril/2024 | G64: Produção da equipe | H64: 1121.33 | I64: m² | J64: Principal | M64: 4011209 | N64: Regularização do subleito
A65: 4011209 | B65: Regularização do subleito | H65: Valores em reais (R$) | J65: Principal | M65: 4011209 | N65: Regularização do subleito
A66: A - EQUIPAMENTOS | C66: Quantidade | D66: Utilização | F66: Custo Horário | I66: Custo | J66: Principal | M66: 4011209 | N66: Regularização do subleito
D67: Operativa | E67: Improdutiva | F67: Produtivo | G67: Improdutivo | I67: Horário Total | J67: Principal | K67: =IF(LEFT(A67,2)="E9",A67,"") ->  | M67: 4011209 | N67: Regularização do subleito
A68: E9571 | B68: Caminhão tanque com capacidade de 10.000 l - 188 kW | C68: 2 | D68: 0.51 | E68: 0.49 | J68: Principal | K68: E9571 | L68: 2 | M68: 4011209 | N68: Regularização do subleito
A69: E9518 | B69: Grade de 24 discos rebocável de D = 60 cm (24") | C69: 1 | D69: 0.69 | E69: 0.31 | J69: Principal | K69: E9518 | L69: 1 | M69: 4011209 | N69: Regularização do subleito
A70: E9524 | B70: Motoniveladora - 93 kW | C70: 1 | D70: 0.71 | E70: 0.29 | J70: Principal | K70: E9524 | L70: 1 | M70: 4011209 | N70: Regularização do subleito
A71: E9762 | B71: Rolo compactador de pneus autopropelido de 27 t - 85 kW | C71: 1 | D71: 0.96 | E71: 0.04 | J71: Principal | K71: E9762 | L71: 1 | M71: 4011209 | N71: Regularização do subleito
A72: E9685 | B72: Rolo compactador pé de carneiro vibratório autopropelido por pneus de 11,6 t - 82 kW | C72: 1 | D72: 1 | E72: 0 | J72: Principal | K72: E9685 | L72: 1 | M72: 4011209 | N72: Regularização do subleito
A73: E9577 | B73: Trator agrícola sobre pneus - 77 kW | C73: 1 | D73: 0.69 | E73: 0.31 | J73: Principal | K73: E9577 | L73: 1 | M73: 4011209 | N73: Regularização do subleito
G74: Custo horário total de equipamentos | J74: Principal | M74: 4011209 | N74: Regularização do subleito
A75: B - MÃO DE OBRA | C75: Quantidade | D75: Unidade | F75: Custo Horário | G75: Custo Horário Total | J75: Principal | M75: 4011209 | N75: Regularização do subleito
A76: P9824 | B76: Servente | C76: 1 | D76: h | J76: Principal | M76: 4011209 | N76: Regularização do subleito
G77: Custo horário total de mão de obra | J77: Principal | M77: 4011209 | N77: Regularização do subleito
G78: Custo horário total de execução | J78: Principal | M78: 4011209 | N78: Regularização do subleito
G79: Custo unitário de execução | J79: Principal | M79: 4011209 | N79: Regularização do subleito
G80: Custo do FIC | J80: Principal | M80: 4011209 | N80: Regularização do subleito
G81: Custo do FIT | J81: Principal | M81: 4011209 | N81: Regularização do subleito
A82: C - MATERIAL | C82: Quantidade | D82: Unidade | F82: Preço Unitário | G82: Custo Unitário | J82: Principal | M82: 4011209 | N82: Regularização do subleito
G83: Custo unitário total de material | J83: Principal | M83: 4011209 | N83: Regularização do subleito
A84: D - ATIVIDADES AUXILIARES | C84: Quantidade | D84: Unidade | F84: Custo Unitário | G84: Custo Unitário | J84: Principal | M84: 4011209 | N84: Regularização do subleito
G85: Custo total de atividades auxiliares | J85: Principal | M85: 4011209 | N85: Regularização do subleito
G86: Subtotal | J86: Principal | M86: 4011209 | N86: Regularização do subleito
A87: E - TEMPO FIXO | C87: Código | D87: Quantidade | E87: Unidade | G87: Custo Unitário | H87: Custo Unitário | J87: Principal | M87: 4011209 | N87: Regularização do subleito
G88: Custo unitário total de tempo fixo | J88: Principal | M88: 4011209 | N88: Regularização do subleito
A89: F - MOMENTO DE TRANSPORTE | C89: Quantidade | D89: Unidade | E89: DMT | I89: Custo Unitário | J89: Principal | M89: 4011209 | N89: Regularização do subleito
E90: LN | F90: RP | G90: P | J90: Principal | M90: 4011209 | N90: Regularização do subleito
G91: Custo unitário total de transporte | J91: Principal | M91: 4011209 | N91: Regularização do subleito
E92: Custo unitário direto total | J92: Principal | M92: 4011209 | N92: Regularização do subleito
A93: CGCIT | I93: DNIT | J93: Principal | M93: 4011233 | N93: Sub-base estabilizada granulometricamente com mistura solo brita (70% - 30%) na pista com material de jazida e brita comercial
A94: SISTEMA DE CUSTOS REFERENCIAIS DE OBRAS - SICRO | D94: Goiás | G94: FIC | H94: 0.02725 | J94: Principal | M94: 4011233 | N94: Sub-base estabilizada granulometricamente com mistura solo brita (70% - 30%) na pista com material de jazida e brita comercial
A95: Custo Unitário de Referência | D95: Abril/2024 | G95: Produção da equipe | H95: 150.88 | I95: m³ | J95: Principal | M95: 4011233 | N95: Sub-base estabilizada granulometricamente com mistura solo brita (70% - 30%) na pista com material de jazida e brita comercial
A96: 4011233 | B96: Sub-base estabilizada granulometricamente com mistura solo brita (70% - 30%) na pista com material de jazida e brita comercial | H96: Valores em reais (R$) | J96: Principal | M96: 4011233 | N96: Sub-base estabilizada granulometricamente com mistura solo brita (70% - 30%) na pista com material de jazida e brita comercial
A97: A - EQUIPAMENTOS | C97: Quantidade | D97: Utilização | F97: Custo Horário | I97: Custo | J97: Principal | M97: 4011233 | N97: Sub-base estabilizada granulometricamente com mistura solo brita (70% - 30%) na pista com material de jazida e brita comercial
D98: Operativa | E98: Improdutiva | F98: Produtivo | G98: Improdutivo | I98: Horário Total | J98: Principal | M98: 4011233 | N98: Sub-base estabilizada granulometricamente com mistura solo brita (70% - 30%) na pista com material de jazida e brita comercial
A99: E9571 | B99: Caminhão tanque com capacidade de 10.000 l - 188 kW | C99: 1 | D99: 0.83 | E99: 0.17 | J99: Principal | K99: E9571 | M99: 4011233 | N99: Sub-base estabilizada granulometricamente com mistura solo brita (70% - 30%) na pista com material de jazida e brita comercial
A100: E9518 | B100: Grade de 24 discos rebocável de D = 60 cm (24") | C100: 1 | D100: 0.62 | E100: 0.38 | J100: Principal | K100: E9518 | M100: 4011233 | N100: Sub-base estabilizada granulometricamente com mistura solo brita (70% - 30%) na pista com material de jazida e brita comercial
A101: E9524 | B101: Motoniveladora - 93 kW | C101: 1 | D101: 1 | E101: 0 | J101: Principal | K101: E9524 | M101: 4011233 | N101: Sub-base estabilizada granulometricamente com mistura solo brita (70% - 30%) na pista com material de jazida e brita comercial
A102: E9762 | B102: Rolo compactador de pneus autopropelido de 27 t - 85 kW | C102: 1 | D102: 0.65 | E102: 0.35 | J102: Principal | K102: E9762 | M102: 4011233 | N102: Sub-base estabilizada granulometricamente com mistura solo brita (70% - 30%) na pista com material de jazida e brita comercial
A103: E9685 | B103: Rolo compactador pé de carneiro vibratório autopropelido por pneus de 11,6 t - 82 kW | C103: 1 | D103: 0.67 | E103: 0.33 | J103: Principal | K103: E9685 | M103: 4011233 | N103: Sub-base estabilizada granulometricamente com mistura solo brita (70% - 30%) na pista com material de jazida e brita comercial
A104: E9577 | B104: Trator agrícola sobre pneus - 77 kW | C104: 1 | D104: 0.62 | E104: 0.38 | J104: Principal | K104: E9577 | M104: 4011233 | N104: Sub-base estabilizada granulometricamente com mistura solo brita (70% - 30%) na pista com material de jazida e brita comercial
G105: Custo horário total de equipamentos | J105: Principal | M105: 4011233 | N105: Sub-base estabilizada granulometricamente com mistura solo brita (70% - 30%) na pista com material de jazida e brita comercial
A106: B - MÃO DE OBRA | C106: Quantidade | D106: Unidade | F106: Custo Horário | G106: Custo Horário Total | J106: Principal | M106: 4011233 | N106: Sub-base estabilizada granulometricamente com mistura solo brita (70% - 30%) na pista com material de jazida e brita comercial
A107: P9824 | B107: Servente | C107: 1 | D107: h | J107: Principal | M107: 4011233 | N107: Sub-base estabilizada granulometricamente com mistura solo brita (70% - 30%) na pista com material de jazida e brita comercial
G108: Custo horário total de mão de obra | J108: Principal | M108: 4011233 | N108: Sub-base estabilizada granulometricamente com mistura solo brita (70% - 30%) na pista com material de jazida e brita comercial
G109: Custo horário total de execução | J109: Principal | M109: 4011233 | N109: Sub-base estabilizada granulometricamente com mistura solo brita (70% - 30%) na pista com material de jazida e brita comercial
G110: Custo unitário de execução | J110: Principal | M110: 4011233 | N110: Sub-base estabilizada granulometricamente com mistura solo brita (70% - 30%) na pista com material de jazida e brita comercial
G111: Custo do FIC | J111: Principal | M111: 4011233 | N111: Sub-base estabilizada granulometricamente com mistura solo brita (70% - 30%) na pista com material de jazida e brita comercial
G112: Custo do FIT | J112: Principal | M112: 4011233 | N112: Sub-base estabilizada granulometricamente com mistura solo brita (70% - 30%) na pista com material de jazida e brita comercial
A113: C - MATERIAL | C113: Quantidade | D113: Unidade | F113: Preço Unitário | G113: Custo Unitário | J113: Principal | M113: 4011233 | N113: Sub-base estabilizada granulometricamente com mistura solo brita (70% - 30%) na pista com material de jazida e brita comercial
A114: M0191 | B114: Brita 1 | C114: 0.4126 | D114: m³ | J114: Principal | M114: 4011233 | N114: Sub-base estabilizada granulometricamente com mistura solo brita (70% - 30%) na pista com material de jazida e brita comercial
G115: Custo unitário total de material | J115: Principal | M115: 4011233 | N115: Sub-base estabilizada granulometricamente com mistura solo brita (70% - 30%) na pista com material de jazida e brita comercial
A116: D - ATIVIDADES AUXILIARES | C116: Quantidade | D116: Unidade | F116: Custo Unitário | G116: Custo Unitário | J116: Principal | M116: 4011233 | N116: Sub-base estabilizada granulometricamente com mistura solo brita (70% - 30%) na pista com material de jazida e brita comercial
A117: 4016096 | B117: Escavação e carga de material de jazida com escavadeira hidráulica de 1,56 m³ | C117: 0.77019 | D117: m³ | J117: Principal | M117: 4011233 | N117: Sub-base estabilizada granulometricamente com mistura solo brita (70% - 30%) na pista com material de jazida e brita comercial
G118: Custo total de atividades auxiliares | J118: Principal | M118: 4011233 | N118: Sub-base estabilizada granulometricamente com mistura solo brita (70% - 30%) na pista com material de jazida e brita comercial
G119: Subtotal | J119: Principal | M119: 4011233 | N119: Sub-base estabilizada granulometricamente com mistura solo brita (70% - 30%) na pista com material de jazida e brita comercial
A120: E - TEMPO FIXO | C120: Código | D120: Quantidade | E120: Unidade | G120: Custo Unitário | H120: Custo Unitário | J120: Principal | M120: 4011233 | N120: Sub-base estabilizada granulometricamente com mistura solo brita (70% - 30%) na pista com material de jazida e brita comercial
A121: 4016096 | B121: Escavação e carga de material de jazida com escavadeira hidráulica de 1,56 m³ - Caminhão basculante 10 m³ | C121: 5914354 | D121: 1.44411 | E121: t | J121: Principal | M121: 4011233 | N121: Sub-base estabilizada granulometricamente com mistura solo brita (70% - 30%) na pista com material de jazida e brita comercial
A122: M0191 | B122: Brita 1 - Caminhão basculante 10 m³ | C122: 5914647 | D122: 0.6189 | E122: t | J122: Principal | M122: 4011233 | N122: Sub-base estabilizada granulometricamente com mistura solo brita (70% - 30%) na pista com material de jazida e brita comercial
G123: Custo unitário total de tempo fixo | J123: Principal | M123: 4011233 | N123: Sub-base estabilizada granulometricamente com mistura solo brita (70% - 30%) na pista com material de jazida e brita comercial
A124: F - MOMENTO DE TRANSPORTE | C124: Quantidade | D124: Unidade | E124: DMT | I124: Custo Unitário | J124: Principal | M124: 4011233 | N124: Sub-base estabilizada granulometricamente com mistura solo brita (70% - 30%) na pista com material de jazida e brita comercial
E125: LN | F125: RP | G125: P | J125: Principal | M125: 4011233 | N125: Sub-base estabilizada granulometricamente com mistura solo brita (70% - 30%) na pista com material de jazida e brita comercial
A126: 4016096 | B126: Escavação e carga de material de jazida com escavadeira hidráulica de 1,56 m³ - Caminhão basculante 10 m³ | C126: 1.44411 | D126: tkm | E126: 5914359 | F126: 5914374 | G126: 5914389 | J126: Principal | M126: 4011233 | N126: Sub-base estabilizada granulometricamente com mistura solo brita (70% - 30%) na pista com material de jazida e brita comercial
A127: M0191 | B127: Brita 1 - Caminhão basculante 10 m³ | C127: 0.6189 | D127: tkm | E127: 5914359 | F127: 5914374 | G127: 5914389 | J127: Principal | M127: 4011233 | N127: Sub-base estabilizada granulometricamente com mistura solo brita (70% - 30%) na pista com material de jazida e brita comercial
G128: Custo unitário total de transporte | J128: Principal | M128: 4011233 | N128: Sub-base estabilizada granulometricamente com mistura solo brita (70% - 30%) na pista com material de jazida e brita comercial
E129: Custo unitário direto total | J129: Principal | M129: 4011233 | N129: Sub-base estabilizada granulometricamente com mistura solo brita (70% - 30%) na pista com material de jazida e brita comercial
A130: CGCIT | I130: DNIT | J130: Principal | M130: 4011256 | N130: Base estabilizada granulometricamente com mistura solo brita (70% - 30%) na pista com material de jazida e brita comercial
A131: SISTEMA DE CUSTOS REFERENCIAIS DE OBRAS - SICRO | D131: Goiás | G131: FIC | H131: 0.02725 | J131: Principal | K131: =IF(LEFT(A131,2)="E9",A131,"") ->  | M131: 4011256 | N131: Base estabilizada granulometricamente com mistura solo brita (70% - 30%) na pista com material de jazida e brita comercial
A132: Custo Unitário de Referência | D132: Abril/2024 | G132: Produção da equipe | H132: 150.88 | I132: m³ | J132: Principal | M132: 4011256 | N132: Base estabilizada granulometricamente com mistura solo brita (70% - 30%) na pista com material de jazida e brita comercial
A133: 4011256 | B133: Base estabilizada granulometricamente com mistura solo brita (70% - 30%) na pista com material de jazida e brita comercial | H133: Valores em reais (R$) | J133: Principal | M133: 4011256 | N133: Base estabilizada granulometricamente com mistura solo brita (70% - 30%) na pista com material de jazida e brita comercial
A134: A - EQUIPAMENTOS | C134: Quantidade | D134: Utilização | F134: Custo Horário | I134: Custo | J134: Principal | M134: 4011256 | N134: Base estabilizada granulometricamente com mistura solo brita (70% - 30%) na pista com material de jazida e brita comercial
D135: Operativa | E135: Improdutiva | F135: Produtivo | G135: Improdutivo | I135: Horário Total | J135: Principal | M135: 4011256 | N135: Base estabilizada granulometricamente com mistura solo brita (70% - 30%) na pista com material de jazida e brita comercial
A136: E9571 | B136: Caminhão tanque com capacidade de 10.000 l - 188 kW | C136: 1 | D136: 0.83 | E136: 0.17 | J136: Principal | K136: E9571 | M136: 4011256 | N136: Base estabilizada granulometricamente com mistura solo brita (70% - 30%) na pista com material de jazida e brita comercial
A137: E9518 | B137: Grade de 24 discos rebocável de D = 60 cm (24") | C137: 1 | D137: 0.62 | E137: 0.38 | J137: Principal | K137: E9518 | M137: 4011256 | N137: Base estabilizada granulometricamente com mistura solo brita (70% - 30%) na pista com material de jazida e brita comercial
A138: E9524 | B138: Motoniveladora - 93 kW | C138: 1 | D138: 1 | E138: 0 | J138: Principal | K138: E9524 | M138: 4011256 | N138: Base estabilizada granulometricamente com mistura solo brita (70% - 30%) na pista com material de jazida e brita comercial
A139: E9762 | B139: Rolo compactador de pneus autopropelido de 27 t - 85 kW | C139: 1 | D139: 0.86 | E139: 0.14 | J139: Principal | K139: E9762 | M139: 4011256 | N139: Base estabilizada granulometricamente com mistura solo brita (70% - 30%) na pista com material de jazida e brita comercial
A140: E9685 | B140: Rolo compactador pé de carneiro vibratório autopropelido por pneus de 11,6 t - 82 kW | C140: 1 | D140: 0.9 | E140: 0.1 | J140: Principal | K140: E9685 | M140: 4011256 | N140: Base estabilizada granulometricamente com mistura solo brita (70% - 30%) na pista com material de jazida e brita comercial
A141: E9577 | B141: Trator agrícola sobre pneus - 77 kW | C141: 1 | D141: 0.62 | E141: 0.38 | J141: Principal | K141: E9577 | M141: 4011256 | N141: Base estabilizada granulometricamente com mistura solo brita (70% - 30%) na pista com material de jazida e brita comercial
G142: Custo horário total de equipamentos | J142: Principal | M142: 4011256 | N142: Base estabilizada granulometricamente com mistura solo brita (70% - 30%) na pista com material de jazida e brita comercial
A143: B - MÃO DE OBRA | C143: Quantidade | D143: Unidade | F143: Custo Horário | G143: Custo Horário Total | J143: Principal | M143: 4011256 | N143: Base estabilizada granulometricamente com mistura solo brita (70% - 30%) na pista com material de jazida e brita comercial
A144: P9824 | B144: Servente | C144: 1 | D144: h | J144: Principal | M144: 4011256 | N144: Base estabilizada granulometricamente com mistura solo brita (70% - 30%) na pista com material de jazida e brita comercial
G145: Custo horário total de mão de obra | J145: Principal | M145: 4011256 | N145: Base estabilizada granulometricamente com mistura solo brita (70% - 30%) na pista com material de jazida e brita comercial
G146: Custo horário total de execução | J146: Principal | M146: 4011256 | N146: Base estabilizada granulometricamente com mistura solo brita (70% - 30%) na pista com material de jazida e brita comercial
G147: Custo unitário de execução | J147: Principal | M147: 4011256 | N147: Base estabilizada granulometricamente com mistura solo brita (70% - 30%) na pista com material de jazida e brita comercial
G148: Custo do FIC | J148: Principal | M148: 4011256 | N148: Base estabilizada granulometricamente com mistura solo brita (70% - 30%) na pista com material de jazida e brita comercial
G149: Custo do FIT | J149: Principal | M149: 4011256 | N149: Base estabilizada granulometricamente com mistura solo brita (70% - 30%) na pista com material de jazida e brita comercial
A150: C - MATERIAL | C150: Quantidade | D150: Unidade | F150: Preço Unitário | G150: Custo Unitário | J150: Principal | M150: 4011256 | N150: Base estabilizada granulometricamente com mistura solo brita (70% - 30%) na pista com material de jazida e brita comercial
A151: M0191 | B151: Brita 1 | C151: 0.4126 | D151: m³ | J151: Principal | M151: 4011256 | N151: Base estabilizada granulometricamente com mistura solo brita (70% - 30%) na pista com material de jazida e brita comercial
G152: Custo unitário total de material | J152: Principal | M152: 4011256 | N152: Base estabilizada granulometricamente com mistura solo brita (70% - 30%) na pista com material de jazida e brita comercial
A153: D - ATIVIDADES AUXILIARES | C153: Quantidade | D153: Unidade | F153: Custo Unitário | G153: Custo Unitário | J153: Principal | M153: 4011256 | N153: Base estabilizada granulometricamente com mistura solo brita (70% - 30%) na pista com material de jazida e brita comercial
A154: 4016096 | B154: Escavação e carga de material de jazida com escavadeira hidráulica de 1,56 m³ | C154: 0.77019 | D154: m³ | J154: Principal | M154: 4011256 | N154: Base estabilizada granulometricamente com mistura solo brita (70% - 30%) na pista com material de jazida e brita comercial
G155: Custo total de atividades auxiliares | J155: Principal | M155: 4011256 | N155: Base estabilizada granulometricamente com mistura solo brita (70% - 30%) na pista com material de jazida e brita comercial
G156: Subtotal | J156: Principal | M156: 4011256 | N156: Base estabilizada granulometricamente com mistura solo brita (70% - 30%) na pista com material de jazida e brita comercial
A157: E - TEMPO FIXO | C157: Código | D157: Quantidade | E157: Unidade | G157: Custo Unitário | H157: Custo Unitário | J157: Principal | M157: 4011256 | N157: Base estabilizada granulometricamente com mistura solo brita (70% - 30%) na pista com material de jazida e brita comercial
A158: 4016096 | B158: Escavação e carga de material de jazida com escavadeira hidráulica de 1,56 m³ - Caminhão basculante 10 m³ | C158: 5914354 | D158: 1.44411 | E158: t | J158: Principal | M158: 4011256 | N158: Base estabilizada granulometricamente com mistura solo brita (70% - 30%) na pista com material de jazida e brita comercial
A159: M0191 | B159: Brita 1 - Caminhão basculante 10 m³ | C159: 5914647 | D159: 0.6189 | E159: t | J159: Principal | M159: 4011256 | N159: Base estabilizada granulometricamente com mistura solo brita (70% - 30%) na pista com material de jazida e brita comercial
G160: Custo unitário total de tempo fixo | J160: Principal | M160: 4011256 | N160: Base estabilizada granulometricamente com mistura solo brita (70% - 30%) na pista com material de jazida e brita comercial
A161: F - MOMENTO DE TRANSPORTE | C161: Quantidade | D161: Unidade | E161: DMT | I161: Custo Unitário | J161: Principal | M161: 4011256 | N161: Base estabilizada granulometricamente com mistura solo brita (70% - 30%) na pista com material de jazida e brita comercial
E162: LN | F162: RP | G162: P | J162: Principal | M162: 4011256 | N162: Base estabilizada granulometricamente com mistura solo brita (70% - 30%) na pista com material de jazida e brita comercial
A163: 4016096 | B163: Escavação e carga de material de jazida com escavadeira hidráulica de 1,56 m³ - Caminhão basculante 10 m³ | C163: 1.44411 | D163: tkm | E163: 5914359 | F163: 5914374 | G163: 5914389 | J163: Principal | M163: 4011256 | N163: Base estabilizada granulometricamente com mistura solo brita (70% - 30%) na pista com material de jazida e brita comercial
A164: M0191 | B164: Brita 1 - Caminhão basculante 10 m³ | C164: 0.6189 | D164: tkm | E164: 5914359 | F164: 5914374 | G164: 5914389 | J164: Principal | M164: 4011256 | N164: Base estabilizada granulometricamente com mistura solo brita (70% - 30%) na pista com material de jazida e brita comercial
G165: Custo unitário total de transporte | J165: Principal | M165: 4011256 | N165: Base estabilizada granulometricamente com mistura solo brita (70% - 30%) na pista com material de jazida e brita comercial
E166: Custo unitário direto total | J166: Principal | M166: 4011256 | N166: Base estabilizada granulometricamente com mistura solo brita (70% - 30%) na pista com material de jazida e brita comercial
A167: CGCIT | I167: DNIT | J167: Principal | M167: 4011352 | N167: Imprimação com emulsão asfáltica
A168: SISTEMA DE CUSTOS REFERENCIAIS DE OBRAS - SICRO | D168: Goiás | G168: FIC | H168: 0.00454 | J168: Principal | M168: 4011352 | N168: Imprimação com emulsão asfáltica
A169: Custo Unitário de Referência | D169: Abril/2024 | G169: Produção da equipe | H169: 1038.46 | I169: m² | J169: Principal | M169: 4011352 | N169: Imprimação com emulsão asfáltica
A170: 4011352 | B170: Imprimação com emulsão asfáltica | H170: Valores em reais (R$) | J170: Principal | M170: 4011352 | N170: Imprimação com emulsão asfáltica
A171: A - EQUIPAMENTOS | C171: Quantidade | D171: Utilização | F171: Custo Horário | I171: Custo | J171: Principal | M171: 4011352 | N171: Imprimação com emulsão asfáltica
D172: Operativa | E172: Improdutiva | F172: Produtivo | G172: Improdutivo | I172: Horário Total | J172: Principal | M172: 4011352 | N172: Imprimação com emulsão asfáltica
A173: E9509 | B173: Caminhão tanque distribuidor de asfalto com capacidade de 6.000 l - 7 kW/136 kW | C173: 1 | D173: 1 | E173: 0 | J173: Principal | K173: E9509 | L173: 1 | M173: 4011352 | N173: Imprimação com emulsão asfáltica
A174: E9558 | B174: Tanque de estocagem de asfalto com capacidade de 30.000 l | C174: 2 | D174: 1 | E174: 0 | J174: Principal | K174: E9558 | L174: 2 | M174: 4011352 | N174: Imprimação com emulsão asfáltica
G175: Custo horário total de equipamentos | J175: Principal | M175: 4011352 | N175: Imprimação com emulsão asfáltica
A176: B - MÃO DE OBRA | C176: Quantidade | D176: Unidade | F176: Custo Horário | G176: Custo Horário Total | J176: Principal | M176: 4011352 | N176: Imprimação com emulsão asfáltica
A177: P9824 | B177: Servente | C177: 2 | D177: h | J177: Principal | M177: 4011352 | N177: Imprimação com emulsão asfáltica
G178: Custo horário total de mão de obra | J178: Principal | M178: 4011352 | N178: Imprimação com emulsão asfáltica
G179: Custo horário total de execução | J179: Principal | M179: 4011352 | N179: Imprimação com emulsão asfáltica
G180: Custo unitário de execução | J180: Principal | M180: 4011352 | N180: Imprimação com emulsão asfáltica
G181: Custo do FIC | J181: Principal | M181: 4011352 | N181: Imprimação com emulsão asfáltica
G182: Custo do FIT | J182: Principal | M182: 4011352 | N182: Imprimação com emulsão asfáltica
A183: C - MATERIAL | C183: Quantidade | D183: Unidade | F183: Preço Unitário | G183: Custo Unitário | J183: Principal | M183: 4011352 | N183: Imprimação com emulsão asfáltica
A184: M2092 | B184: Emulsão asfáltica para imprimação | C184: 0.0013 | D184: t | J184: Principal | M184: 4011352 | N184: Imprimação com emulsão asfáltica
G185: Custo unitário total de material | J185: Principal | M185: 4011352 | N185: Imprimação com emulsão asfáltica
A186: D - ATIVIDADES AUXILIARES | C186: Quantidade | D186: Unidade | F186: Custo Unitário | G186: Custo Unitário | J186: Principal | M186: 4011352 | N186: Imprimação com emulsão asfáltica
G187: Custo total de atividades auxiliares | J187: Principal | M187: 4011352 | N187: Imprimação com emulsão asfáltica
G188: Subtotal | J188: Principal | M188: 4011352 | N188: Imprimação com emulsão asfáltica
A189: E - TEMPO FIXO | C189: Código | D189: Quantidade | E189: Unidade | G189: Custo Unitário | H189: Custo Unitário | J189: Principal | M189: 4011352 | N189: Imprimação com emulsão asfáltica
G190: Custo unitário total de tempo fixo | J190: Principal | M190: 4011352 | N190: Imprimação com emulsão asfáltica
A191: F - MOMENTO DE TRANSPORTE | C191: Quantidade | D191: Unidade | E191: DMT | I191: Custo Unitário | J191: Principal | M191: 4011352 | N191: Imprimação com emulsão asfáltica
E192: LN | F192: RP | G192: P | J192: Principal | M192: 4011352 | N192: Imprimação com emulsão asfáltica
G193: Custo unitário total de transporte | J193: Principal | M193: 4011352 | N193: Imprimação com emulsão asfáltica
E194: Custo unitário direto total | J194: Principal | M194: 4011352 | N194: Imprimação com emulsão asfáltica
A195: CGCIT | I195: DNIT | J195: Principal | K195: =IF(LEFT(A195,2)="E9",A195,"") ->  | M195: 4011370 | N195: Tratamento superficial duplo com emulsão - brita comercial
A196: SISTEMA DE CUSTOS REFERENCIAIS DE OBRAS - SICRO | D196: Goiás | G196: FIC | H196: 0.00454 | J196: Principal | M196: 4011370 | N196: Tratamento superficial duplo com emulsão - brita comercial
A197: Custo Unitário de Referência | D197: Abril/2024 | G197: Produção da equipe | H197: 361.93 | I197: m² | J197: Principal | M197: 4011370 | N197: Tratamento superficial duplo com emulsão - brita comercial
A198: 4011370 | B198: Tratamento superficial duplo com emulsão - brita comercial | H198: Valores em reais (R$) | J198: Principal | M198: 4011370 | N198: Tratamento superficial duplo com emulsão - brita comercial
A199: A - EQUIPAMENTOS | C199: Quantidade | D199: Utilização | F199: Custo Horário | I199: Custo | J199: Principal | M199: 4011370 | N199: Tratamento superficial duplo com emulsão - brita comercial
D200: Operativa | E200: Improdutiva | F200: Produtivo | G200: Improdutivo | I200: Horário Total | J200: Principal | M200: 4011370 | N200: Tratamento superficial duplo com emulsão - brita comercial
... 774 more rows

Sheet Mob
A4: ='RESUMO MODULO TOTAL'!$C$5 -> Execução De Serviços De Pavimentação Com Tratamento Superficial Duplo Em Vias De Municípios Diversos Inseridos Na Área De Atuação Da Codevasf, No Estado De Goiás
A5: MOBILIZAÇÃO/DESMOBILIZAÇÃO (MOB) | F5: Frentes de serviços | H5: 15
F6: Distância da Capital ao Canteiro: | I6: Inserir a distância adequada de acordo com o histórico de mobilização
F7: Velocidade média de transporte (pavim.): | H7: 60
A8: Transporte dos equipamentos
A9: CODIGO | B9: EQUIPAMENTO | C9: VEÍCULO TRANSPORTADOR | D9: QTDE | E9: K | F9: FU | G9: CUSTO DO TRANSPORTE
G10: (R$/h) | H10: (R$)/km
L11: . | M11: .
A12: E9010 | B12: Balança plataforma digital à bateria, com mesa de 75 x 75 cm e capacidade de 500 kg | C12: Veículo(s) da própria frota. | D12: 1 | E12: 2 | F12: 0 | G12: 0 | H12: =((D12*E12*F12)/$H$7)*G12 -> 0
A13: E9519 | B13: Betoneira com motor a gasolina com capacidade de 600 l - 10 kW | C13: Veículo(s) da própria frota. | D13: 1 | E13: 2 | F13: 0 | G13: 0 | H13: 0
A14: E9256 | B14: Equipamento para pintura com cal rebocável com dois bicos aplicadores e capacidade de 2.200 l | C14: Veículo(s) da própria frota. | D14: 1 | E14: 2 | F14: 0 | G14: 0 | H14: 0
A15: E9103 | B15: Extrusora para meio-fio de concreto - 10,44 kW | C15: Veículo(s) da própria frota. | D15: 1 | E15: 2 | F15: 0 | G15: 0 | H15: 0
A16: E9568 | B16: Furadeira de impacto de 12,5 mm - 0,80 kW | C16: Veículo(s) da própria frota. | D16: 1 | E16: 2 | F16: 0 | G16: 0 | H16: 0
A17: E9518 | B17: Grade de 24 discos rebocável de D = 60 cm (24") | C17: Veículo(s) da própria frota. | D17: 1 | E17: 2 | F17: 0 | G17: 0 | H17: 0
A18: E9583 | B18: Distribuidor de agregados rebocável com capacidade de 1,9 m³ | C18: Veículo(s) da própria frota. | D18: 1 | E18: 2 | F18: 0 | G18: 0 | H18: =((D18*E18*F18)/$H$7)*G18 -> 0
A19: E9753 | B19: Grupo gerador - 23 kVA | C19: Veículo(s) da própria frota. | D19: 1 | E19: 2 | F19: 0 | G19: 0 | H19: 0
A20: E9623 | B20: Máquina de bancada guilhotina - 4,00 kW | C20: Veículo(s) da própria frota. | D20: 1 | E20: 2 | F20: 0 | G20: 0 | H20: 0
A21: E9622 | B21: Máquina de bancada universal para corte de chapa - 1,50 kW | C21: Veículo(s) da própria frota. | D21: 1 | E21: 2 | F21: 0 | G21: 0 | H21: 0
A22: E9156 | B22: Soprador de ar costal - 2,6 kW | C22: Veículo(s) da própria frota. | D22: 1 | E22: 2 | F22: 0 | G22: 0 | H22: 0
A23: E9071 | B23: Transportador manual carrinho de mão com capacidade de 80 l | C23: Veículo(s) da própria frota. | D23: 4 | E23: 2 | F23: 0 | G23: 0 | H23: 0
A24: E9064 | B24: Transportador manual gerica com capacidade de 180 l | C24: Veículo(s) da própria frota. | D24: 3 | E24: 2 | F24: 0 | G24: 0 | H24: 0
A25: E9687 | B25: Caminhão carroceria com capacidade de 5 t - 115 kW | C25: E9687 | D25: 1 | E25: 1 | F25: 1 | H25: 0
A26: E9667 | B26: Caminhão basculante com capacidade de 14 m³ - 210 kW | C26: E9667 | D26: 5 | E26: 1 | F26: 1 | H26: 0
A27: E9515 | B27: Escavadeira hidráulica sobre esteiras com caçamba com capacidade de 1,56 m³ - 118 kW | C27: E9666 | D27: 1 | E27: 2 | F27: 1 | H27: 0
A28: E9762 | B28: Rolo compactador de pneus autopropelido de 27 t - 85 kW | C28: E9666 | D28: 1 | E28: 2 | F28: 0.5 | H28: 0
A29: E9685 | B29: Rolo compactador pé de carneiro vibratório autopropelido por pneus de 11,6 t - 82 kW | C29: E9666 | D29: 1 | E29: 2 | F29: 0.5 | H29: 0
A30: E9076 | B30: Equipamento para pintura eletrostática com cabine dupla de 7,00 kW e estufa de 80.000 kCal | C30: E9665 | D30: 1 | E30: 2 | F30: 1 | H30: 0
A31: E9524 | B31: Motoniveladora - 93 kW | C31: E9665 | D31: 1 | E31: 2 | F31: 1 | H31: 0
A32: E9558 | B32: Tanque de estocagem de asfalto com capacidade de 30.000 l | C32: E9665 | D32: 2 | E32: 2 | F32: 1 | H32: 0
A33: E9577 | B33: Trator agrícola sobre pneus - 77 kW | C33: E9665 | D33: 1 | E33: 2 | F33: 0.5 | H33: 0
A34: E9644 | B34: Caminhão demarcador de faixas com sistema de pintura a frio - 28 kW/115 kW | C34: E9644 | D34: 1 | E34: 1 | F34: 1 | H34: 0
A35: E9592 | B35: Caminhão carroceria com capacidade de 15 t - 188 kW | C35: E9592 | D35: 1 | E35: 1 | F35: 1 | H35: 0
A36: E9579 | B36: Caminhão basculante com capacidade de 10 m³ - 210 kW | C36: E9579 | D36: 1 | E36: 1 | F36: 1 | H36: 0
A37: E9571 | B37: Caminhão tanque com capacidade de 10.000 l - 188 kW | C37: E9571 | D37: 2 | E37: 1 | F37: 1 | H37: 0
A38: E9509 | B38: Caminhão tanque distribuidor de asfalto com capacidade de 6.000 l - 7 kW/136 kW | C38: E9509 | D38: 1 | E38: 1 | F38: 1 | H38: 0
A39: E9146 | B39: Caminhão silo com capacidade de 30 m³ - 265 kW | C39: E9146 | D39: 1 | E39: 1 | F39: 1 | H39: 0
A40: E9540 | B40: Trator sobre esteiras com lâmina - 127 kW | C40: E9018 | D40: 1 | E40: 2 | F40: 0.5 | H40: 0
B41: TOTAL | D41: =SUM(D12:D40) -> 40 | H41: =SUM(H12:H40) -> 0
A44: CUSTO TOTAL MOBILIZAÇÃO E DESMOBILIZAÇÃO
A45: DESCRIÇÃO | B45: VALOR
A46: Custo Mobilização (km) | B46: =H41 -> 0
A47: BDI (%) | B47: =BDI!C17/100 -> 0
A48: Custo Mobilização (R$/km) com BDI | B48: =B46+(B46*B47) -> 0
A49: Total de Frentes | B49: =H5 -> 15
A50: Custo Mobilização (frentes x distancia) | B50: =B48*H6*B49 -> 0

Sheet Canteiro
A4: CANTEIRO DE OBRAS PARA CONSTRUÇAO RODOVIÁRIA
A5: Descrição dos serviços | B5: Tipo de container | C5: Unidade | D5: Quantidade | E5: Preço unitário (R$) | F5: Total (R$)
A6: Escritório e seção técnica
A7: LOCACAO DE CONTAINER 2,30 X 6,00 M, ALT. 2,50 M, PARA ESCRITORIO, SEM DIVISORIAS INTERNAS E SEM SANITARIO (NAO INCLUI MOBILIZACAO/DESMOBILIZACAO) | B7: 10776 | C7: und | D7: 1 | F7: =TRUNC(D7*E7,2) -> 0
A8: Banheiro e vestiário
A9: LOCACAO DE CONTAINER 2,30 X 4,30 M, ALT. 2,50 M, PARA SANITARIO, COM 3 BACIAS, 4 CHUVEIROS, 1 LAVATORIO E 1 MICTORIO (NAO INCLUI MOBILIZACAO/DESMOBILIZACAO) | B9: 10777 | C9: und | D9: 1 | F9: =TRUNC(D9*E9,2) -> 0
D10: TOTAL DO CANTEIRO | F10: =SUM(F7:F9) -> 0
D11: DURAÇÃO (MESES) | E11: 12 | F11: =F10*E11 -> 0
D12: BDI | F12: =BDI!C17 -> 0
D13: TOTAL DO CANTEIRO (com BDI) | F13: =F11+(F11*F12) -> 0

Sheet CPU CODEVASF
A4: ='RESUMO MODULO TOTAL'!$C$5 -> Execução De Serviços De Pavimentação Com Tratamento Superficial Duplo Em Vias De Municípios Diversos Inseridos Na Área De Atuação Da Codevasf, No Estado De Goiás
F5: BDI %: | G5: =BDI!$C$17/100 -> 0
E6: Encargos Sociais: | G6: Horista | H6: Mensalista
G7: ='ENC. SOCIAIS'!F51/100 -> 1.0884 | H7: ='ENC. SOCIAIS'!G51/100 -> 0.6724
A8: COMPOSIÇÕES DE CUSTO UNITARIO
A10: CPU-12 | B10: CODEVASF | D10: Correção de vazamentos no ramal na rua sem pavimento com fornecimento do material hidráulico | E10: M | F10: COEF. | G10: PRECO UNITÁRIO (R$) | H10: TOTAL (R$)
A12: SICRO | B12: SICRO | C12: P9824 | D12: Servente | E12: H | F12: 0.2 | H12: =F12*G12 -> 0
A13: SICRO | B13: SICRO | C13: P9807 | D13: Bombeiro hidráulico | E13: H | F13: 0.1 | H13: 0
A14: INS. SINAPI | B14: SINAPI | C14: 9867 | D14: TUBO PVC, SOLDAVEL, DN 20 MM, AGUA FRIA (NBR-5648) | E14: m | F14: 1 | H14: 0
A15: INSUMO | B15: ORSE | C15: 10585 | D15: Arco de serra | E15: un | F15: 0.1 | H15: 0
A16: INS. SINAPI | B16: SINAPI | C16: 3859 | D16: LUVA SOLDAVEL COM ROSCA, PVC, 20 MM X 1/2", PARA AGUA FRIA PREDIAL | E16: un | F16: 2 | H16: 0
E17: Sub total: | H17: =SUM(H12:H16) -> 0
F18: BDI | G18: =BDI!$C$17/100 -> 0 | H18: =H17*G18 -> 0
G19: Total Serviços: | H19: =H17+H18 -> 0
E20: =A10 -> CPU-12 | F20: PREÇO UNITÁRIO TOTAL: | H20: =H19 -> 0 | I20: =H17 -> 0
A22: CPU-14 | B22: CODEVASF | D22: AQUISIÇÃO DE EAI | E22: t | F22: COEF. | G22: PRECO UNITÁRIO (R$) | H22: TOTAL (R$)
D24: EAI | E24: t | F24: 1 | H24: =F24*G24 -> 0
E25: Sub total: | H25: =SUM(H24) -> 0
F26: BDI | G26: 0.15 | H26: =H25*G26 -> 0
G27: Total Serviços: | H27: =H25+H26 -> 0
E28: =A22 -> CPU-14 | F28: PREÇO UNITÁRIO TOTAL: | H28: =H27 -> 0 | I28: =H25 -> 0
A30: CPU-15 | B30: CODEVASF | D30: AQUISIÇÃO DE EMULSÃO ASFÁLTICA RR-2C | E30: t | F30: COEF. | G30: PRECO UNITÁRIO (R$) | H30: TOTAL (R$)
D32: EMULSÃO ASFÁLTICA RR-2C | E32: t | F32: 1 | H32: =F32*G32 -> 0
E33: Sub total: | H33: =SUM(H32) -> 0
F34: BDI | G34: 0.15 | H34: =ROUND(H33,2)*ROUND(G34,4) -> 0
G35: Total Serviços: | H35: =H33+H34 -> 0
E36: =A30 -> CPU-15 | F36: PREÇO UNITÁRIO TOTAL: | H36: =H35 -> 0 | I36: =H33 -> 0
A38: CPU-18 | B38: CODEVASF | D38: TRANSPORTE DE EAI | E38: t | F38: COEF. | G38: PRECO UNITÁRIO (R$) | H38: TOTAL (R$)
D40: TRANSPORTE DE EAI | E40: t | F40: 1 | H40: =F40*G40 -> 0
E41: Sub total: | H41: =SUM(H40) -> 0
F42: BDI | G42: 0.15 | H42: =H41*G42 -> 0
G43: Total Serviços: | H43: =H41+H42 -> 0
E44: =A38 -> CPU-18 | F44: PREÇO UNITÁRIO TOTAL: | H44: =H43 -> 0 | I44: =H41 -> 0
A46: CPU-19 | B46: CODEVASF | D46: TRANSPORTE DE EMULSÃO ASFÁLTICA RR-1C | E46: t | F46: COEF. | G46: PRECO UNITÁRIO (R$) | H46: TOTAL (R$)
D48: TRANSPORTE DE EMULSÃO ASFÁLTICA RR-1C | E48: t | F48: 1 | H48: =F48*G48 -> 0
E49: Sub total: | H49: =SUM(H48) -> 0
F50: BDI | G50: 0.15 | H50: =H49*G50 -> 0
G51: Total Serviços: | H51: =H49+H50 -> 0
E52: =A46 -> CPU-19 | F52: PREÇO UNITÁRIO TOTAL: | H52: =H51 -> 0 | I52: =H49 -> 0
A54: 2003943-A | B54: CODEVASF | D54: Meio-fio de concreto - MFC 03 moldado no local com extrusora e concreto betoneira - areia e brita comerciais | E54: M | F54: COEF. | G54: PRECO UNITÁRIO (R$) | H54: TOTAL (R$)
A56: SICRO | B56: SICRO | C56: E9103 | D56: Extrusora para meio-fio de concreto - 10,44 kW | E56: H | F56: =1/74.11 -> 0.01349345567 | H56: =ROUND(F56*G56,6) -> 0
A57: SICRO | B57: SICRO | C57: P9821 | D57: Pedreiro | E57: H | F57: =1/74.11 -> 0.01349345567 | H57: =ROUND(F57*G57,6) -> 0
A58: SICRO | B58: SICRO | C58: P9824 | D58: Servente | E58: H | F58: =2/74.11 -> 0.02698691135 | H58: 0
A59: SICRO | B59: SICRO | C59: 1107892 | D59: Concreto fck = 20 MPa - confecção em betoneira e lançamento manual - areia e brita comerciais | E59: m³ | F59: 0.042 | H59: =F59*G59 -> 0
A60: SICRO | B60: SICRO | C60: 2003842 | D60: Enchimento de junta de concreto com argamassa asfáltica de densidade 1.700 kg/m³ - espessura de 1 cm | E60: kg | F60: 0.0595 | H60: 0
A61: SICRO | B61: SICRO | C61: 4805750 | D61: Escavação manual em material de 1ª categoria na profundidade de até 1 m | E61: m³ | F61: 0.03 | H61: 0
E62: Sub total: | H62: =ROUND(SUM(H56:H61),2) -> 0
F63: BDI | G63: =BDI!$C$17/100 -> 0 | H63: =H62*G63 -> 0
G64: Total Serviços: | H64: =H62+H63 -> 0
E65: =A54 -> 2003943-A | F65: PREÇO UNITÁRIO TOTAL: | H65: =H64 -> 0 | I65: =H62 -> 0
A67: 2003947-A | B67: CODEVASF | D67: Meio-fio de concreto - MFC 05 moldado no local com extrusora e concreto betoneira - areia e brita comerciais | E67: M | F67: COEF. | G67: PRECO UNITÁRIO (R$) | H67: TOTAL (R$)
A69: SICRO | B69: SICRO | C69: E9103 | D69: Extrusora para meio-fio de concreto - 10,44 kW | E69: H | F69: =1/93.19 -> 0.0107307651 | H69: =ROUND(F69*G69,6) -> 0
A70: SICRO | B70: SICRO | C70: P9821 | D70: Pedreiro | E70: H | F70: =1/93.19 -> 0.0107307651 | H70: =ROUND(F70*G70,6) -> 0
A71: SICRO | B71: SICRO | C71: P9824 | D71: Servente | E71: H | F71: =2/93.19 -> 0.02146153021 | H71: 0
A72: SICRO | B72: SICRO | C72: 1107892 | D72: Concreto fck = 20 MPa - confecção em betoneira e lançamento manual - areia e brita comerciais | E72: m³ | F72: 0.0334 | H72: =F72*G72 -> 0
A73: SICRO | B73: SICRO | C73: 2003842 | D73: Enchimento de junta de concreto com argamassa asfáltica de densidade 1.700 kg/m³ - espessura de 1 cm | E73: kg | F73: 0.0473 | H73: 0
A74: SICRO | B74: SICRO | C74: 4805750 | D74: Escavação manual em material de 1ª categoria na profundidade de até 1 m | E74: m³ | F74: 0.018 | H74: 0
E75: Sub total: | H75: =ROUND(SUM(H69:H74),2) -> 0
F76: BDI | G76: =BDI!$C$17/100 -> 0 | H76: =H75*G76 -> 0
G77: Total Serviços: | H77: =H75+H76 -> 0
E78: =A67 -> 2003947-A | F78: PREÇO UNITÁRIO TOTAL: | H78: =H77 -> 0 | I78: =H75 -> 0

Sheet Adm Local
A2: parcela fixa da administração local (mão de obra)
A3: Código | B3: Discriminação | C3: Unidade | D3: Quantidade | F3: Custo Unitário (R$) | H3: Custo Total (R$)
B4: Mão de Obra
B5: Gerência Técnica
B6: Geral
A7: P9955 | B7: Engenheiro chefe | C7: mês | D7: 0.5 | H7: =F7*D7 -> 0
A8: P9840 | B8: Encarregado geral | C8: mês | D8: 0.5 | H8: =F8*D8 -> 0
A9: P9897 | B9: Técnico de meio ambiente | C9: mês | D9: 0 | H9: =F9*D9 -> 0
A10: P9948 | B10: Motorista | C10: mês | D10: 0 | H10: =F10*D10 -> 0
A11: P9878 | B11: Secretária | C11: mês | D11: 0 | H11: =F11*D11 -> 0
F12: Subtotal do Item 1.1 | H12: =SUM(H7:I11) -> 0
B13: Auxiliar
A14: P9946 | B14: Engenheiro auxiliar | C14: mês | D14: 1 | H14: =D14*F14 -> 0
A15: P9903 | B15: Auxiliar técnico | C15: mês | D15: 0 | H15: =D15*F15 -> 0
F16: Subtotal do Item 1.2 | H16: =SUM(H14:I15) -> 0
B17: Gerência Administrativa
B18: Geral
A19: P9883 | B19: Chefe do setor administrativo | C19: mês | D19: 1 | H19: =F19*D19 -> 0
A20: P9809 | B20: Encarregado administrativo | C20: mês | D20: 0 | H20: =F20*D20 -> 0
A21: P9896 | B21: Porteiro | C21: mês | D21: 0 | H21: =F21*D21 -> 0
A22: P9827 | B22: Vigia | C22: mês | D22: 0 | H22: =F22*D22 -> 0
A23: P9948 | B23: Motorista | C23: mês | D23: 0 | H23: =F23*D23 -> 0
F24: Subtotal do Item 1.3 | H24: =SUM(H19:I23) -> 0
B25: Auxiliar
A26: P9806 | B26: Auxiliar administrativo | C26: mês | D26: 1 | H26: =F26*D26 -> 0
A27: P9842 | B27: Faxineiro | C27: mês | D27: 0 | H27: =F27*D27 -> 0
F28: Subtotal do Item 1.4 | H28: =SUM(H26:I27) -> 0
H29: Total da Mão de Obra da Parcela Fixa | I29: =H28+H24+H16+H12 -> 0
A31: parcela fixa da administração local (veículos)
A32: Código | B32: Discriminação | C32: Unidade | D32: Quantidade | E32: Utilização Produtiva | F32: Utilização Improdutiva | G32: Custo Horário Produtivo (R$) | H32: Custo Horário Improdutivo (R$) | I32: Custo Total (R$)
A33: 2 | B33: Veículos
B34: Gerência Técnica
A35: 2.1 | B35: Geral
A36: E9093 | B36: Veículo Leve 53 kw | C36: mês | D36: 1 | E36: 44 | F36: 176 | I36: =((E36*G36)+(F36*H36))*D36 -> 0
A37: E9560 | B37: Ônibus coletivo - 175 kw | C37: mês | D37: 0 | E37: 44 | F37: 176 | I37: =((E37*G37)+(F37*H37))*D37 -> 0
H38: Subtotal do Item 2 | I38: =SUM(I36:I37) -> 0
A39: 2.2 | B39: Auxiliar
A40: E9093 | B40: Veículo Leve 53 kw | C40: mês | D40: 0 | E40: 44 | F40: 176 | I40: =((E40*G40)+(F40*H40))*D40 -> 0
H41: Subtotal do Item 2 | I41: =SUM(I40) -> 0
A42: 2.3 | B42: Gerência Administrativa
A43: E9093 | B43: Veículo Leve 53 kw | C43: mês | D43: 0 | E43: 44 | F43: 176 | I43: =((E43*G43)+(F43*H43))*D43 -> 0
H44: Subtotal do Item 2 | I44: =I43 -> 0
H45: Total dos Veículos da Parcela Fixa | I45: =I44+I41+I38 -> 0
A47: Composição de custo da equipe de produção de terraplenagem
A48: Código | B48: Discriminação | C48: Unidade | D48: Quantidade | F48: Custo Unitário (R$) | H48: Custo Total (R$)
B49: Equipe de Produção de Terraplenagem
A50: 3.1 | B50: Mão de Obra
A51: P9884 | B51: Encarregado de produção | C51: mês | D51: 1 | H51: =F51*D51 -> 0
F52: Subtotal do Item 3.1 | H52: =SUM(H51:H51) -> 0
A53: Código | B53: Discriminação | C53: Unidade | D53: Quantidade | E53: Utilização Produtiva | F53: Utilização Improdutiva | G53: Custo Horário Produtivo (R$) | H53: Custo Horário Improdutivo (R$) | I53: Custo Total (R$)
A54: 3.2 | B54: Veículos
A55: E9093 | B55: Veículo Leve 53 kw | C55: mês | D55: 1 | E55: 44 | F55: 176 | I55: =((E55*G55)+(F55*H55))*D55 -> 0
H56: Subtotal do Item 3.2 | I56: =SUM(I55:I55) -> 0
H57: Total da Equipe de Produção de Terraplenagem | I57: =I56+H52 -> 0
A59: Composição de custo da equipe de produção de pavimentação
A60: Código | B60: Discriminação | C60: Unidade | D60: Quantidade | F60: Custo Unitário (R$) | H60: Custo Total (R$)
B61: Equipe de Produção de Pavimentação
A62: 3.1 | B62: Mão de Obra
A63: P9893 | B63: Encarregado de produção | C63: mês | D63: 1 | H63: =F63*D63 -> 0
F64: Subtotal do Item 3.1 | H64: =SUM(H63:H63) -> 0
A65: Código | B65: Discriminação | C65: Unidade | D65: Quantidade | E65: Utilização Produtiva | F65: Utilização Improdutiva | G65: Custo Horário Produtivo (R$) | H65: Custo Horário Improdutivo (R$) | I65: Custo Total (R$)
A66: 3.2 | B66: Veículos
A67: E9093 | B67: Veículo Leve 53 kw | C67: mês | D67: 1 | E67: 44 | F67: 176 | I67: =((E67*G67)+(F67*H67))*D67 -> 0
H68: Subtotal do Item 3.2 | I68: =SUM(I67:I67) -> 0
H69: Total da Equipe de Produção de Pavimentação | I69: =I68+H64 -> 0
A71: Composição de custo da equipe de produção de drenagem
A72: Código | B72: Discriminação | C72: Unidade | D72: Quantidade | F72: Custo Unitário (R$) | H72: Custo Total (R$)
B73: Equipe de Produção de Pavimentação
A74: 3.1 | B74: Mão de Obra
A75: P9893 | B75: Encarregado de produção | C75: mês | D75: 1 | H75: =F75*D75 -> 0
F76: Subtotal do Item 3.1 | H76: =SUM(H75:H75) -> 0
A77: Código | B77: Discriminação | C77: Unidade | D77: Quantidade | E77: Utilização Produtiva | F77: Utilização Improdutiva | G77: Custo Horário Produtivo (R$) | H77: Custo Horário Improdutivo (R$) | I77: Custo Total (R$)
A78: 3.2 | B78: Veículos
A79: E9093 | B79: Veículo Leve 53 kw | C79: mês | D79: 1 | E79: 44 | F79: 176 | I79: =((E79*G79)+(F79*H79))*D79 -> 0
H80: Subtotal do Item 3.2 | I80: =SUM(I79:I79) -> 0
H81: Total da Equipe de Produção de Pavimentação | I81: =I80+H76 -> 0
A83: Composição de custo da equipe de produção de sinalização
A84: Código | B84: Discriminação | C84: Unidade | D84: Quantidade | F84: Custo Unitário (R$) | H84: Custo Total (R$)
B85: Equipe de Produção de Pavimentação
A86: 3.1 | B86: Mão de Obra
A87: P9893 | B87: Encarregado de produção | C87: mês | D87: 1 | H87: =F87*D87 -> 0
F88: Subtotal do Item 3.1 | H88: =SUM(H87:H87) -> 0
A89: Código | B89: Discriminação | C89: Unidade | D89: Quantidade | E89: Utilização Produtiva | F89: Utilização Improdutiva | G89: Custo Horário Produtivo (R$) | H89: Custo Horário Improdutivo (R$) | I89: Custo Total (R$)
A90: 3.2 | B90: Veículos
A91: E9093 | B91: Veículo Leve 53 kw | C91: mês | D91: 1 | E91: 44 | F91: 176 | I91: =((E91*G91)+(F91*H91))*D91 -> 0
H92: Subtotal do Item 3.2 | I92: =SUM(I91:I91) -> 0
H93: Total da Equipe de Produção de Pavimentação | I93: =I92+H88 -> 0
A95: Composição de custo da equipe topografia
A96: Código | B96: Discriminação | C96: Unidade | D96: Quantidade | F96: Custo Unitário (R$) | H96: Custo Total (R$)
B97: Equipe de Topografia
A98: 3.1 | B98: Mão de Obra
A99: P9949 | B99: Topográfo | C99: mês | D99: 1 | H99: =F99*D99 -> 0
A100: P9950 | B100: Auxiliar de topografia | C100: mês | D100: 1 | H100: =F100*D100 -> 0
F101: Subtotal do Item 3.1 | H101: =SUM(H99:I100) -> 0
A102: Código | B102: Discriminação | C102: Unidade | D102: Quantidade | E102: Utilização Produtiva | F102: Utilização Improdutiva | G102: Custo Horário Produtivo (R$) | H102: Custo Horário Improdutivo (R$) | I102: Custo Total (R$)
A103: 3.2 | B103: Veículos
A104: E9093 | B104: Veículo Leve 53 kw | C104: mês | D104: 1 | E104: 44 | F104: 176 | I104: =((E104*G104)+(F104*H104))*D104 -> 0
H105: Subtotal do Item 3.2 | I105: =SUM(I104:I104) -> 0
H106: Total da Equipe de Produção de Topografia | I106: =I105+H101 -> 0
A108: Composição de custo do setor de medicina e segurança do trabalho
A109: Código | B109: Discriminação | C109: Unidade | D109: Quantidade | F109: Custo Unitário (R$) | H109: Custo Total (R$)
A110: 4 | B110: Setor de Medicina e Segurança do Trabalho
A111: P9876 | B111: Técnico de segurança do trabalho | C111: mês | D111: 1 | H111: =F111*D111 -> 0
A112: P9864 | B112: Engenheiro de segurança do trabalho | C112: mês | D112: 0 | H112: =F112*D112 -> 0
A113: P9851 | B113: Médico do trabalho | C113: mês | D113: 0 | H113: =F113*D113 -> 0
A114: P9951 | B114: Médico de câmara hiperbárica | C114: mês | D114: 0 | H114: =F114*D114 -> 0
F115: Subtotal do Item 4 | H115: =SUM(H111:I114) -> 0
A117: Parcela Variável - Composição de custo da equipe de frente de serviço
A118: Código | B118: Discriminação | C118: Unidade | D118: Quantidade | F118: Custo Unitário (R$) | H118: Custo Total (R$)
A119: 5 | B119: Equipe de Frente de Serviço | C119: equipexmês
A120: P9875 | B120: Encarregado de Turma | C120: mês | D120: 1 | H120: =F120*D120 -> 0
A121: P9804 | B121: Apontador | C121: mês | D121: 0.5 | H121: =F121*D121 -> 0
F122: Subtotal do Item 5 | H122: =SUM(H120:I121) -> 0
A124: Parcela Variável - Composição de custo da equipe de frente de serviço (Terraplenagem) - Somente Compactação
A125: Código | B125: Discriminação | C125: Unidade | D125: Quantidade | F125: Produção Horária (und/h) | H125: Efs
A126: 5.1 | B126: Equipe de Frente de Serviço | C126: equipexmês
C127: mês | H127: =(D127)/(F127*182.49) -> 
C128: mês | H128: =(D128)/(F128*182.49) -> 
C129: mês | H129: =(D129)/(F129*182.49) -> 
F130: Total de Equipes para Terraplenagem | H130: =SUM(H129:I129) -> 
A132: Parcela Variável - Composição de custo da acompanhamento das frentes de serviço de pavimentação
A133: Código | B133: Discriminação | C133: Unidade | D133: Quantidade | F133: Produção Horária (und/h) | H133: Efs
A134: 5.2 | B134: Equipe de Frente de Serviço | C134: equipe x mês
A135: 4915637 | B135: Capa selante - areia comercial | C135: m² | D135: 210000 | F135: 1350 | H135: =(D135)/(F135*182.49) -> 0.8524059157
A136: 4011370 | B136: Tratamento superficial duplo com emulsão - brita comercial | C136: m² | D136: 210000 | F136: 361.93 | H136: =(D136)/(F136*182.49) -> 3.179476656
A137: 4011352 | B137: Imprimação com emulsão asfáltica | C137: m² | D137: 210000 | F137: 1038.46 | H137: 1.108129332
A138: 4011256 | B138: Base estabilizada granulometricamente com mistura solo brita (70% - 30%) na pista com material de jazida e brita comercial | C138: m³ | D138: 31500 | F138: 150.88 | H138: 1.144036307
A139: 4011233 | B139: Sub-base estabilizada granulometricamente com mistura solo brita (70% - 30%) na pista com material de jazida e brita comercial | C139: m³ | D139: 31500 | F139: 150.88 | H139: 1.144036307
A140: 4011209 | B140: Regularização do subleito | C140: m² | D140: 210000 | F140: 1121.33 | H140: 1.026234905
F141: Total de Equipes para Pavimentação | H141: =SUM(H135:I140) -> 8.454319422
A143: Parcela Variável - Composição de custo da acompanhamento das frentes de serviço de drenagem
A144: Código | B144: Discriminação | C144: Unidade | D144: Quantidade | F144: Efsdu | H144: Efs
A145: 5.3 | B145: Frentes de Serviço para Drenagem | C145: equipe x mês
A146: 2003943 | B146: Meio-fio de concreto - MFC 03 moldado no local com extrusora e concreto usinado - areia e brita comerciais | C146: m | D146: ='RESUMO MODULO TOTAL'!H39 -> 54000 | F146: 0.00021 | H146: =D146*F146 -> 11.34
A147: 2003947 | B147: Meio-fio de concreto - MFC 05 moldado no local com extrusora e concreto usinado - areia e brita comerciais | C147: m | D147: ='RESUMO MODULO TOTAL'!H40 -> 6000 | F147: 0.00021 | H147: =D147*F147 -> 1.26
F148: Total de Equipes para Drenagem | H148: =SUM(H146:I147) -> 12.6
A150: Parcela Variável - Composição de custo da acompanhamento das frentes de serviço de sinalização
A151: Código | B151: Discriminação | C151: Unidade | D151: Quantidade | F151: Produção Horária (und/h) | H151: Efs
A152: 5.4 | B152: Frentes de Serviço para Sinalização | C152: equipe x mês
A153: 5213440 | B153: Placa de regulamentação em aço D = 0,60 m - película retrorrefletiva tipo I + SI - fornecimento e implantação | C153: Unidade | D153: 90 | F153: 3 | H153: =0.2*((D153)/(F153*182.49)) -> 0.03287851389
A154: 5213464 | B154: Placa de advertência em aço, lado de 0,60 m - película retrorrefletiva tipo I + SI - fornecimento e implantação | C154: Unidade | D154: 90 | F154: 3 | H154: =0.2*((D154)/(F154*182.49)) -> 0.03287851389
A155: 5213863 | B155: Suporte metálico galvanizado para placa de advertência ou regulamentação - lado ou diâmetro de 0,60 m - fornecimento e implantação | C155: Unidade | D155: 180 | F155: 4.1 | H155: =0.2*((D155)/(F155*182.49)) -> 0.04811489838
A156: 5213400 | B156: Pintura de faixa com tinta acrílica - espessura de 0,4 mm | C156: m² | D156: 7200 | F156: 177.07 | H156: 0.04456341184
F157: Total de Equipes para Sinalização | H157: =SUM(H153:I156) -> 0.158435338 | J157: =H157+H148 -> 12.75843534
A159: 3. PARCELA VARIÁVEL - EQUIPE DE CONTROLE TECNOLÓGICO
A160: LABORATÓRIO DE SOLOS
A161: Item | B161: Discriminação | F161: Unidade | G161: Quantidade | H161: Custo Unitário (R$) | I161: Custo Total (R$)
B162: Laboratório de Solos (equipe x mês)
B163: Mão de Obra
A164: P9858 | B164: Laboratorista | F164: func./mês | G164: 1 | I164: =TRUNC(G164*H164,2) -> 0
A165: P9833 | B165: Auxiliar de laboratório | F165: func./mês | G165: 1 | I165: =TRUNC(G165*H165,2) -> 0
H166: Subtotal do Item | I166: =SUM(I164:I165) -> 0
A167: Item | B167: Discriminação | C167: Und | D167: Quant | E167: Utilização Produtiva | F167: Utilização Improdutiva | G167: Horário Produtivo (R$) | H167: Horário Improdutivo (R$) | I167: Total (R$)
B168: Equipe de Controle Tecnológico
B169: Veículos
A170: E9125 | B170: Van furgão a diesel - 93 kW | C170: veic./mês | D170: 0.5 | E170: 44 | F170: 176 | I170: =D170*((E170*G170)+(F170*H170)) -> 0
H171: Subtotal do Item | I171: =SUM(I170:I170) -> 0
H172: Total da Equipe do Laboratório de Solos | I172: =I166+I171 -> 0
A174: 3. PARCELA VARIÁVEL - EQUIPE DE CONTROLE TECNOLÓGICO
A175: LABORATÓRIO DE ASFALTOS
A176: Item | B176: Discriminação | F176: Unidade | G176: Quantidade | H176: Custo Unitário (R$) | I176: Custo Total (R$)
B177: Laboratório de Solos (equipe x mês)
B178: Mão de Obra
A179: P9858 | B179: Laboratorista | F179: func./mês | G179: 1 | I179: =TRUNC(G179*H179,2) -> 0
A180: P9833 | B180: Auxiliar de laboratório | F180: func./mês | G180: 1 | I180: =TRUNC(G180*H180,2) -> 0
H181: Subtotal do Item | I181: =SUM(I179:I180) -> 0
A182: Item | B182: Discriminação | C182: Und | D182: Quant | E182: Utilização Produtiva | F182: Utilização Improdutiva | G182: Horário Produtivo (R$) | H182: Horário Improdutivo (R$) | I182: Total (R$)
B183: Equipe de Controle Tecnológico
B184: Veículos
A185: E9125 | B185: Van furgão a diesel - 93 kW | C185: veic./mês | D185: 0.5 | E185: 44 | F185: 176 | I185: =D185*((E185*G185)+(F185*H185)) -> 0
H186: Subtotal do Item | I186: =SUM(I185:I185) -> 0
H187: Total da Equipe do Laboratório de Asfaltos | I187: =I181+I186 -> 0
A189: Equipes de laboratório de solos para pavimentação
A190: Item | B190: Discriminação | F190: Und | G190: Quant | H190: QE | I190: Els
A191: 4011268 | B191: Base estabilizada granulometricamente com mistura solo brita (70% - 30%) em usina com material de jazida e brita comercial | C191: m³ | D191: 288.47 | E191: 0 | F191: m³ | G191: ='RESUMO MODULO TOTAL'!H25 -> 31500 | H191: 21900 | I191: =G191/H191 -> 1.438356164
A192: 4011228 | B192: Sub-base estabilizada granulometricamente com mistura de solos na pista com material de jazida | C192: m³ | D192: 288.47 | E192: 0 | F192: m³ | G192: ='RESUMO MODULO TOTAL'!H26 -> 31500 | H192: 21900 | I192: =G192/H192 -> 1.438356164
A193: 4011209 | B193: Regularização do subleito | C193: m² | D193: 120.72 | E193: 0 | F193: m² | G193: ='RESUMO MODULO TOTAL'!H27 -> 210000 | H193: 21900 | I193: =G193/H193 -> 9.589041096
H194: Total de equipes de Laboratório de Solos para Pavimentação | I194: =SUM(I191:I193) -> 12.46575342
A196: Equipes de laboratório de Asfalto
A197: Item | B197: Discriminação | F197: Und | G197: Quant | H197: QE | I197: Ela
A198: 4011370 | B198: Tratamento superficial duplo com emulsão - brita comercial | F198: m² | G198: ='RESUMO MODULO TOTAL'!H23 -> 210000 | H198: 123000 | I198: =IF(H198="",0,G198/H198) -> 1.707317073
A199: 4011352 | B199: Imprimação com emulsão asfáltica | F199: m² | G199: ='RESUMO MODULO TOTAL'!H24 -> 210000 | H199: 1610000 | I199: =G199/H199 -> 0.1304347826
H200: Total de equipes de Laboratório de Asfaltos | I200: =SUM(I198:I199) -> 1.837751856
A202: manutenção do canteiro de obras e acampamentos
A203: Código | B203: Discriminação | C203: Unidade | D203: Quantidade | F203: Custo Unitário (R$) | H203: Custo Total (R$)
B204: Manutenção do Canteiro de Obras e Acampamentos
A205: 6.1 | B205: Mão de Obra
A206: P9952 | B206: Pedreiro | C206: mês | D206: 0 | H206: =F206*D206 -> 0
A207: P9954 | B207: Servente | C207: mês | D207: 0 | H207: =F207*D207 -> 0
A208: P9953 | B208: Eletricista | C208: mês | D208: 0 | H208: =F208*D208 -> 0
F209: Subtotal do Item 6.1 | H209: =SUM(H206:I208) -> 0
A211: Código | B211: Discriminação | C211: Unidade | D211: Quantidade | F211: Custo Produtivo (R$) | H211: Custo Total (R$)
A212: 6.2 | B212: Equipamentos
B213: Caminhão guindauto de 6 toneladas | C213: h/mês | D213: 0 | H213: =F213*D213 -> 0
B214: Caminhão tanque de 8.000 litros | C214: h/mês | D214: 0 | H214: =F214*D214 -> 0
A215: E9524 | B215: Motoniveladora | C215: h/mês | D215: 0 | H215: =F215*D215 -> 0
F216: Subtotal do Item 6.2 | H216: =SUM(H213:I215) -> 0
G217: Total da Manutenção do Canteiro de Obras e Acampamentos | H217: =H216+H209 -> 0
A221: Resumo das parcelas de administração local
A222: Código | B222: Discriminação | C222: Unidade | D222: Quantidade | F222: Custo Unitário (R$) | H222: Custo Total (R$)
... 29 more rows

Sheet Projeto Executivo
A2: COMPOSIÇAO PREÇO PROJETO EXECUTIVO
A3: DISCRIMINAÇAO | F3: Pr. Unit. | G3: Pr. Total
A5: A· EOUIPE TECNICA | G5: =G6+G9 -> 0
B6: A. 1 - Pessoal de Nível Superior | C6: Unidade | D6: Quantitativo | E6: SICRO e Rel.Custos Gerais | G6: =G7+G8 -> 0
B7: Engenheiro | C7: mês | D7: 0.4 | E7: P9812 | G7: =F7*D7 -> 0
B8: Topógrafo | C8: mês | D8: 0.25 | E8: P9949 | G8: =F8*D8 -> 0
B9: A.2 - Pessoal de Nível Técnico e Aux. | G9: =G10+G11 -> 0
B10: Auxiliar de topógrafo | C10: mês | D10: 0.125 | E10: P9950 | G10: =F10*D10 -> 0
B11: Auxiliar Técnico/Assistente de Engenharia | C11: mês | D11: 0.5 | E11: P9903 | G11: =F11*D11 -> 0
A12: B - ENCARGOS SOCIAIS | G12: =G13 -> 0
B13: Taxas 108,84% | C13: JÁ INCLUSAS EM "A"
A14: C - DESPESAS GERAIS | G14: =G15+G17+G16 -> 0
B15: C.1 - MATERIAIS DE CONSUMO | C15: Estimativa % como referência de equipe técnica com encargos sociais | D15: 0.03 | G15: =F15*D15 -> 0
B16: C.2 - VEÍCULOS (Veículo leve picape 4 x 4 com capacidade de 1,10 t - 147 kW) | C16: h | D16: 40 | E16: E9684 | G16: =F16*D16 -> 0
B17: C.3 - Estação total eletrônica com alcance máximo de 3.000 m | C17: h | D17: 75.21326512 | E17: E9553 | G17: =F17*D17 -> 0
A18: D - ENSAIOS | G18: =SUM(G19:G22) -> 0
B19: Laboratorista | C19: mês | D19: 0.25 | E19: P9858 | G19: =F19*D19 -> 0
B20: Auxiliar de Laboratório | C20: mês | D20: 0.125 | E20: P9833 | G20: =F20*D20 -> 0
B21: Laboratório de solos | C21: mês | D21: 0.125 | E21: B8957 | G21: =F21*D21 -> 0
B22: Laboratório de asfalto | C22: mês | D22: 0.125 | E22: B8955 | G22: =F22*D22 -> 0
A23: I - SOMA (A+B+C+D) | G23: =G5+G12+G14+G18 -> 0
A24: II - CUSTOS ADMINISTRATIVOS | D24: =BDI!C17/100 -> 0 | G24: =D24*G23 -> 0
A25: TOTAL | G25: =G23+G24 -> 0
F26: Por m²: | G26: =G25/210000 -> 0

Sheet BDI
I1: https://www.gov.br/dnit/pt-br/assuntos/planejamento-e-pesquisa/custos-e-pagamentos/custos-e-pagamentos-dnit/sistemas-de-custos/bdi/bdi-2
A2: OBRA: | I2: Utilizar o período de vigência da data de elaboração do orçamento.
A3: LOCAL:
A4: DATA BASE:
A5: DETALHAMENTO DO BDI - SEM DESONERAÇÃO | E5: DETALHAMENTO DO BDI DIFERENCIADO - SEM DESONERAÇÃO
A6: ='RESUMO MODULO TOTAL'!$C$5 -> Execução De Serviços De Pavimentação Com Tratamento Superficial Duplo Em Vias De Municípios Diversos Inseridos Na Área De Atuação Da Codevasf, No Estado De Goiás | E6: ='RESUMO MODULO TOTAL'!$C$5 -> Execução De Serviços De Pavimentação Com Tratamento Superficial Duplo Em Vias De Municípios Diversos Inseridos Na Área De Atuação Da Codevasf, No Estado De Goiás
A7: DESCRIÇÃO DOS SERVIÇOS | B7: PREÇO DE VENDA (%) | C7: CUSTO DIRETO (%) | E7: DESCRIÇÃO DOS SERVIÇOS | F7: PREÇO DE VENDA (%) | G7: CUSTO DIRETO (%)
A8: Administração Central | B8: =C8/(1+C$17/100) -> 0 | E8: ADMINISTRAÇÃO CENTRAL | G8: 0.0377
A9: =100*((1+A23)^(1/12)-1) -> 0 | B9: =C9/(1+C$17/100) -> 0 | C9: =(C17-(C8+C10+C11+C12+C13+C14+C15+C16)) -> 0 | E9: DESPESA FINANCEIRAS | F9: 0.0102
A10: Seguros e Garantias Contratuais | C10: =B10*(1+C$17/100) -> 0 | E10: SEGUROS E GARANTIAS CONTRATUAIS | F10: 0.0025
A11: Riscos | C11: =B11*(1+C$17/100) -> 0 | E11: RISCOS | F11: 0.005
A12: Lucro Operacional | B12: =C12/(1+C$17/100) -> 0 | E12: LUCRO OPERACIONAL | G12: 0.05
A13: PIS | C13: =B13*(1+C$17/100) -> 0 | E13: PIS | F13: 0.0065
A14: COFINS | C14: =B14*(1+C$17/100) -> 0 | E14: COFINS | F14: 0.03
A15: ISSQN | C15: =B15*(1+C$17/100) -> 0 | E15: ISSQN | F15: 0
A16: Contribuição Previdenciaria | C16: =B16*(1+C$17/100) -> 0 | E16: Contribuição Previdenciaria | F16: 0
B17: BDI | C17: =TRUNC(((1+(C8/100+C12/100-(A9/100*C12/100)))/(1-(A9/100+B11/100+B10/100+B13/100+B14/100+B15/100+B16/100))-1)*100,2) -> 0 | F17: BDI | G17: =ROUND((1+(G8+G12))/(1-(F9+F10+F11+F13+F14+F15+F16))-1,4) -> 0.15
A19: Observação: O percentual de ISSQN aqui utilizado consiste apenas em um referencial médio. | E19: Fonte da composição, valores de referência e fórmula do BDI: Instrução Normativa N° 62/DNIT SEDE
B20: O valor real do ISSQN a ser adotado deve ser aquele proveniente das alíquotas dos municípios situados na área de
B21: influência das obras.
A22: DF = [(1+SELIC)^(1/12)-1] sobre (PV - Lucro), o que resulta em DF = 0,84% sobre (PV - Lucro)
A34: Desde 24 de maio de 2024
A35: 262ª Reunião do Copom, o qual estabeleceu a alíquota da meta Selic no valor de 10,50% a.a.
A36: Ofício-Circular nº 2699/2024 (SEI DNIT nº 17818943)

Sheet ENC. SOCIAIS
L2: https://www.caixa.gov.br/poder-publico/modernizacao-gestao/sinapi/Paginas/default.aspx
B6: NOME DA CONCORRENTE:
B7: EDITAL:
B8: FOLHA:
B9: ='RESUMO MODULO TOTAL'!$C$5 -> Execução De Serviços De Pavimentação Com Tratamento Superficial Duplo Em Vias De Municípios Diversos Inseridos Na Área De Atuação Da Codevasf, No Estado De Goiás
B11: DETALHAMENTO DOS ENCARGOS SOCIAIS (%)
B12: VIGÊNCIA A PARTIR DE 12/2023 | D12: COM DESONERAÇÃO | F12: SEM DESONERAÇÃO
D14: HORISTA | E14: MENSALISTA | F14: HORISTA | G14: MENSALISTA
B16: GRUPO A
B17: A1 | C17: INSS | D17: 0 | E17: 0 | F17: 20 | G17: 20
B18: A2 | C18: SESI | D18: 1.5 | E18: 1.5 | F18: 1.5 | G18: 1.5
B19: A3 | C19: SENAI | D19: 1 | E19: 1 | F19: 1 | G19: 1
B20: A4 | C20: INCRA | D20: 0.2 | E20: 0.2 | F20: 0.2 | G20: 0.2
B21: A5 | C21: SEBRAE | D21: 0.6 | E21: 0.6 | F21: 0.6 | G21: 0.6
B22: A6 | C22: Salário Educação | D22: 2.5 | E22: 2.5 | F22: 2.5 | G22: 2.5
B23: A7 | C23: Seguro Contra Acidentes de Trabalho | D23: 3 | E23: 3 | F23: 3 | G23: 3
B24: A8 | C24: FGTS | D24: 8 | E24: 8 | F24: 8 | G24: 8
B25: A9 | C25: SECONCI | D25: 1 | E25: 1 | F25: 1 | G25: 1
B26: A | C26: Total | D26: =SUM(D17:D25) -> 17.8 | E26: =SUM(E17:E25) -> 17.8 | F26: =SUM(F17:F25) -> 37.8 | G26: =SUM(G17:G25) -> 37.8
B27: GRUPO B
B28: B1 | C28: Repouso Semanal Remunerado | D28: 17.81 | E28: - | F28: 17.81 | G28: -
B29: B2 | C29: Feriados | D29: 3.7 | E29: - | F29: 3.7 | G29: -
B30: B3 | C30: Auxílio-enfermidade | D30: 0.86 | E30: 0.64 | F30: 0.86 | G30: 0.64
B31: B4 | C31: 13° salário | D31: 11.18 | E31: 8.33 | F31: 11.18 | G31: 8.33
B32: B5 | C32: Licença-paternidade | D32: 0.06 | E32: 0.04 | F32: 0.06 | G32: 0.04
B33: B6 | C33: Faltas Justificadas | D33: 0.75 | E33: 0.56 | F33: 0.75 | G33: 0.56
B34: B7 | C34: Dias de chuva | D34: 1.36 | E34: - | F34: 1.36 | G34: -
B35: B8 | C35: Auxílio Acidente de Trabalho | D35: 0.1 | E35: 0.08 | F35: 0.1 | G35: 0.08 | L35: https://www.caixa.gov.br/Downloads/sinapi-composicoes-aferidas-sumario-composicoes-aferidas/SUMARIO_DE_PUBLICACOES_E_DOCUMENTACAO_DO_SINAPI.pdf
B36: B9 | C36: Férias Gozadas | D36: 0 | E36: 0 | F36: 0 | G36: 0 | L36: PDF INTERATIVO
B37: B10 | C37: Salário Maternidade | D37: 0.04 | E37: 0.03 | F37: 0.04 | G37: 0.03
B38: B | C38: Total | D38: =SUM(D28:D37) -> 35.86 | E38: =SUM(E28:E37) -> 9.68 | F38: =SUM(F28:F37) -> 35.86 | G38: =SUM(G28:G37) -> 9.68
B39: GRUPO C
B40: C1 | C40: Aviso Prévio Indenizado | D40: 5.91 | E40: 4.4 | F40: 5.91 | G40: 4.4
B41: C2 | C41: Aviso Prévio Trabalhado | D41: 0.14 | E41: 0.1 | F41: 0.14 | G41: 0.1
B42: C3 | C42: Férias Indenizadas | D42: 12.02 | E42: 8.96 | F42: 12.02 | G42: 8.96
B43: C4 | C43: Depósito Rescisão Sem Justa Causa | D43: 2.52 | E43: 1.88 | F43: 2.52 | G43: 1.88
B44: C5 | C44: Indenização Adicional | D44: 0.5 | E44: 0.37 | F44: 0.5 | G44: 0.37
B45: C | C45: Total | D45: =SUM(D40:D44) -> 21.09 | E45: =SUM(E40:E44) -> 15.71 | F45: =SUM(F40:F44) -> 21.09 | G45: =SUM(G40:G44) -> 15.71
B46: GRUPO D
B47: D1 | C47: Reincidência de A sobre B | D47: 6.38 | E47: 1.72 | F47: 13.56 | G47: 3.66
B48: D2 | C48: Reincidência de Grupo A sobre Aviso Prévio Trabalhado e Reincidência do FGTS sobre Aviso Prévio Indenizado | D48: 0.5 | E48: 0.37 | F48: 0.53 | G48: 0.39
B49: D | C49: Total | D49: =SUM(D47:D48) -> 6.88 | E49: =SUM(E47:E48) -> 2.09 | F49: =SUM(F47:F48) -> 14.09 | G49: =SUM(G47:G48) -> 4.05
B51: T O T A L (%) | D51: =D26+D38+D45+D49 -> 81.63 | E51: =E26+E38+E45+E49 -> 45.28 | F51: =F26+F38+F45+F49 -> 108.84 | G51: =G26+G38+G45+G49 -> 67.24
L91: https://www.caixa.gov.br/Downloads/sinapi-manual-de-metodologias-e-conceitos/Livro_SINAPI_Calculos_Parametros.pdf

Sheet Consumo Material Betuminoso
B3: CONSUMO DO MATERIAL BETUMINOSO TOTAL
B5: TRECHO | D5: QUANTIDADES | M5: MAT. BETUMINOSO
B6: Inicio (km) | C6: Fim (km) | D6: Extensão (m) | E6: Largura (m) | F6: Espess. (m) | G6: Área (m2) | H6: Volume (m3) | I6: Densidade (t/m3) | J6: Massa (t) | K6: Unid | L6: Quant. | M6: Tipo | N6: Consumo Taxa de Aplicação | O6: Unid. | P6: Quant.
A7: ='RESUMO MODULO TOTAL'!C24 -> 4011352 | B7: IMPRIMAÇÃO
F8: 1 | G8: 210000 | H8: 210000 | M8: EAI | N8: =Q8*1000 -> 1.3 | O8: t | P8: =ROUND((G8*N8)/1000,2) -> 273 | Q8: 0.0013 | R8: t/m²
F9: 1 | H9: =G9*F9 -> 0 | M9: CM-30 | N9: =Q9*1000 -> 1.2 | O9: t | P9: =ROUND((G9*N9)/1000,2) -> 0 | Q9: 0.0012 | R9: t/m²
A10: ='RESUMO MODULO TOTAL'!C22 -> 4915637 | B10: CAPA SELANTE
F11: 1 | G11: 210000 | H11: 210000 | M11: RR-2C | N11: =Q11*1000 -> 0.5 | O11: t | P11: =ROUND((G11*N11)/1000,2) -> 105 | Q11: 0.0005 | R11: t/m²
A12: ='RESUMO MODULO TOTAL'!C23 -> 4011370 | B12: TRATAMENTO SUPERFICIAL DUPLO - 1ª CAMADA
G13: 210000 | M13: RR-2C | N13: =ROUND(S13*Q13*1000,1) -> 2.2 | O13: t | P13: =ROUND((G13*N13)/1000,2) -> 462 | Q13: 0.00373 | R13: t/m² | S13: 0.6
B14: TRATAMENTO SUPERFICIAL DUPLO - 2ª CAMADA
G15: 210000 | M15: RR-2C | N15: =Q13*1000-N13 -> 1.53 | O15: t | P15: =ROUND((G15*N15)/1000,2) -> 321.3

Sheet Transp. EAI
C2: MEMÓRIA DE CÁLCULO
F3: LEGENDA | G3: ENTRADA DE DADOS | H3: RESULTADO PARCIAL | I3: RESULTADO FINAL
E5: DADOS ANP | G5: ÍNDICE DE PAVIMENTAÇÃO DNIT | M5: IMPOSTOS | N5: COFINS
E6: TIPOLOGIA DO MATERIAL | F6: EMULSÃO ASFÁLTICA PARA SERVIÇO DE IMPRIMAÇÃO | G6: ÍNDICE INICIAL | H6: 2014-07-01 | I6: 270.237 | N6: PIS | AC6: As empresas tributadas pelo Lucro Presumido pagam 0,65% de PIS e 3% de COFINS
E7: DATA ANP | F7: 2024-04-01 | G7: ÍNDICE FINAL | H7: 2024-04-01 | I7: 567.092 | N7: ICMS | Q7: =1-(O7/1) -> 1 | R7: =1-(P7/1) -> 1 | S7: =1-(Q7/1) -> 0 | AC7: As empresas tributadas pelo Lucro Real pagam 1,65% de PIS e 7,60% de COFINS
C9: DATA-BASE | D9: PRODUTOS | E9: LOCALIDADES | J9: CUSTO ANP (R$/Kg) | L9: CUSTO ANP | M9: IMPOSTOS DO PRODUTO | N9: CUSTO DO PRODUTO COM IMPOSTOS | O9: DMT's | P9: DMT's FLUVIAL | Q9: CUSTO DO TRANSPORTE RODOVIA PAVIMENTADA | R9: CUSTO DO TRANSPORTE FLUVIAL | S9: CUSTO DO TRANSPORTE TOTAL | T9: ICMS | U9: ATUALIZAÇÃO DO CUSTO DE TRANSPORTE | V9: CUSTO DO TRANSPORTE RODOVIA PAVIMENTADA COM IMPOSTOS E ATUALIZAÇÃO MONETÁRIA | W9: PEDÁGIO | Y9: TOTAL TRANSPORTE | Z9: AQUISIÇÃO DO PRODUTO | AA9: TOTAL GERAL (TRANSP + AQUISIÇÃO) | AC9: 1 | AD9: 2 | AE9: 3
C10: =H7 -> 2024-04-01 | E10: REFINARIAS | F10: ENDEREÇO | G10: ESTADO | H10: CIDADE | I10: DESTINO | J10: ESTADO | K10: REGIÃO | L10: R$/t | M10: R$/t | N10: R$/t | O10: KM | P10: KM | Q10: R$/t | R10: R$/t | S10: R$/t | T10: R$/t | U10: R$/t | V10: R$/t | W10: CUSTO | X10: R$/t | Y10: R$/t | Z10: R$/t | AA10: R$/t | AC10: TOTAL GERAL ( TRANSP + AQUISIÇÃO) | AD10: TOTAL TRANSPORTE | AE10: AQUISIÇÃO DO PRODUTO
B11: =AA11 ->  | C11: 1 | D11: =F6 -> EMULSÃO ASFÁLTICA PARA SERVIÇO DE IMPRIMAÇÃO | E11: 'CENTRO OESTE ASFALTOS LTDA. | F11: SETOR DE INFLAMÁVEIS, S/N TRECHO 02 - LOTE 1.100 - GUARÁ - CEP:71225-000 | G11: Distrito Federal | H11: BRASÍLIA - DF | I11: Goiânia - GO | L11: =IF(AND(J11="-",K11="-"),"",IF(AND(J11<>0,K11="-"),J11*1000,IF(AND(J11="-",K11<>0),K11*1000,IF(AND(J11<>0,K11<>0),J11*1000,"")))) ->  | M11: =ROUND(((L11/(1-$O$5-$O$6-$O$7))-L11),2) ->  | N11: =L11+M11 ->  | O11: =O74 -> 454.5 | Q11: =ROUND((26.939+0.253*O11),2) -> 141.93 | S11: =Q11+R11 -> 141.93 | T11: =TRUNC(S11*($O$7/(1-$O$7)),2) -> 0 | U11: =TRUNC(IF($I$6="","",(($I$7-$I$6)/$I$6)*(S11+T11)),2) -> 155.9 | V11: =S11+T11+U11 -> 297.83 | Y11: =IF(AND(Q11="",T11=""),"",V11+X11) -> 297.83 | Z11: =IF(OR(L11="",M11=""),"",L11+M11) ->  | AA11: =IF(OR(Y11="",Z11=""),"",Y11+Z11) ->  | AC11: =AA11 ->  | AD11: =Y11 -> 297.83 | AE11: =Z11 ->  | AH11: =IF(OR(G11=$D$32,G11=$D$33,G11=$D$35,G11=$D$41,G11=$D$25,G11=$D$21,G11=$D$17,G11=$D$30,G11=$D$20),"NORDESTE",IF(OR(G11=$D$16,G11=$D$18,G11=$D$19,G11=$D$29,G11=$D$37,G11=$D$38,G11=$D$42),"NORTE",IF(OR(G11=$D$22,G11=$D$24,G11=$D$26,G11=$D$27),"CENTRO-OESTE",IF(OR(G11=$D$40,G11=$D$34,G11=$D$28,G11=$D$23),"SUDESTE",IF(OR(G11=$D$39,G11=$D$31,G11=$D$36),"SUL",""))))) -> CENTRO-OESTE
B12: =AA12 ->  | C12: 2 | E12: STRATURA ASFALTOS S/A | F12: AVENIDA PRESIDENTE WILSON, 08 - JUNDIAÍ - CEP:75115-100 | G12: Goiás | H12: ANÁPOLIS - GO | I12: Goiânia - GO | L12: =IF(AND(J12="-",K12="-"),"",IF(AND(J12<>0,K12="-"),J12*1000,IF(AND(J12="-",K12<>0),K12*1000,IF(AND(J12<>0,K12<>0),J12*1000,"")))) ->  | M12: =ROUND(((L12/(1-$O$5-$O$6-$O$7))-L12),2) ->  | N12: =L12+M12 ->  | O12: =O79 -> 443.5 | Q12: =ROUND((26.939+0.253*O12),2) -> 139.14 | S12: =Q12+R12 -> 139.14 | T12: =TRUNC(S12*($O$7/(1-$O$7)),2) -> 0 | U12: =TRUNC(IF($I$6="","",(($I$7-$I$6)/$I$6)*(S12+T12)),2) -> 152.84 | V12: =S12+T12+U12 -> 291.98 | Y12: 291.98 | AA12: =IF(OR(Y12="",Z12=""),"",Y12+Z12) ->  | AC12: =AA12 ->  | AD12: =Y12 -> 291.98 | AH12: =IF(OR(G12=$D$32,G12=$D$33,G12=$D$35,G12=$D$41,G12=$D$25,G12=$D$21,G12=$D$17,G12=$D$30,G12=$D$20),"NORDESTE",IF(OR(G12=$D$16,G12=$D$18,G12=$D$19,G12=$D$29,G12=$D$37,G12=$D$38,G12=$D$42),"NORTE",IF(OR(G12=$D$22,G12=$D$24,G12=$D$26,G12=$D$27),"CENTRO-OESTE",IF(OR(G12=$D$40,G12=$D$34,G12=$D$28,G12=$D$23),"SUDESTE",IF(OR(G12=$D$39,G12=$D$31,G12=$D$36),"SUL",""))))) -> CENTRO-OESTE
C13: 3 | E13: DISTRIBUIDORA BRASILEIRA DE ASFALTO SA - DISBRAL | F13: VIA PRIMARIA 8, S/N QD-18, MODS. 24/47 - DAIAG - CEP:74980-970 | G13: Goiás | H13: APARECIDA DE GOIANIA - GO | I13: Goiânia - GO | M13: =ROUND(((L13/(1-$O$5-$O$6-$O$7))-L13),2) ->  | O13: =O84 -> 453.75 | Q13: 141.74 | S13: 141.74 | T13: =TRUNC(S13*($O$7/(1-$O$7)),2) -> 0 | U13: =TRUNC(IF($I$6="","",(($I$7-$I$6)/$I$6)*(S13+T13)),2) -> 155.7 | V13: 297.44 | Y13: 297.44 | AD13: 297.44 | AH13: =IF(OR(G13=$D$32,G13=$D$33,G13=$D$35,G13=$D$41,G13=$D$25,G13=$D$21,G13=$D$17,G13=$D$30,G13=$D$20),"NORDESTE",IF(OR(G13=$D$16,G13=$D$18,G13=$D$19,G13=$D$29,G13=$D$37,G13=$D$38,G13=$D$42),"NORTE",IF(OR(G13=$D$22,G13=$D$24,G13=$D$26,G13=$D$27),"CENTRO-OESTE",IF(OR(G13=$D$40,G13=$D$34,G13=$D$28,G13=$D$23),"SUDESTE",IF(OR(G13=$D$39,G13=$D$31,G13=$D$36),"SUL",""))))) -> CENTRO-OESTE
A14: 2403 | C14: 4 | E14: INDÚSTRIA NACIONAL DE ASFALTOS LTDA. | F14: VIA PRIMEIRA E SEGUNDA 3, S/N.º LOTES 01 A 10 - DISTRITO AGROINDUSTRIAL - CEP:75370-000 | G14: Goiás | H14: GOIANIRA - GO | I14: Goiânia - GO | M14: =ROUND(((L14/(1-$O$5-$O$6-$O$7))-L14),2) ->  | O14: =O89 -> 457 | Q14: 142.56 | S14: 142.56 | T14: =TRUNC(S14*($O$7/(1-$O$7)),2) -> 0 | U14: =TRUNC(IF($I$6="","",(($I$7-$I$6)/$I$6)*(S14+T14)),2) -> 156.6 | V14: 299.16 | Y14: 299.16 | AD14: 299.16 | AH14: =IF(OR(G14=$D$32,G14=$D$33,G14=$D$35,G14=$D$41,G14=$D$25,G14=$D$21,G14=$D$17,G14=$D$30,G14=$D$20),"NORDESTE",IF(OR(G14=$D$16,G14=$D$18,G14=$D$19,G14=$D$29,G14=$D$37,G14=$D$38,G14=$D$42),"NORTE",IF(OR(G14=$D$22,G14=$D$24,G14=$D$26,G14=$D$27),"CENTRO-OESTE",IF(OR(G14=$D$40,G14=$D$34,G14=$D$28,G14=$D$23),"SUDESTE",IF(OR(G14=$D$39,G14=$D$31,G14=$D$36),"SUL",""))))) -> CENTRO-OESTE
D16: Acre
D17: Alagoas
D18: Amapá
D19: Amazonas
D20: Bahia
D21: Ceará
D22: Distrito Federal
D23: Espírito Santo
D24: Goiás
D25: Maranhão
D26: Mato Grosso
D27: Mato Grosso do Sul
D28: Minas Gerais
D29: Pará
D30: Paraíba
D31: Paraná
D32: Pernambuco
D33: Piauí
D34: Rio de Janeiro
D35: Rio Grande do Norte
D36: Rio Grande do Sul
D37: Rondônia
D38: Roraima
D39: Santa Catarina
D40: São Paulo
D41: Sergipe
D42: Tocantins
D46: ASFALTOS DILUÍDOS CM-30
D47: ASFALTOS DILUÍDOS CM-70
D48: ASFALTOS DILUÍDOS CR-250
D49: ASFALTOS DILUÍDOS CR-70
D50: CAP MODIFICADO POR BORRACHA DE PNEU AB22
D51: CAP MODIFICADO POR BORRACHA DE PNEU AB8
D52: CAP MODIFICADO POR POLÍMERO 55-75-E
D53: CAP MODIFICADO POR POLÍMERO 60-85-E
D54: CAP MODIFICADO POR POLÍMERO 65-90-E
D55: CIMENTOS ASFÁLTICOS CAP-150-200
D56: CIMENTOS ASFÁLTICOS CAP-30-45
D57: CIMENTOS ASFÁLTICOS CAP-50-70
D58: CIMENTOS ASFÁLTICOS CAP-85-100
D59: EMULSÃO ASFÁLTICA CATIÔNICA DE RUPTURA CONTROLADA PARA SERVIÇO DE LAMA ASFÁLTICA
D60: EMULSÃO ASFÁLTICA DE RUPTURA LENTA CATIÔNICA PARA SERVIÇO DE LAMA ASFÁLTICA
D61: EMULSÃO ASFÁLTICA DE RUPTURA LENTA DE CARGA NEUTRA PARA SERVIÇO DE LAMA ASFÁLTICA
D62: EMULSÃO ASFÁLTICA PARA SERVIÇO DE IMPRIMAÇÃO
D63: EMULSÕES ASF. MOD. POR POLÍMEROS RC1C-E
D64: EMULSÕES ASF. MOD. POR POLÍMEROS RL1C-E
D65: EMULSÕES ASF. MOD. POR POLÍMEROS RM1C-E
D66: EMULSÕES ASF. MOD. POR POLÍMEROS RR1C-E
D67: EMULSÕES ASF. MOD. POR POLÍMEROS RR2C-E
D68: EMULSÕES ASFÁLTICAS RL-1C
D69: EMULSÕES ASFÁLTICAS RM-1C
D70: EMULSÕES ASFÁLTICAS RM-2C
D71: EMULSÕES ASFÁLTICAS RR-1C
D72: EMULSÕES ASFÁLTICAS RR-2C
E74: CAMPOS BELOS | F74: Setor Inflamáveis Sin 1100 - tr 2, Brasília - DF, 71225-000 | G74: 409 | H74: https://www.google.com.br/maps/dir/Centro+Oeste+Asfaltos,+Setor+Inflam%C3%A1veis+Sin+1100+-+tr+2,+Bras%C3%ADlia+-+DF,+71225-000/Campos+Belos,+GO,+73840-000/@-14.4108146,-48.6812557,8z/data=!3m1!4b1!4m14!4m13!1m5!1m1!1s0x935a316dd0fb71c3:0xc43458a6c824bb12!2m2!1d-47.9782441!2d-15.7962276!1m5!1m1!1s0x93491f18c7b13639:0xd1034d7b6ba87906!2m2!1d-46.7722996!2d-13.0370837!3e0?entry=ttu | O74: =AVERAGE(G74:G77) -> 454.5
E75: BALIZA | G75: 608 | H75: https://www.google.com.br/maps/dir/Centro+Oeste+Asfaltos,+Setor+Inflam%C3%A1veis+Sin+1100+-+tr+2,+Bras%C3%ADlia+-+DF,+71225-000/Baliza,+GO,+76250-000/@-16.065852,-51.5938521,8z/data=!3m1!4b1!4m14!4m13!1m5!1m1!1s0x935a316dd0fb71c3:0xc43458a6c824bb12!2m2!1d-47.9782441!2d-15.7962276!1m5!1m1!1s0x9365307b9d2245d1:0xdb2d6f69d7d7b0a9!2m2!1d-52.5464374!2d-16.196968!3e0?entry=ttu
E76: APORÉ | G76: 671 | H76: https://www.google.com.br/maps/dir/Centro+Oeste+Asfaltos,+Setor+Inflam%C3%A1veis+Sin+1100+-+tr+2,+Bras%C3%ADlia+-+DF,+71225-000/Apor%C3%A9,+GO/@-17.4468739,-51.3702228,8z/data=!3m1!4b1!4m14!4m13!1m5!1m1!1s0x935a316dd0fb71c3:0xc43458a6c824bb12!2m2!1d-47.9782441!2d-15.7962276!1m5!1m1!1s0x949c5a0f2a9ba177:0x7af8cec9490b47fc!2m2!1d-51.9255012!2d-18.9660716!3e0?entry=ttu
E77: CRISTALINA | G77: 130 | H77: https://www.google.com.br/maps/dir/SIN+Centro+Oeste+Asfaltos+-+Guar%C3%A1,+Bras%C3%ADlia+-+DF/Cristalina,+GO/@-16.2700243,-48.1207914,10z/data=!3m1!4b1!4m14!4m13!1m5!1m1!1s0x935a316dd0fb71c3:0xc43458a6c824bb12!2m2!1d-47.9782441!2d-15.7962276!1m5!1m1!1s0x93583d29b2aa9011:0x9d039879fad265bc!2m2!1d-47.6085589!2d-16.7639015!3e0?entry=ttu
E79: =$E$74 -> CAMPOS BELOS | F79: Av. Pres. Wilson - Vila Industrial, Anápolis - GO, 75115-100 | G79: 552 | H79: https://www.google.com.br/maps/dir/Av.+Pres.+Wilson+-+Vila+Industrial,+An%C3%A1polis+-+GO,+75115-100/Campos+Belos,+GO,+73840-000/@-14.6894847,-49.1676121,8z/data=!3m1!4b1!4m14!4m13!1m5!1m1!1s0x935ea48f1beb975b:0xeb4fbf0256937b0c!2m2!1d-48.9487569!2d-16.3407178!1m5!1m1!1s0x93491f18c7b13639:0xd1034d7b6ba87906!2m2!1d-46.7722996!2d-13.0370837!3e0?entry=ttu | O79: =AVERAGE(G79:G82) -> 443.5
E80: =$E$75 -> BALIZA | G80: 462 | H80: https://www.google.com.br/maps/dir/Av.+Pres.+Wilson+-+Vila+Industrial,+An%C3%A1polis+-+GO,+75115-100/Baliza,+GO,+76250-000/@-16.2307926,-52.074116,8z/data=!3m1!4b1!4m14!4m13!1m5!1m1!1s0x935ea48f1beb975b:0xeb4fbf0256937b0c!2m2!1d-48.9487569!2d-16.3407178!1m5!1m1!1s0x9365307b9d2245d1:0xdb2d6f69d7d7b0a9!2m2!1d-52.5464374!2d-16.196968!3e0?entry=ttu
E81: =$E$76 -> APORÉ | G81: 531 | H81: https://www.google.com.br/maps/dir/Av.+Pres.+Wilson+-+Vila+Industrial,+An%C3%A1polis+-+GO,+75115-100/Apor%C3%A9,+GO/@-17.7173876,-51.8461076,8z/data=!3m1!4b1!4m14!4m13!1m5!1m1!1s0x935ea48f1beb975b:0xeb4fbf0256937b0c!2m2!1d-48.9487569!2d-16.3407178!1m5!1m1!1s0x949c5a0f2a9ba177:0x7af8cec9490b47fc!2m2!1d-51.9255012!2d-18.9660716!3e0?entry=ttu
E82: =$E$77 -> CRISTALINA | G82: 229 | H82: https://www.google.com.br/maps/dir/Av.+Pres.+Wilson+-+Vila+Industrial,+An%C3%A1polis+-+GO,+75115-100/Cristalina,+GO/@-16.3846397,-48.6122212,10z/data=!3m1!4b1!4m14!4m13!1m5!1m1!1s0x935ea48f1beb975b:0xeb4fbf0256937b0c!2m2!1d-48.9487569!2d-16.3407178!1m5!1m1!1s0x93583d29b2aa9011:0x9d039879fad265bc!2m2!1d-47.6085589!2d-16.7639015!3e0?entry=ttu
E84: =$E$74 -> CAMPOS BELOS | F84: Via Primária Oito, S/N - Daiag, Aparecida de Goiânia - GO, 74993-430 | G84: 620 | H84: https://www.google.com.br/maps/dir/Grupo+Disbral+-+GO,+Via+Prim%C3%A1ria+Oito,+S%2FN+-+Daiag,+Aparecida+de+Goi%C3%A2nia+-+GO,+74993-430/Campos+Belos,+GO,+73840-000/@-14.9171518,-49.3139526,8z/data=!3m1!4b1!4m14!4m13!1m5!1m1!1s0x935ef764ffffffff:0x625ace78c18cd76!2m2!1d-49.2058789!2d-16.8044187!1m5!1m1!1s0x93491f18c7b13639:0xd1034d7b6ba87906!2m2!1d-46.7722996!2d-13.0370837!3e0?entry=ttu | O84: =AVERAGE(G84:G87) -> 453.75
E85: =$E$75 -> BALIZA | G85: 433 | H85: https://www.google.com.br/maps/dir/Grupo+Disbral+-+GO,+Via+Prim%C3%A1ria+Oito,+S%2FN+-+Daiag,+Aparecida+de+Goi%C3%A2nia+-+GO,+74993-430/Baliza,+GO,+76250-000/@-16.3091556,-51.5520313,9z/data=!3m1!4b1!4m14!4m13!1m5!1m1!1s0x935ef764ffffffff:0x625ace78c18cd76!2m2!1d-49.2058789!2d-16.8044187!1m5!1m1!1s0x9365307b9d2245d1:0xdb2d6f69d7d7b0a9!2m2!1d-52.5464374!2d-16.196968!3e0?entry=ttu
E86: =$E$76 -> APORÉ | G86: 483 | H86: https://www.google.com.br/maps/dir/Grupo+Disbral+-+GO,+Via+Prim%C3%A1ria+Oito,+S%2FN+-+Daiag,+Aparecida+de+Goi%C3%A2nia+-+GO,+74993-430/Apor%C3%A9,+GO/@-17.9037953,-51.9583361,8z/data=!3m1!4b1!4m14!4m13!1m5!1m1!1s0x935ef764ffffffff:0x625ace78c18cd76!2m2!1d-49.2058789!2d-16.8044187!1m5!1m1!1s0x949c5a0f2a9ba177:0x7af8cec9490b47fc!2m2!1d-51.9255012!2d-18.9660716!3e0?entry=ttu
E87: =$E$77 -> CRISTALINA | G87: 279 | H87: https://www.google.com.br/maps/dir/Grupo+Disbral+-+GO,+Via+Prim%C3%A1ria+Oito,+S%2FN+-+Daiag,+Aparecida+de+Goi%C3%A2nia+-+GO,+74993-430/Cristalina,+GO/@-16.713848,-49.0820341,9z/data=!3m1!4b1!4m14!4m13!1m5!1m1!1s0x935ef764ffffffff:0x625ace78c18cd76!2m2!1d-49.2058789!2d-16.8044187!1m5!1m1!1s0x93583d29b2aa9011:0x9d039879fad265bc!2m2!1d-47.6085589!2d-16.7639015!3e0?entry=ttu
E89: =$E$74 -> CAMPOS BELOS | F89: Nacional Asfaltos, Goianira - GO, 75370-000 | G89: 626 | H89: https://www.google.com.br/maps/dir/Nacional+Asfaltos,+Goianira+-+GO,+75370-000/Campos+Belos,+GO,+73840-000/@-14.8391896,-49.4118934,8z/data=!3m1!4b1!4m14!4m13!1m5!1m1!1s0x935e63b5a4f41e4f:0xba5b241b3d264990!2m2!1d-49.4089889!2d-16.5359687!1m5!1m1!1s0x93491f18c7b13639:0xd1034d7b6ba87906!2m2!1d-46.7722996!2d-13.0370837!3e0?entry=ttu | O89: =AVERAGE(G89:G92) -> 457
E90: =$E$75 -> BALIZA | G90: 407 | H90: https://www.google.com.br/maps/dir/Nacional+Asfaltos,+Goianira+-+GO,+75370-000/Baliza,+GO,+76250-000/@-16.5398893,-51.6489793,9z/data=!3m1!4b1!4m14!4m13!1m5!1m1!1s0x935e63b5a4f41e4f:0xba5b241b3d264990!2m2!1d-49.4089889!2d-16.5359687!1m5!1m1!1s0x9365307b9d2245d1:0xdb2d6f69d7d7b0a9!2m2!1d-52.5464374!2d-16.196968!3e0?entry=ttu
E91: =$E$76 -> APORÉ | G91: 483 | H91: https://www.google.com.br/maps/dir/Nacional+Asfaltos,+Goianira+-+GO,+75370-000/Apor%C3%A9,+GO/@-17.8167798,-52.0809011,8z/data=!3m1!4b1!4m14!4m13!1m5!1m1!1s0x935e63b5a4f41e4f:0xba5b241b3d264990!2m2!1d-49.4089889!2d-16.5359687!1m5!1m1!1s0x949c5a0f2a9ba177:0x7af8cec9490b47fc!2m2!1d-51.9255012!2d-18.9660716!3e0?entry=ttu
E92: =$E$77 -> CRISTALINA | G92: 312 | H92: https://www.google.com.br/maps/dir/Nacional+Asfaltos,+Goianira+-+GO,+75370-000/Cristalina,+GO/@-16.713848,-49.1646956,9z/data=!3m1!4b1!4m14!4m13!1m5!1m1!1s0x935e63b5a4f41e4f:0xba5b241b3d264990!2m2!1d-49.4089889!2d-16.5359687!1m5!1m1!1s0x93583d29b2aa9011:0x9d039879fad265bc!2m2!1d-47.6085589!2d-16.7639015!3e0?entry=ttu

Sheet Transp. RR-2C
C2: MEMÓRIA DE CÁLCULO
F3: LEGENDA | G3: ENTRADA DE DADOS | H3: RESULTADO PARCIAL | I3: RESULTADO FINAL
E5: DADOS ANP | G5: ÍNDICE DE PAVIMENTAÇÃO DNIT | M5: IMPOSTOS | N5: COFINS
E6: TIPOLOGIA DO MATERIAL | F6: EMULSÕES ASFÁLTICAS RR-2C | G6: ÍNDICE INICIAL | H6: 2014-07-01 | I6: 270.237 | N6: PIS | AC6: As empresas tributadas pelo Lucro Presumido pagam 0,65% de PIS e 3% de COFINS
E7: DATA ANP | F7: 2024-04-01 | G7: ÍNDICE FINAL | H7: 2024-04-01 | I7: 567.092 | N7: ICMS | Q7: =1-(O7/1) -> 1 | R7: =1-(P7/1) -> 1 | S7: =1-(Q7/1) -> 0 | AC7: As empresas tributadas pelo Lucro Real pagam 1,65% de PIS e 7,60% de COFINS
C9: DATA-BASE | D9: PRODUTOS | E9: LOCALIDADES | J9: CUSTO ANP (R$/Kg) | L9: CUSTO ANP | M9: IMPOSTOS DO PRODUTO | N9: CUSTO DO PRODUTO COM IMPOSTOS | O9: DMT's | P9: DMT's FLUVIAL | Q9: CUSTO DO TRANSPORTE RODOVIA PAVIMENTADA | R9: CUSTO DO TRANSPORTE FLUVIAL | S9: CUSTO DO TRANSPORTE TOTAL | T9: ICMS | U9: ATUALIZAÇÃO DO CUSTO DE TRANSPORTE | V9: CUSTO DO TRANSPORTE RODOVIA PAVIMENTADA COM IMPOSTOS E ATUALIZAÇÃO MONETÁRIA | W9: PEDÁGIO | Y9: TOTAL TRANSPORTE | Z9: AQUISIÇÃO DO PRODUTO | AA9: TOTAL GERAL (TRANSP + AQUISIÇÃO) | AC9: 1 | AD9: 2 | AE9: 3
C10: =H7 -> 2024-04-01 | E10: REFINARIAS | F10: ENDEREÇO | G10: ESTADO | H10: CIDADE | I10: DESTINO | J10: ESTADO | K10: REGIÃO | L10: R$/t | M10: R$/t | N10: R$/t | O10: KM | P10: KM | Q10: R$/t | R10: R$/t | S10: R$/t | T10: R$/t | U10: R$/t | V10: R$/t | W10: CUSTO | X10: R$/t | Y10: R$/t | Z10: R$/t | AA10: R$/t | AC10: TOTAL GERAL ( TRANSP + AQUISIÇÃO) | AD10: TOTAL TRANSPORTE | AE10: AQUISIÇÃO DO PRODUTO
B11: =AA11 ->  | C11: 1 | D11: =F6 -> EMULSÕES ASFÁLTICAS RR-2C | E11: 'CENTRO OESTE ASFALTOS LTDA. | F11: SETOR DE INFLAMÁVEIS, S/N TRECHO 02 - LOTE 1.100 - GUARÁ - CEP:71225-000 | G11: Distrito Federal | H11: BRASÍLIA - DF | I11: ='Transp. EAI'!I11 -> Goiânia - GO | L11: =IF(AND(J11="-",K11="-"),"",IF(AND(J11<>0,K11="-"),J11*1000,IF(AND(J11="-",K11<>0),K11*1000,IF(AND(J11<>0,K11<>0),J11*1000,"")))) ->  | M11: =ROUND(((L11/(1-$O$5-$O$6-$O$7))-L11),2) ->  | N11: =L11+M11 ->  | O11: ='Transp. EAI'!O11 -> 454.5 | Q11: =ROUND((26.939+0.253*O11),2) -> 141.93 | S11: =Q11+R11 -> 141.93 | T11: =TRUNC(S11*($O$7/(1-$O$7)),2) -> 0 | U11: =TRUNC(IF($I$6="","",(($I$7-$I$6)/$I$6)*(S11+T11)),2) -> 155.9 | V11: =S11+T11+U11 -> 297.83 | Y11: =IF(AND(Q11="",T11=""),"",V11+X11) -> 297.83 | Z11: =IF(OR(L11="",M11=""),"",L11+M11) ->  | AA11: =IF(OR(Y11="",Z11=""),"",Y11+Z11) ->  | AC11: =AA11 ->  | AD11: =Y11 -> 297.83 | AE11: =Z11 ->  | AH11: =IF(OR(G11=$D$32,G11=$D$33,G11=$D$35,G11=$D$41,G11=$D$25,G11=$D$21,G11=$D$17,G11=$D$30,G11=$D$20),"NORDESTE",IF(OR(G11=$D$16,G11=$D$18,G11=$D$19,G11=$D$29,G11=$D$37,G11=$D$38,G11=$D$42),"NORTE",IF(OR(G11=$D$22,G11=$D$24,G11=$D$26,G11=$D$27),"CENTRO-OESTE",IF(OR(G11=$D$40,G11=$D$34,G11=$D$28,G11=$D$23),"SUDESTE",IF(OR(G11=$D$39,G11=$D$31,G11=$D$36),"SUL",""))))) -> CENTRO-OESTE
B12: =AA12 ->  | C12: 2 | E12: STRATURA ASFALTOS S/A | F12: AVENIDA PRESIDENTE WILSON, 08 - JUNDIAÍ - CEP:75115-100 | G12: Goiás | H12: ANÁPOLIS - GO | I12: ='Transp. EAI'!I12 -> Goiânia - GO | L12: =IF(AND(J12="-",K12="-"),"",IF(AND(J12<>0,K12="-"),J12*1000,IF(AND(J12="-",K12<>0),K12*1000,IF(AND(J12<>0,K12<>0),J12*1000,"")))) ->  | M12: =ROUND(((L12/(1-$O$5-$O$6-$O$7))-L12),2) ->  | N12: =L12+M12 ->  | O12: ='Transp. EAI'!O12 -> 443.5 | Q12: =ROUND((26.939+0.253*O12),2) -> 139.14 | S12: =Q12+R12 -> 139.14 | T12: =TRUNC(S12*($O$7/(1-$O$7)),2) -> 0 | U12: =TRUNC(IF($I$6="","",(($I$7-$I$6)/$I$6)*(S12+T12)),2) -> 152.84 | V12: =S12+T12+U12 -> 291.98 | Y12: 291.98 | AA12: =IF(OR(Y12="",Z12=""),"",Y12+Z12) ->  | AC12: =AA12 ->  | AD12: =Y12 -> 291.98 | AH12: =IF(OR(G12=$D$32,G12=$D$33,G12=$D$35,G12=$D$41,G12=$D$25,G12=$D$21,G12=$D$17,G12=$D$30,G12=$D$20),"NORDESTE",IF(OR(G12=$D$16,G12=$D$18,G12=$D$19,G12=$D$29,G12=$D$37,G12=$D$38,G12=$D$42),"NORTE",IF(OR(G12=$D$22,G12=$D$24,G12=$D$26,G12=$D$27),"CENTRO-OESTE",IF(OR(G12=$D$40,G12=$D$34,G12=$D$28,G12=$D$23),"SUDESTE",IF(OR(G12=$D$39,G12=$D$31,G12=$D$36),"SUL",""))))) -> CENTRO-OESTE
C13: 3 | E13: DISTRIBUIDORA BRASILEIRA DE ASFALTO SA - DISBRAL | F13: VIA PRIMARIA 8, S/N QD-18, MODS. 24/47 - DAIAG - CEP:74980-970 | G13: Goiás | H13: APARECIDA DE GOIANIA - GO | I13: ='Transp. EAI'!I13 -> Goiânia - GO | M13: =ROUND(((L13/(1-$O$5-$O$6-$O$7))-L13),2) ->  | O13: ='Transp. EAI'!O13 -> 453.75 | Q13: 141.74 | S13: 141.74 | T13: =TRUNC(S13*($O$7/(1-$O$7)),2) -> 0 | U13: =TRUNC(IF($I$6="","",(($I$7-$I$6)/$I$6)*(S13+T13)),2) -> 155.7 | V13: 297.44 | Y13: 297.44 | AD13: 297.44 | AH13: =IF(OR(G13=$D$32,G13=$D$33,G13=$D$35,G13=$D$41,G13=$D$25,G13=$D$21,G13=$D$17,G13=$D$30,G13=$D$20),"NORDESTE",IF(OR(G13=$D$16,G13=$D$18,G13=$D$19,G13=$D$29,G13=$D$37,G13=$D$38,G13=$D$42),"NORTE",IF(OR(G13=$D$22,G13=$D$24,G13=$D$26,G13=$D$27),"CENTRO-OESTE",IF(OR(G13=$D$40,G13=$D$34,G13=$D$28,G13=$D$23),"SUDESTE",IF(OR(G13=$D$39,G13=$D$31,G13=$D$36),"SUL",""))))) -> CENTRO-OESTE
A14: 2403 | C14: 4 | E14: INDÚSTRIA NACIONAL DE ASFALTOS LTDA. | F14: VIA PRIMEIRA E SEGUNDA 3, S/N.º LOTES 01 A 10 - DISTRITO AGROINDUSTRIAL - CEP:75370-000 | G14: Goiás | H14: GOIANIRA - GO | I14: ='Transp. EAI'!I14 -> Goiânia - GO | M14: =ROUND(((L14/(1-$O$5-$O$6-$O$7))-L14),2) ->  | O14: ='Transp. EAI'!O14 -> 457 | Q14: 142.56 | S14: 142.56 | T14: =TRUNC(S14*($O$7/(1-$O$7)),2) -> 0 | U14: =TRUNC(IF($I$6="","",(($I$7-$I$6)/$I$6)*(S14+T14)),2) -> 156.6 | V14: 299.16 | Y14: 299.16 | AD14: 299.16 | AH14: =IF(OR(G14=$D$32,G14=$D$33,G14=$D$35,G14=$D$41,G14=$D$25,G14=$D$21,G14=$D$17,G14=$D$30,G14=$D$20),"NORDESTE",IF(OR(G14=$D$16,G14=$D$18,G14=$D$19,G14=$D$29,G14=$D$37,G14=$D$38,G14=$D$42),"NORTE",IF(OR(G14=$D$22,G14=$D$24,G14=$D$26,G14=$D$27),"CENTRO-OESTE",IF(OR(G14=$D$40,G14=$D$34,G14=$D$28,G14=$D$23),"SUDESTE",IF(OR(G14=$D$39,G14=$D$31,G14=$D$36),"SUL",""))))) -> CENTRO-OESTE
D16: Acre
D17: Alagoas
D18: Amapá
D19: Amazonas
D20: Bahia
D21: Ceará
D22: Distrito Federal
D23: Espírito Santo
D24: Goiás
D25: Maranhão
D26: Mato Grosso
D27: Mato Grosso do Sul
D28: Minas Gerais
D29: Pará
D30: Paraíba
D31: Paraná
D32: Pernambuco
D33: Piauí
D34: Rio de Janeiro
D35: Rio Grande do Norte
D36: Rio Grande do Sul
D37: Rondônia
D38: Roraima
D39: Santa Catarina
D40: São Paulo
D41: Sergipe
D42: Tocantins
D46: ASFALTOS DILUÍDOS CM-30
D47: ASFALTOS DILUÍDOS CM-70
D48: ASFALTOS DILUÍDOS CR-250
D49: ASFALTOS DILUÍDOS CR-70
D50: CAP MODIFICADO POR BORRACHA DE PNEU AB22
D51: CAP MODIFICADO POR BORRACHA DE PNEU AB8
D52: CAP MODIFICADO POR POLÍMERO 55-75-E
D53: CAP MODIFICADO POR POLÍMERO 60-85-E
D54: CAP MODIFICADO POR POLÍMERO 65-90-E
D55: CIMENTOS ASFÁLTICOS CAP-150-200
D56: CIMENTOS ASFÁLTICOS CAP-30-45
D57: CIMENTOS ASFÁLTICOS CAP-50-70
D58: CIMENTOS ASFÁLTICOS CAP-85-100
D59: EMULSÃO ASFÁLTICA CATIÔNICA DE RUPTURA CONTROLADA PARA SERVIÇO DE LAMA ASFÁLTICA
D60: EMULSÃO ASFÁLTICA DE RUPTURA LENTA CATIÔNICA PARA SERVIÇO DE LAMA ASFÁLTICA
D61: EMULSÃO ASFÁLTICA DE RUPTURA LENTA DE CARGA NEUTRA PARA SERVIÇO DE LAMA ASFÁLTICA
D62: EMULSÃO ASFÁLTICA PARA SERVIÇO DE IMPRIMAÇÃO
D63: EMULSÕES ASF. MOD. POR POLÍMEROS RC1C-E
D64: EMULSÕES ASF. MOD. POR POLÍMEROS RL1C-E
D65: EMULSÕES ASF. MOD. POR POLÍMEROS RM1C-E
D66: EMULSÕES ASF. MOD. POR POLÍMEROS RR1C-E
D67: EMULSÕES ASF. MOD. POR POLÍMEROS RR2C-E
D68: EMULSÕES ASFÁLTICAS RL-1C
D69: EMULSÕES ASFÁLTICAS RM-1C
D70: EMULSÕES ASFÁLTICAS RM-2C
D71: EMULSÕES ASFÁLTICAS RR-1C
D72: EMULSÕES ASFÁLTICAS RR-2C
E74: CAMPOS BELOS | F74: Setor Inflamáveis Sin 1100 - tr 2, Brasília - DF, 71225-000 | G74: 409 | H74: https://www.google.com.br/maps/dir/Centro+Oeste+Asfaltos,+Setor+Inflam%C3%A1veis+Sin+1100+-+tr+2,+Bras%C3%ADlia+-+DF,+71225-000/Campos+Belos,+GO,+73840-000/@-14.4108146,-48.6812557,8z/data=!3m1!4b1!4m14!4m13!1m5!1m1!1s0x935a316dd0fb71c3:0xc43458a6c824bb12!2m2!1d-47.9782441!2d-15.7962276!1m5!1m1!1s0x93491f18c7b13639:0xd1034d7b6ba87906!2m2!1d-46.7722996!2d-13.0370837!3e0?entry=ttu | O74: 454.5
E75: BALIZA | G75: 608 | H75: https://www.google.com.br/maps/dir/Centro+Oeste+Asfaltos,+Setor+Inflam%C3%A1veis+Sin+1100+-+tr+2,+Bras%C3%ADlia+-+DF,+71225-000/Baliza,+GO,+76250-000/@-16.065852,-51.5938521,8z/data=!3m1!4b1!4m14!4m13!1m5!1m1!1s0x935a316dd0fb71c3:0xc43458a6c824bb12!2m2!1d-47.9782441!2d-15.7962276!1m5!1m1!1s0x9365307b9d2245d1:0xdb2d6f69d7d7b0a9!2m2!1d-52.5464374!2d-16.196968!3e0?entry=ttu
E76: APORÉ | G76: 671 | H76: https://www.google.com.br/maps/dir/Centro+Oeste+Asfaltos,+Setor+Inflam%C3%A1veis+Sin+1100+-+tr+2,+Bras%C3%ADlia+-+DF,+71225-000/Apor%C3%A9,+GO/@-17.4468739,-51.3702228,8z/data=!3m1!4b1!4m14!4m13!1m5!1m1!1s0x935a316dd0fb71c3:0xc43458a6c824bb12!2m2!1d-47.9782441!2d-15.7962276!1m5!1m1!1s0x949c5a0f2a9ba177:0x7af8cec9490b47fc!2m2!1d-51.9255012!2d-18.9660716!3e0?entry=ttu
E77: CRISTALINA | G77: 130 | H77: https://www.google.com.br/maps/dir/SIN+Centro+Oeste+Asfaltos+-+Guar%C3%A1,+Bras%C3%ADlia+-+DF/Cristalina,+GO/@-16.2700243,-48.1207914,10z/data=!3m1!4b1!4m14!4m13!1m5!1m1!1s0x935a316dd0fb71c3:0xc43458a6c824bb12!2m2!1d-47.9782441!2d-15.7962276!1m5!1m1!1s0x93583d29b2aa9011:0x9d039879fad265bc!2m2!1d-47.6085589!2d-16.7639015!3e0?entry=ttu
E79: =$E$74 -> CAMPOS BELOS | F79: Av. Pres. Wilson - Vila Industrial, Anápolis - GO, 75115-100 | G79: 552 | H79: https://www.google.com.br/maps/dir/Av.+Pres.+Wilson+-+Vila+Industrial,+An%C3%A1polis+-+GO,+75115-100/Campos+Belos,+GO,+73840-000/@-14.6894847,-49.1676121,8z/data=!3m1!4b1!4m14!4m13!1m5!1m1!1s0x935ea48f1beb975b:0xeb4fbf0256937b0c!2m2!1d-48.9487569!2d-16.3407178!1m5!1m1!1s0x93491f18c7b13639:0xd1034d7b6ba87906!2m2!1d-46.7722996!2d-13.0370837!3e0?entry=ttu | O79: 443.5
E80: =$E$75 -> BALIZA | G80: 462 | H80: https://www.google.com.br/maps/dir/Av.+Pres.+Wilson+-+Vila+Industrial,+An%C3%A1polis+-+GO,+75115-100/Baliza,+GO,+76250-000/@-16.2307926,-52.074116,8z/data=!3m1!4b1!4m14!4m13!1m5!1m1!1s0x935ea48f1beb975b:0xeb4fbf0256937b0c!2m2!1d-48.9487569!2d-16.3407178!1m5!1m1!1s0x9365307b9d2245d1:0xdb2d6f69d7d7b0a9!2m2!1d-52.5464374!2d-16.196968!3e0?entry=ttu
E81: =$E$76 -> APORÉ | G81: 531 | H81: https://www.google.com.br/maps/dir/Av.+Pres.+Wilson+-+Vila+Industrial,+An%C3%A1polis+-+GO,+75115-100/Apor%C3%A9,+GO/@-17.7173876,-51.8461076,8z/data=!3m1!4b1!4m14!4m13!1m5!1m1!1s0x935ea48f1beb975b:0xeb4fbf0256937b0c!2m2!1d-48.9487569!2d-16.3407178!1m5!1m1!1s0x949c5a0f2a9ba177:0x7af8cec9490b47fc!2m2!1d-51.9255012!2d-18.9660716!3e0?entry=ttu
E82: =$E$77 -> CRISTALINA | G82: 229 | H82: https://www.google.com.br/maps/dir/Av.+Pres.+Wilson+-+Vila+Industrial,+An%C3%A1polis+-+GO,+75115-100/Cristalina,+GO/@-16.3846397,-48.6122212,10z/data=!3m1!4b1!4m14!4m13!1m5!1m1!1s0x935ea48f1beb975b:0xeb4fbf0256937b0c!2m2!1d-48.9487569!2d-16.3407178!1m5!1m1!1s0x93583d29b2aa9011:0x9d039879fad265bc!2m2!1d-47.6085589!2d-16.7639015!3e0?entry=ttu
E84: =$E$74 -> CAMPOS BELOS | F84: Via Primária Oito, S/N - Daiag, Aparecida de Goiânia - GO, 74993-430 | G84: 620 | H84: https://www.google.com.br/maps/dir/Grupo+Disbral+-+GO,+Via+Prim%C3%A1ria+Oito,+S%2FN+-+Daiag,+Aparecida+de+Goi%C3%A2nia+-+GO,+74993-430/Campos+Belos,+GO,+73840-000/@-14.9171518,-49.3139526,8z/data=!3m1!4b1!4m14!4m13!1m5!1m1!1s0x935ef764ffffffff:0x625ace78c18cd76!2m2!1d-49.2058789!2d-16.8044187!1m5!1m1!1s0x93491f18c7b13639:0xd1034d7b6ba87906!2m2!1d-46.7722996!2d-13.0370837!3e0?entry=ttu | O84: 453.75
E85: =$E$75 -> BALIZA | G85: 433 | H85: https://www.google.com.br/maps/dir/Grupo+Disbral+-+GO,+Via+Prim%C3%A1ria+Oito,+S%2FN+-+Daiag,+Aparecida+de+Goi%C3%A2nia+-+GO,+74993-430/Baliza,+GO,+76250-000/@-16.3091556,-51.5520313,9z/data=!3m1!4b1!4m14!4m13!1m5!1m1!1s0x935ef764ffffffff:0x625ace78c18cd76!2m2!1d-49.2058789!2d-16.8044187!1m5!1m1!1s0x9365307b9d2245d1:0xdb2d6f69d7d7b0a9!2m2!1d-52.5464374!2d-16.196968!3e0?entry=ttu
E86: =$E$76 -> APORÉ | G86: 483 | H86: https://www.google.com.br/maps/dir/Grupo+Disbral+-+GO,+Via+Prim%C3%A1ria+Oito,+S%2FN+-+Daiag,+Aparecida+de+Goi%C3%A2nia+-+GO,+74993-430/Apor%C3%A9,+GO/@-17.9037953,-51.9583361,8z/data=!3m1!4b1!4m14!4m13!1m5!1m1!1s0x935ef764ffffffff:0x625ace78c18cd76!2m2!1d-49.2058789!2d-16.8044187!1m5!1m1!1s0x949c5a0f2a9ba177:0x7af8cec9490b47fc!2m2!1d-51.9255012!2d-18.9660716!3e0?entry=ttu
E87: =$E$77 -> CRISTALINA | G87: 279 | H87: https://www.google.com.br/maps/dir/Grupo+Disbral+-+GO,+Via+Prim%C3%A1ria+Oito,+S%2FN+-+Daiag,+Aparecida+de+Goi%C3%A2nia+-+GO,+74993-430/Cristalina,+GO/@-16.713848,-49.0820341,9z/data=!3m1!4b1!4m14!4m13!1m5!1m1!1s0x935ef764ffffffff:0x625ace78c18cd76!2m2!1d-49.2058789!2d-16.8044187!1m5!1m1!1s0x93583d29b2aa9011:0x9d039879fad265bc!2m2!1d-47.6085589!2d-16.7639015!3e0?entry=ttu
E89: =$E$74 -> CAMPOS BELOS | F89: Nacional Asfaltos, Goianira - GO, 75370-000 | G89: 626 | H89: https://www.google.com.br/maps/dir/Nacional+Asfaltos,+Goianira+-+GO,+75370-000/Campos+Belos,+GO,+73840-000/@-14.8391896,-49.4118934,8z/data=!3m1!4b1!4m14!4m13!1m5!1m1!1s0x935e63b5a4f41e4f:0xba5b241b3d264990!2m2!1d-49.4089889!2d-16.5359687!1m5!1m1!1s0x93491f18c7b13639:0xd1034d7b6ba87906!2m2!1d-46.7722996!2d-13.0370837!3e0?entry=ttu | O89: 457
E90: =$E$75 -> BALIZA | G90: 407 | H90: https://www.google.com.br/maps/dir/Nacional+Asfaltos,+Goianira+-+GO,+75370-000/Baliza,+GO,+76250-000/@-16.5398893,-51.6489793,9z/data=!3m1!4b1!4m14!4m13!1m5!1m1!1s0x935e63b5a4f41e4f:0xba5b241b3d264990!2m2!1d-49.4089889!2d-16.5359687!1m5!1m1!1s0x9365307b9d2245d1:0xdb2d6f69d7d7b0a9!2m2!1d-52.5464374!2d-16.196968!3e0?entry=ttu
E91: =$E$76 -> APORÉ | G91: 483 | H91: https://www.google.com.br/maps/dir/Nacional+Asfaltos,+Goianira+-+GO,+75370-000/Apor%C3%A9,+GO/@-17.8167798,-52.0809011,8z/data=!3m1!4b1!4m14!4m13!1m5!1m1!1s0x935e63b5a4f41e4f:0xba5b241b3d264990!2m2!1d-49.4089889!2d-16.5359687!1m5!1m1!1s0x949c5a0f2a9ba177:0x7af8cec9490b47fc!2m2!1d-51.9255012!2d-18.9660716!3e0?entry=ttu
E92: =$E$77 -> CRISTALINA | G92: 312 | H92: https://www.google.com.br/maps/dir/Nacional+Asfaltos,+Goianira+-+GO,+75370-000/Cristalina,+GO/@-16.713848,-49.1646956,9z/data=!3m1!4b1!4m14!4m13!1m5!1m1!1s0x935e63b5a4f41e4f:0xba5b241b3d264990!2m2!1d-49.4089889!2d-16.5359687!1m5!1m1!1s0x93583d29b2aa9011:0x9d039879fad265bc!2m2!1d-47.6085589!2d-16.7639015!3e0?entry=ttu

Sheet Resumo_Transp
D9: LEGENDA | F9: RESULTADO PARCIAL | G9: RESULTADO FINAL
B11: DADOS ANP | E11: ÍNDICE DE PAVIMENTAÇÃO DNIT | K11: IMPOSTOS | L11: COFINS | M11: ='Transp. EAI'!$P$5 -> 0 | N11: ='Transp. EAI'!$P$5 -> 0
B12: TIPOLOGIA DO MATERIAL | D12: LIGANTE BETUMINOSO | E12: ÍNDICE INICIAL | F12: 2014-07-01 | G12: ='Transp. EAI'!$I$6 -> 270.237 | L12: PIS | M12: ='Transp. EAI'!$P$6 -> 0 | N12: ='Transp. EAI'!$P$6 -> 0
B13: DATA ANP | C13: DATA ANP | D13: ='Transp. EAI'!$F$7 -> 2024-04-01 | E13: ÍNDICE FINAL | F13: ='Transp. EAI'!$H$7 -> 2024-04-01 | G13: ='Transp. EAI'!$I$7 -> 567.092 | L13: ICMS | M13: ='Transp. EAI'!$P$7 -> 0 | N13: ='Transp. EAI'!$P$7 -> 0
B15: DATA-BASE | C15: PRODUTOS | D15: LOCALIDADES | H15: CUSTO ANP (R$/Kg) | J15: CUSTO ANP | K15: IMPOSTOS DO PRODUTO | L15: CUSTO DO PRODUTO COM IMPOSTOS | M15: DMT's | N15: DMT's | O15: CUSTO DO TRANSPORTE TOTAL | P15: ICMS | Q15: ATUALIZAÇÃO DO CUSTO DE TRANSPORTE | R15: CUSTO DO TRANSPORTE RODOVIA PAVIMENTADA COM IMPOSTOS E ATUALIZAÇÃO MONETÁRIA | S15: PEDÁGIO | U15: TOTAL TRANSPORTE | V15: TOTAL PRODUTO | W15: TOTAL GERAL
B16: =F13 -> 2024-04-01 | D16: REFINARIAS | E16: ENDEREÇO | F16: ORIGEM REFINARIAS / DISTRIBUIDORAS | G16: DESTINO | H16: ESTADO | I16: REGIÃO | J16: R$/t | K16: R$/t | L16: R$/t | M16: KM | N16: KM | O16: R$/t | P16: R$/t | Q16: R$/t | R16: R$/t | S16: CUSTO POR EIXO | T16: R$/t | U16: R$/t | V16: R$/t | W16: R$/t
B17: 1 | C17: EAI | D17: =VLOOKUP($W17,'Transp. EAI'!$B$11:$AA$14,4,FALSE) ->  | E17: =VLOOKUP($W17,'Transp. EAI'!$B$11:$AA$14,5,FALSE) ->  | F17: =VLOOKUP($W17,'Transp. EAI'!$B$11:$AA$14,7,FALSE) ->  | G17: =VLOOKUP($W17,'Transp. EAI'!$B$11:$AA$14,8,FALSE) ->  | H17: =VLOOKUP($W17,'Transp. EAI'!$B$11:$AA$14,9,FALSE) ->  | I17: =VLOOKUP($W17,'Transp. EAI'!$B$11:$AA$14,10,FALSE) ->  | J17: =VLOOKUP($W17,'Transp. EAI'!$B$11:$AA$14,11,FALSE) ->  | K17: =VLOOKUP($W17,'Transp. EAI'!$B$11:$AA$14,12,FALSE) ->  | L17: =VLOOKUP($W17,'Transp. EAI'!$B$11:$AA$14,13,FALSE) ->  | M17: =VLOOKUP($W17,'Transp. EAI'!$B$11:$AA$14,14,FALSE) ->  | N17: =VLOOKUP($W17,'Transp. EAI'!$B$11:$AA$14,15,FALSE) ->  | O17: =VLOOKUP($W17,'Transp. EAI'!$B$11:$AA$14,18,FALSE) ->  | P17: =VLOOKUP($W17,'Transp. EAI'!$B$11:$AA$14,19,FALSE) ->  | Q17: =VLOOKUP($W17,'Transp. EAI'!$B$11:$AA$14,20,FALSE) ->  | R17: =VLOOKUP($W17,'Transp. EAI'!$B$11:$AA$14,21,FALSE) ->  | S17: =VLOOKUP($W17,'Transp. EAI'!$B$11:$AA$14,22,FALSE) ->  | T17: =VLOOKUP($W17,'Transp. EAI'!$B$11:$AA$14,23,FALSE) ->  | U17: =VLOOKUP($W17,'Transp. EAI'!$B$11:$AA$14,24,FALSE) ->  | V17: =VLOOKUP($W17,'Transp. EAI'!$B$11:$AA$14,25,FALSE) ->  | W17: =SMALL('Transp. EAI'!$AA$11:$AA$14,1) -> 
B18: 2 | D18: =VLOOKUP($W18,'Transp. EAI'!$B$11:$AA$14,4,FALSE) ->  | E18: =VLOOKUP($W18,'Transp. EAI'!$B$11:$AA$14,5,FALSE) ->  | F18: =VLOOKUP($W18,'Transp. EAI'!$B$11:$AA$14,7,FALSE) ->  | G18: =VLOOKUP($W18,'Transp. EAI'!$B$11:$AA$14,8,FALSE) ->  | H18: =VLOOKUP($W18,'Transp. EAI'!$B$11:$AA$14,9,FALSE) ->  | I18: =VLOOKUP($W18,'Transp. EAI'!$B$11:$AA$14,10,FALSE) ->  | J18: =VLOOKUP($W18,'Transp. EAI'!$B$11:$AA$14,11,FALSE) ->  | K18: =VLOOKUP($W18,'Transp. EAI'!$B$11:$AA$14,12,FALSE) ->  | L18: =VLOOKUP($W18,'Transp. EAI'!$B$11:$AA$14,13,FALSE) ->  | M18: =VLOOKUP($W18,'Transp. EAI'!$B$11:$AA$14,14,FALSE) ->  | N18: =VLOOKUP($W18,'Transp. EAI'!$B$11:$AA$14,15,FALSE) ->  | O18: =VLOOKUP($W18,'Transp. EAI'!$B$11:$AA$14,18,FALSE) ->  | P18: =VLOOKUP($W18,'Transp. EAI'!$B$11:$AA$14,19,FALSE) ->  | Q18: =VLOOKUP($W18,'Transp. EAI'!$B$11:$AA$14,20,FALSE) ->  | R18: =VLOOKUP($W18,'Transp. EAI'!$B$11:$AA$14,21,FALSE) ->  | S18: =VLOOKUP($W18,'Transp. EAI'!$B$11:$AA$14,22,FALSE) ->  | T18: =VLOOKUP($W18,'Transp. EAI'!$B$11:$AA$14,23,FALSE) ->  | U18: =VLOOKUP($W18,'Transp. EAI'!$B$11:$AA$14,24,FALSE) ->  | V18: =VLOOKUP($W18,'Transp. EAI'!$B:$AA,25,FALSE) ->  | W18: =SMALL('Transp. EAI'!$AA$11:$AA$14,2) -> 
B19: 3 | D19: =VLOOKUP($W19,'Transp. EAI'!$B$11:$AA$14,4,FALSE) ->  | E19: =VLOOKUP($W19,'Transp. EAI'!$B$11:$AA$14,5,FALSE) ->  | F19: =VLOOKUP($W19,'Transp. EAI'!$B$11:$AA$14,7,FALSE) ->  | G19: =VLOOKUP($W19,'Transp. EAI'!$B$11:$AA$14,8,FALSE) ->  | H19: =VLOOKUP($W19,'Transp. EAI'!$B$11:$AA$14,9,FALSE) ->  | I19: =VLOOKUP($W19,'Transp. EAI'!$B$11:$AA$14,10,FALSE) ->  | J19: =VLOOKUP($W19,'Transp. EAI'!$B$11:$AA$14,11,FALSE) ->  | K19: =VLOOKUP($W19,'Transp. EAI'!$B$11:$AA$14,12,FALSE) ->  | L19: =VLOOKUP($W19,'Transp. EAI'!$B$11:$AA$14,13,FALSE) ->  | M19: =VLOOKUP($W19,'Transp. EAI'!$B$11:$AA$14,14,FALSE) ->  | N19: =VLOOKUP($W19,'Transp. EAI'!$B$11:$AA$14,15,FALSE) ->  | O19: =VLOOKUP($W19,'Transp. EAI'!$B$11:$AA$14,18,FALSE) ->  | P19: =VLOOKUP($W19,'Transp. EAI'!$B$11:$AA$14,19,FALSE) ->  | Q19: =VLOOKUP($W19,'Transp. EAI'!$B$11:$AA$14,20,FALSE) ->  | R19: =VLOOKUP($W19,'Transp. EAI'!$B$11:$AA$14,21,FALSE) ->  | S19: =VLOOKUP($W19,'Transp. EAI'!$B$11:$AA$14,22,FALSE) ->  | T19: =VLOOKUP($W19,'Transp. EAI'!$B$11:$AA$14,23,FALSE) ->  | U19: =VLOOKUP($W19,'Transp. EAI'!$B$11:$AA$14,24,FALSE) ->  | V19: =VLOOKUP($W19,'Transp. EAI'!$B:$AA,25,FALSE) ->  | W19: =SMALL('Transp. EAI'!$AA$11:$AA$14,3) -> 
B20: 4 | D20: =VLOOKUP($W20,'Transp. EAI'!$B$11:$AA$14,4,FALSE) ->  | E20: =VLOOKUP($W20,'Transp. EAI'!$B$11:$AA$14,5,FALSE) ->  | F20: =VLOOKUP($W20,'Transp. EAI'!$B$11:$AA$14,7,FALSE) ->  | G20: =VLOOKUP($W20,'Transp. EAI'!$B$11:$AA$14,8,FALSE) ->  | H20: =VLOOKUP($W20,'Transp. EAI'!$B$11:$AA$14,9,FALSE) ->  | I20: =VLOOKUP($W20,'Transp. EAI'!$B$11:$AA$14,10,FALSE) ->  | J20: =VLOOKUP($W20,'Transp. EAI'!$B$11:$AA$14,11,FALSE) ->  | K20: =VLOOKUP($W20,'Transp. EAI'!$B$11:$AA$14,12,FALSE) ->  | L20: =VLOOKUP($W20,'Transp. EAI'!$B$11:$AA$14,13,FALSE) ->  | M20: =VLOOKUP($W20,'Transp. EAI'!$B$11:$AA$14,14,FALSE) ->  | N20: =VLOOKUP($W20,'Transp. EAI'!$B$11:$AA$14,15,FALSE) ->  | O20: =VLOOKUP($W20,'Transp. EAI'!$B$11:$AA$14,18,FALSE) ->  | P20: =VLOOKUP($W20,'Transp. EAI'!$B$11:$AA$14,19,FALSE) ->  | Q20: =VLOOKUP($W20,'Transp. EAI'!$B$11:$AA$14,20,FALSE) ->  | R20: =VLOOKUP($W20,'Transp. EAI'!$B$11:$AA$14,21,FALSE) ->  | S20: =VLOOKUP($W20,'Transp. EAI'!$B$11:$AA$14,22,FALSE) ->  | T20: =VLOOKUP($W20,'Transp. EAI'!$B$11:$AA$14,23,FALSE) ->  | U20: =VLOOKUP($W20,'Transp. EAI'!$B$11:$AA$14,24,FALSE) ->  | V20: =VLOOKUP($W20,'Transp. EAI'!$B:$AA,25,FALSE) ->  | W20: =SMALL('Transp. EAI'!$AA$11:$AA$14,4) -> 
B22: 1 | C22: RR2-C | D22: =VLOOKUP($W22,'Transp. RR-2C'!$B:$AA,4,FALSE) ->  | E22: =VLOOKUP($W22,'Transp. RR-2C'!$B:$AA,5,FALSE) ->  | F22: =VLOOKUP($W22,'Transp. RR-2C'!$B:$AA,7,FALSE) ->  | G22: =VLOOKUP($W22,'Transp. RR-2C'!$B:$AA,8,FALSE) ->  | H22: =VLOOKUP($W22,'Transp. RR-2C'!$B:$AA,9,FALSE) ->  | I22: =VLOOKUP($W22,'Transp. RR-2C'!$B:$AA,10,FALSE) ->  | J22: =VLOOKUP($W22,'Transp. RR-2C'!$B:$AA,11,FALSE) ->  | K22: =VLOOKUP($W22,'Transp. RR-2C'!$B:$AA,12,FALSE) ->  | L22: =VLOOKUP($W22,'Transp. RR-2C'!$B:$AA,13,FALSE) ->  | M22: =VLOOKUP($W22,'Transp. RR-2C'!$B:$AA,14,FALSE) ->  | N22: =VLOOKUP($W22,'Transp. RR-2C'!$B:$AA,15,FALSE) ->  | O22: =VLOOKUP($W22,'Transp. RR-2C'!$B:$AA,18,FALSE) ->  | P22: =VLOOKUP($W22,'Transp. RR-2C'!$B:$AA,19,FALSE) ->  | Q22: =VLOOKUP($W22,'Transp. RR-2C'!$B:$AA,20,FALSE) ->  | R22: =VLOOKUP($W22,'Transp. RR-2C'!$B:$AA,21,FALSE) ->  | S22: =VLOOKUP($W22,'Transp. RR-2C'!$B:$AA,22,FALSE) ->  | T22: =VLOOKUP($W22,'Transp. RR-2C'!$B:$AA,23,FALSE) ->  | U22: =VLOOKUP($W22,'Transp. RR-2C'!$B:$AA,24,FALSE) ->  | V22: =VLOOKUP($W22,'Transp. RR-2C'!$B:$AA,25,FALSE) ->  | W22: =SMALL('Transp. RR-2C'!$AA$11:$AA$14,1) -> 
B23: 2 | D23: =VLOOKUP($W23,'Transp. RR-2C'!$B:$AA,4,FALSE) ->  | E23: =VLOOKUP($W23,'Transp. RR-2C'!$B:$AA,5,FALSE) ->  | F23: =VLOOKUP($W23,'Transp. RR-2C'!$B:$AA,7,FALSE) ->  | G23: =VLOOKUP($W23,'Transp. RR-2C'!$B:$AA,8,FALSE) ->  | H23: =VLOOKUP($W23,'Transp. RR-2C'!$B:$AA,9,FALSE) ->  | I23: =VLOOKUP($W23,'Transp. RR-2C'!$B:$AA,10,FALSE) ->  | J23: =VLOOKUP($W23,'Transp. RR-2C'!$B:$AA,11,FALSE) ->  | K23: =VLOOKUP($W23,'Transp. RR-2C'!$B:$AA,12,FALSE) ->  | L23: =VLOOKUP($W23,'Transp. RR-2C'!$B:$AA,13,FALSE) ->  | M23: =VLOOKUP($W23,'Transp. RR-2C'!$B:$AA,14,FALSE) ->  | N23: =VLOOKUP($W23,'Transp. RR-2C'!$B:$AA,15,FALSE) ->  | O23: =VLOOKUP($W23,'Transp. RR-2C'!$B:$AA,18,FALSE) ->  | P23: =VLOOKUP($W23,'Transp. RR-2C'!$B:$AA,19,FALSE) ->  | Q23: =VLOOKUP($W23,'Transp. RR-2C'!$B:$AA,20,FALSE) ->  | R23: =VLOOKUP($W23,'Transp. RR-2C'!$B:$AA,21,FALSE) ->  | S23: =VLOOKUP($W23,'Transp. RR-2C'!$B:$AA,22,FALSE) ->  | T23: =VLOOKUP($W23,'Transp. RR-2C'!$B:$AA,23,FALSE) ->  | U23: =VLOOKUP($W23,'Transp. RR-2C'!$B:$AA,24,FALSE) ->  | V23: =VLOOKUP($W23,'Transp. RR-2C'!$B:$AA,25,FALSE) ->  | W23: =SMALL('Transp. RR-2C'!$AA$11:$AA$14,2) -> 
B24: 3 | D24: =VLOOKUP($W24,'Transp. RR-2C'!$B:$AA,4,FALSE) ->  | E24: =VLOOKUP($W24,'Transp. RR-2C'!$B:$AA,5,FALSE) ->  | F24: =VLOOKUP($W24,'Transp. RR-2C'!$B:$AA,7,FALSE) ->  | G24: =VLOOKUP($W24,'Transp. RR-2C'!$B:$AA,8,FALSE) ->  | H24: =VLOOKUP($W24,'Transp. RR-2C'!$B:$AA,9,FALSE) ->  | I24: =VLOOKUP($W24,'Transp. RR-2C'!$B:$AA,10,FALSE) ->  | J24: =VLOOKUP($W24,'Transp. RR-2C'!$B:$AA,11,FALSE) ->  | K24: =VLOOKUP($W24,'Transp. RR-2C'!$B:$AA,12,FALSE) ->  | L24: =VLOOKUP($W24,'Transp. RR-2C'!$B:$AA,13,FALSE) ->  | M24: =VLOOKUP($W24,'Transp. RR-2C'!$B:$AA,14,FALSE) ->  | N24: =VLOOKUP($W24,'Transp. RR-2C'!$B:$AA,15,FALSE) ->  | O24: =VLOOKUP($W24,'Transp. RR-2C'!$B:$AA,18,FALSE) ->  | P24: =VLOOKUP($W24,'Transp. RR-2C'!$B:$AA,19,FALSE) ->  | Q24: =VLOOKUP($W24,'Transp. RR-2C'!$B:$AA,20,FALSE) ->  | R24: =VLOOKUP($W24,'Transp. RR-2C'!$B:$AA,21,FALSE) ->  | S24: =VLOOKUP($W24,'Transp. RR-2C'!$B:$AA,22,FALSE) ->  | T24: =VLOOKUP($W24,'Transp. RR-2C'!$B:$AA,23,FALSE) ->  | U24: =VLOOKUP($W24,'Transp. RR-2C'!$B:$AA,24,FALSE) ->  | V24: =VLOOKUP($W24,'Transp. RR-2C'!$B:$AA,25,FALSE) ->  | W24: =SMALL('Transp. RR-2C'!$AA$11:$AA$14,3) -> 
B25: 4 | D25: =VLOOKUP($W25,'Transp. RR-2C'!$B:$AA,4,FALSE) ->  | E25: =VLOOKUP($W25,'Transp. RR-2C'!$B:$AA,5,FALSE) ->  | F25: =VLOOKUP($W25,'Transp. RR-2C'!$B:$AA,7,FALSE) ->  | G25: =VLOOKUP($W25,'Transp. RR-2C'!$B:$AA,8,FALSE) ->  | H25: =VLOOKUP($W25,'Transp. RR-2C'!$B:$AA,9,FALSE) ->  | I25: =VLOOKUP($W25,'Transp. RR-2C'!$B:$AA,10,FALSE) ->  | J25: =VLOOKUP($W25,'Transp. RR-2C'!$B:$AA,11,FALSE) ->  | K25: =VLOOKUP($W25,'Transp. RR-2C'!$B:$AA,12,FALSE) ->  | L25: =VLOOKUP($W25,'Transp. RR-2C'!$B:$AA,13,FALSE) ->  | M25: =VLOOKUP($W25,'Transp. RR-2C'!$B:$AA,14,FALSE) ->  | N25: =VLOOKUP($W25,'Transp. RR-2C'!$B:$AA,15,FALSE) ->  | O25: =VLOOKUP($W25,'Transp. RR-2C'!$B:$AA,18,FALSE) ->  | P25: =VLOOKUP($W25,'Transp. RR-2C'!$B:$AA,19,FALSE) ->  | Q25: =VLOOKUP($W25,'Transp. RR-2C'!$B:$AA,20,FALSE) ->  | R25: =VLOOKUP($W25,'Transp. RR-2C'!$B:$AA,21,FALSE) ->  | S25: =VLOOKUP($W25,'Transp. RR-2C'!$B:$AA,22,FALSE) ->  | T25: =VLOOKUP($W25,'Transp. RR-2C'!$B:$AA,23,FALSE) ->  | U25: =VLOOKUP($W25,'Transp. RR-2C'!$B:$AA,24,FALSE) ->  | V25: =VLOOKUP($W25,'Transp. RR-2C'!$B:$AA,25,FALSE) ->  | W25: =SMALL('Transp. RR-2C'!$AA$11:$AA$14,4) -> 

Sheet Mom. Transporte
B5: ='RESUMO MODULO TOTAL'!$C$5 -> Execução De Serviços De Pavimentação Com Tratamento Superficial Duplo Em Vias De Municípios Diversos Inseridos Na Área De Atuação Da Codevasf, No Estado De Goiás
C6: RESUMO DO TRANSPORTE PRINCIPAL | F6: DMT ATÉ 50 KM NÃO DEVE SER PAGA | J6: KM POR TIPO DE REVESTIMENTO | M6: % POR TIPO DE REVESTIMENTO
B7: CODIGO | C7: DESCRIÇÃO | D7: TKM | F7: ADICIONAR APENAS A DISTÂNCIA EXCEDENTE A 50 KM | I7: LN | J7: RP | K7: P | L7: LN | M7: RP | N7: P
B8: 5914359 | C8: Transporte com caminhão basculante de 10 m³ - rodovia em leito natural | D8: =ROUND(SUMIF($F$19:$F$85,B8,$L$19:$L$85),2) -> 142087.09 | E8: 4016096 | F8: Escavação e carga de material de jazida - Cam.basc. 10 m³ | I8: 10 | J8: 10 | K8: 10
B9: 5914374 | C9: Transporte com caminhão basculante de 10 m³ - rodovia em revestimento primário | D9: =ROUND(SUMIF($G$19:$G$85,B9,$M$19:$M$85),2) -> 142087.09 | E9: M0028 | F9: Areia média - Caminhão basculante 10 m³ | I9: 10 | J9: 10 | K9: 10 | L9: 0.1 | M9: 0.1 | N9: 0.8
B10: 5914389 | C10: Transporte com caminhão basculante de 10 m³ - rodovia pavimentada | D10: =ROUND(SUMIF($H$19:$H$85,B10,$N$19:$N$85),2) -> 1136696.72 | E10: M0082 | F10: Areia média lavada - Caminhão basculante 10 m³ | I10: 10 | J10: 10 | K10: 10
B11: 5914314 | C11: Transporte com caminhão basculante de 6 m³ - rodovia em leito natural | D11: =ROUND(SUMIF($F$19:$F$85,B11,$L$19:$L$85),2) -> 913.5 | E11: M0005 | F11: Brita 0 - Caminhão basculante 10 m³ | I11: 10 | J11: 10 | K11: 10
B12: 5914329 | C12: Transporte com caminhão basculante de 6 m³ - rodovia em revestimento primário | D12: =ROUND(SUMIF($G$19:$G$85,B12,$M$19:$M$85),2) -> 913.5 | E12: M0191 | F12: Brita 1 - Caminhão basculante 10 m³ | I12: 10 | J12: 10 | K12: 10
B13: 5914344 | C13: Transporte com caminhão basculante de 6 m³ - rodovia pavimentada | D13: =ROUND(SUMIF($H$19:$H$85,B13,$N$19:$N$85),2) -> 7308 | E13: M0192 | F13: Brita 2 - Caminhão basculante 10 m³ | I13: 10 | J13: 10 | K13: 10
B14: 5914449 | C14: Transporte com caminhão carroceria de 15 t - rodovia em leito natural | D14: =ROUND(SUMIF($F$19:$F$85,B14,$L$19:$L$85),2) -> 683.44 | E14: M0030 | F14: Aditivo plastificante - Cam.carroc. 15 t | I14: 10 | J14: 10 | K14: 10
B15: 5914464 | C15: Transporte com caminhão carroceria de 15 t - rodovia em revestimento primário | D15: =ROUND(SUMIF($G$19:$G$85,B15,$M$19:$M$85),2) -> 683.44 | E15: M0424 | F15: Cimento Portland CP II - 32 - saco - Cam.carroc. 15 t | I15: 10 | J15: 10 | K15: 10
B16: 5914479 | C16: Transporte com caminhão carroceria de 15 t - rodovia pavimentada | D16: =ROUND(SUMIF($H$19:$H$85,B16,$N$19:$N$85),2) -> 5467.53 | E16: M2158 | F16: Argamassa asfáltica - Cam.carroc. 15 t | I16: 10 | J16: 10 | K16: 10
B19: SISTEMA DE CUSTOS REFERENCIAIS DE OBRAS - SICRO
B20: Custo Unitário de Referência | D20: Quantitativo | E20: Unidade
B21: 4011370 | C21: Tratamento superficial duplo com emulsão - brita comercial | D21: =SUMIF('RESUMO MODULO TOTAL'!C:C,B21,'RESUMO MODULO TOTAL'!H:H) -> 210000 | E21: m²
B22: F - MOMENTO DE TRANSPORTE | D22: Quantidade | E22: Unidade | G22: CÓDIGO TRANSPORTE | J22: KM POR TIPO DE REVESTIMENTO | M22: QUANTITATIVO TOTAL DE TRANSPORTE (tkm)
F23: LN | G23: RP | H23: P | I23: LN | J23: RP | K23: P | L23: LN | M23: RP | N23: P
B24: M0005 | C24: Brita 0 - Caminhão basculante 10 m³ | D24: 0.011 | E24: tkm | F24: 5914359 | G24: 5914374 | H24: 5914389 | I24: =INDEX($E$6:$K$16,MATCH(B24,$E$6:$E$16,0),5) -> 10 | J24: =INDEX($E$6:$K$16,MATCH(B24,$E$6:$E$16,0),6) -> 10 | K24: =INDEX($E$6:$K$16,MATCH(B24,$E$6:$E$16,0),7) -> 10 | L24: =ROUND(I24*D24*D21*$L$9,2) -> 2310 | M24: =ROUND(J24*D24*D21*$M$9,2) -> 2310 | N24: =ROUND(K24*D24*D21*$N$9,2) -> 18480
B25: M0191 | C25: Brita 1 - Caminhão basculante 10 m³ | D25: 0.0225 | E25: tkm | F25: 5914359 | G25: 5914374 | H25: 5914389 | I25: =INDEX($E$6:$K$16,MATCH(B25,$E$6:$E$16,0),5) -> 10 | J25: =INDEX($E$6:$K$16,MATCH(B25,$E$6:$E$16,0),6) -> 10 | K25: =INDEX($E$6:$K$16,MATCH(B25,$E$6:$E$16,0),7) -> 10 | L25: =ROUND(I25*D25*D21*$L$9,2) -> 4725 | M25: =ROUND(J25*D25*D21*$M$9,2) -> 4725 | N25: =ROUND(K25*D25*D21*$N$9,2) -> 37800
B27: SISTEMA DE CUSTOS REFERENCIAIS DE OBRAS - SICRO
B28: Custo Unitário de Referência | D28: Quantitativo | E28: Unidade
B29: 4915637 | C29: Capa selante - areia comercial | D29: =SUMIF('RESUMO MODULO TOTAL'!C:C,B29,'RESUMO MODULO TOTAL'!H:H) -> 210000 | E29: m²
B30: F - MOMENTO DE TRANSPORTE | D30: Quantidade | E30: Unidade | G30: CÓDIGO TRANSPORTE | J30: KM POR TIPO DE REVESTIMENTO | M30: QUANTITATIVO TOTAL DE TRANSPORTE (tkm)
F31: LN | G31: RP | H31: P | I31: LN | J31: RP | K31: P | L31: LN | M31: RP | N31: P
B32: M0028 | C32: Areia média - Caminhão basculante 6 m³ | D32: 0.00435 | E32: tkm | F32: 5914314 | G32: 5914329 | H32: 5914344 | I32: =INDEX($E$6:$K$16,MATCH(B32,$E$6:$E$16,0),5) -> 10 | J32: =INDEX($E$6:$K$16,MATCH(B32,$E$6:$E$16,0),6) -> 10 | K32: =INDEX($E$6:$K$16,MATCH(B32,$E$6:$E$16,0),7) -> 10 | L32: =ROUND(I32*D32*D29*$L$9,2) -> 913.5 | M32: =ROUND(J32*D32*D29*$M$9,2) -> 913.5 | N32: =ROUND(K32*D32*D29*$N$9,2) -> 7308
B34: SISTEMA DE CUSTOS REFERENCIAIS DE OBRAS - SICRO
B35: Custo Unitário de Referência | D35: Quantitativo | E35: Unidade
B36: 4011256 | C36: Base estabilizada granulometricamente com mistura solo brita (70% - 30%) na pista com material de jazida e brita comercial | D36: =SUMIF('RESUMO MODULO TOTAL'!C:C,B36,'RESUMO MODULO TOTAL'!H:H) -> 31500 | E36: m³
B37: F - MOMENTO DE TRANSPORTE | D37: Quantidade | E37: Unidade | G37: CÓDIGO TRANSPORTE | J37: KM POR TIPO DE REVESTIMENTO | M37: QUANTITATIVO TOTAL DE TRANSPORTE (tkm)
F38: LN | G38: RP | H38: P | I38: LN | J38: RP | K38: P | L38: LN | M38: RP | N38: P
B39: 4016096 | C39: Escavação e carga de material de jazida - Cam.basc. 10 m³ | D39: 1.44411 | E39: tkm | F39: 5914359 | G39: 5914374 | H39: 5914389 | I39: =INDEX($E$6:$K$16,MATCH(B39,$E$6:$E$16,0),5) -> 10 | J39: =INDEX($E$6:$K$16,MATCH(B39,$E$6:$E$16,0),6) -> 10 | K39: =INDEX($E$6:$K$16,MATCH(B39,$E$6:$E$16,0),7) -> 10 | L39: =ROUND(I39*D39*D36*$L$9,2) -> 45489.47 | M39: =ROUND(J39*D39*D36*$M$9,2) -> 45489.47 | N39: =ROUND(K39*D39*D36*$N$9,2) -> 363915.72
B40: M0191 | C40: Brita 1 - Caminhão basculante 10 m³ | D40: 0.6189 | E40: tkm | F40: 5914359 | G40: 5914374 | H40: 5914389 | I40: =INDEX($E$6:$K$16,MATCH(B40,$E$6:$E$16,0),5) -> 10 | J40: =INDEX($E$6:$K$16,MATCH(B40,$E$6:$E$16,0),6) -> 10 | K40: =INDEX($E$6:$K$16,MATCH(B40,$E$6:$E$16,0),7) -> 10 | L40: =ROUND(I40*D40*D36*$L$9,2) -> 19495.35 | M40: =ROUND(J40*D40*D36*$M$9,2) -> 19495.35 | N40: =ROUND(K40*D40*D36*$N$9,2) -> 155962.8
B42: SISTEMA DE CUSTOS REFERENCIAIS DE OBRAS - SICRO
B43: Custo Unitário de Referência | D43: Quantitativo | E43: Unidade
B44: 4011233 | C44: Sub-base estabilizada granulometricamente com mistura solo brita (70% - 30%) na pista com material de jazida e brita comercial | D44: =SUMIF('RESUMO MODULO TOTAL'!C:C,B44,'RESUMO MODULO TOTAL'!H:H) -> 31500 | E44: m³
B45: F - MOMENTO DE TRANSPORTE | D45: Quantidade | E45: Unidade | G45: CÓDIGO TRANSPORTE | J45: KM POR TIPO DE REVESTIMENTO | M45: QUANTITATIVO TOTAL DE TRANSPORTE (tkm)
F46: LN | G46: RP | H46: P | I46: LN | J46: RP | K46: P | L46: LN | M46: RP | N46: P
B47: 4016096 | C47: Escavação e carga de material de jazida - Cam.basc. 10 m³ | D47: 1.44411 | E47: tkm | F47: 5914359 | G47: 5914374 | H47: 5914389 | I47: =INDEX($E$6:$K$16,MATCH(B47,$E$6:$E$16,0),5) -> 10 | J47: =INDEX($E$6:$K$16,MATCH(B47,$E$6:$E$16,0),6) -> 10 | K47: =INDEX($E$6:$K$16,MATCH(B47,$E$6:$E$16,0),7) -> 10 | L47: =ROUND(I47*D47*D44*$L$9,2) -> 45489.47 | M47: =ROUND(J47*D47*D44*$M$9,2) -> 45489.47 | N47: =ROUND(K47*D47*D44*$N$9,2) -> 363915.72
B48: M0191 | C48: Brita 1 - Caminhão basculante 10 m³ | D48: 0.6189 | E48: tkm | F48: 5914359 | G48: 5914374 | H48: 5914389 | I48: =INDEX($E$6:$K$16,MATCH(B48,$E$6:$E$16,0),5) -> 10 | J48: =INDEX($E$6:$K$16,MATCH(B48,$E$6:$E$16,0),6) -> 10 | K48: =INDEX($E$6:$K$16,MATCH(B48,$E$6:$E$16,0),7) -> 10 | L48: =ROUND(I48*D48*D44*$L$9,2) -> 19495.35 | M48: =ROUND(J48*D48*D44*$M$9,2) -> 19495.35 | N48: =ROUND(K48*D48*D44*$N$9,2) -> 155962.8
B50: SISTEMA DE CUSTOS REFERENCIAIS DE OBRAS - SICRO
B51: Custo Unitário de Referência | D51: Quantitativo | E51: Unidade
B52: 2003943-A | C52: Meio-fio de concreto - MFC 03 moldado no local com extrusora e concreto betoneira - areia e brita comerciais | D52: =SUMIF('RESUMO MODULO TOTAL'!C:C,B52,'RESUMO MODULO TOTAL'!H:H) -> 54000 | E52: m
B53: D - ATIVIDADES AUXILIARES | D53: Quantidade | E53: Unidade | O53: QUANTIDADE DE ATIVIDADES AUXILIARES
B54: 1107892 | C54: Concreto fck = 20 MPa - confecção em betoneira e lançamento manual - areia e brita comerciais | D54: 0.042 | E54: m³ | O54: =ROUND(D52*D54,2) -> 2268
B55: 2003842 | C55: Enchimento de junta de concreto com argamassa asfáltica de densidade 1.700 kg/m³ - espessura de 1 cm | D55: 0.0595 | E55: kg | O55: =ROUND(D52*D55,2) -> 3213
B56: 4805750 | C56: Escavação manual em material de 1ª categoria na profundidade de até 1 m | D56: 0.03 | E56: m³ | O56: =ROUND(D52*D56,2) -> 1620
B58: SISTEMA DE CUSTOS REFERENCIAIS DE OBRAS - SICRO
B59: Custo Unitário de Referência | D59: Quantitativo | E59: Unidade
B60: 2003947-A | C60: Meio-fio de concreto - MFC 05 moldado no local com extrusora e concreto betoneira - areia e brita comerciais | D60: =SUMIF('RESUMO MODULO TOTAL'!C:C,B60,'RESUMO MODULO TOTAL'!H:H) -> 6000 | E60: m
B61: D - ATIVIDADES AUXILIARES | D61: Quantidade | E61: Unidade | O61: QUANTIDADE DE ATIVIDADES AUXILIARES
B62: 1107892 | C62: Concreto fck = 20 MPa - confecção em betoneira e lançamento manual - areia e brita comerciais | D62: 0.0334 | E62: m³ | O62: =ROUND(D60*D62,2) -> 200.4
B63: 2003842 | C63: Enchimento de junta de concreto com argamassa asfáltica de densidade 1.700 kg/m³ - espessura de 1 cm | D63: 0.0473 | E63: kg | O63: =ROUND(D60*D63,2) -> 283.8
B64: 4805750 | C64: Escavação manual em material de 1ª categoria na profundidade de até 1 m | D64: 0.018 | E64: m³ | O64: =ROUND(D60*D64,2) -> 108
B67: SISTEMA DE CUSTOS REFERENCIAIS DE OBRAS - SICRO
B68: Custo Unitário de Referência | D68: Quantitativo | E68: Unidade
B69: 1107892 | C69: Concreto fck = 20 MPa - confecção em betoneira e lançamento manual - areia e brita comerciais | D69: =SUMIF($B$19:$B$65,B69,$O$19:$O$65) -> 2468.4 | E69: m³
B70: F - MOMENTO DE TRANSPORTE | D70: Quantidade | E70: Unidade | G70: CÓDIGO TRANSPORTE | J70: KM POR TIPO DE REVESTIMENTO | M70: QUANTITATIVO TOTAL DE TRANSPORTE (tkm)
F71: LN | G71: RP | H71: P | I71: LN | J71: RP | K71: P | L71: LN | M71: RP | N71: P
B72: M0030 | C72: Aditivo plastificante - Cam.carroc. 15 t | D72: 0.00082 | E72: tkm | F72: 5914449 | G72: 5914464 | H72: 5914479 | I72: =INDEX($E$6:$K$16,MATCH(B72,$E$6:$E$16,0),5) -> 10 | J72: =INDEX($E$6:$K$16,MATCH(B72,$E$6:$E$16,0),6) -> 10 | K72: =INDEX($E$6:$K$16,MATCH(B72,$E$6:$E$16,0),7) -> 10 | L72: =ROUND(I72*D72*D69*$L$9,2) -> 2.02 | M72: =ROUND(J72*D72*D69*$M$9,2) -> 2.02 | N72: =ROUND(K72*D72*D69*$N$9,2) -> 16.19
B73: M0082 | C73: Areia média lavada - Caminhão basculante 10 m³ | D73: 0.95639 | E73: tkm | F73: 5914359 | G73: 5914374 | H73: 5914389 | I73: =INDEX($E$6:$K$16,MATCH(B73,$E$6:$E$16,0),5) -> 10 | J73: =INDEX($E$6:$K$16,MATCH(B73,$E$6:$E$16,0),6) -> 10 | K73: =INDEX($E$6:$K$16,MATCH(B73,$E$6:$E$16,0),7) -> 10 | L73: =ROUND(I73*D73*D69*$L$9,2) -> 2360.75 | M73: =ROUND(J73*D73*D69*$M$9,2) -> 2360.75 | N73: =ROUND(K73*D73*D69*$N$9,2) -> 18886.02
B74: M0191 | C74: Brita 1 - Caminhão basculante 10 m³ | D74: 0.55131 | E74: tkm | F74: 5914359 | G74: 5914374 | H74: 5914389 | I74: =INDEX($E$6:$K$16,MATCH(B74,$E$6:$E$16,0),5) -> 10 | J74: =INDEX($E$6:$K$16,MATCH(B74,$E$6:$E$16,0),6) -> 10 | K74: =INDEX($E$6:$K$16,MATCH(B74,$E$6:$E$16,0),7) -> 10 | L74: =ROUND(I74*D74*D69*$L$9,2) -> 1360.85 | M74: =ROUND(J74*D74*D69*$M$9,2) -> 1360.85 | N74: =ROUND(K74*D74*D69*$N$9,2) -> 10886.83
B75: M0192 | C75: Brita 2 - Caminhão basculante 10 m³ | D75: 0.55131 | E75: tkm | F75: 5914359 | G75: 5914374 | H75: 5914389 | I75: =INDEX($E$6:$K$16,MATCH(B75,$E$6:$E$16,0),5) -> 10 | J75: =INDEX($E$6:$K$16,MATCH(B75,$E$6:$E$16,0),6) -> 10 | K75: =INDEX($E$6:$K$16,MATCH(B75,$E$6:$E$16,0),7) -> 10 | L75: =ROUND(I75*D75*D69*$L$9,2) -> 1360.85 | M75: =ROUND(J75*D75*D69*$M$9,2) -> 1360.85 | N75: =ROUND(K75*D75*D69*$N$9,2) -> 10886.83
B76: M0424 | C76: Cimento Portland CP II - 32 - saco - Cam.carroc. 15 t | D76: 0.27464 | E76: tkm | F76: 5914449 | G76: 5914464 | H76: 5914479 | I76: =INDEX($E$6:$K$16,MATCH(B76,$E$6:$E$16,0),5) -> 10 | J76: =INDEX($E$6:$K$16,MATCH(B76,$E$6:$E$16,0),6) -> 10 | K76: =INDEX($E$6:$K$16,MATCH(B76,$E$6:$E$16,0),7) -> 10 | L76: =ROUND(I76*D76*D69*$L$9,2) -> 677.92 | M76: =ROUND(J76*D76*D69*$M$9,2) -> 677.92 | N76: =ROUND(K76*D76*D69*$N$9,2) -> 5423.37
B78: SISTEMA DE CUSTOS REFERENCIAIS DE OBRAS - SICRO
B79: Custo Unitário de Referência | D79: Quantitativo | E79: Unidade
B80: 2003842 | C80: Enchimento de junta de concreto com argamassa asfáltica de densidade 1.700 kg/m³ - espessura de 1 cm | D80: =SUMIF($B$19:$B$65,B80,$O$19:$O$65) -> 3496.8 | E80: kg
B81: F - MOMENTO DE TRANSPORTE | D81: Quantidade | E81: Unidade | G81: CÓDIGO TRANSPORTE | J81: KM POR TIPO DE REVESTIMENTO | M81: QUANTITATIVO TOTAL DE TRANSPORTE (tkm)
F82: LN | G82: RP | H82: P | I82: LN | J82: RP | K82: P | L82: LN | M82: RP | N82: P
B83: M2158 | C83: Argamassa asfáltica - Cam.carroc. 15 t | D83: 0.001 | E83: tkm | F83: 5914449 | G83: 5914464 | H83: 5914479 | I83: =INDEX($E$6:$K$16,MATCH(B83,$E$6:$E$16,0),5) -> 10 | J83: =INDEX($E$6:$K$16,MATCH(B83,$E$6:$E$16,0),6) -> 10 | K83: =INDEX($E$6:$K$16,MATCH(B83,$E$6:$E$16,0),7) -> 10 | L83: =ROUND(I83*D83*D80*$L$9,2) -> 3.5 | M83: =ROUND(J83*D83*D80*$M$9,2) -> 3.5 | N83: =ROUND(K83*D83*D80*$N$9,2) -> 27.97
